Workbook

Sheet Workbook Contents
A1: Overview of Spreadsheet for Performing A Life Cycle Inventory and Greenhouse Gas Evaluation of the Fischer-Tropsch Process for Generating Jet Fuel from Coal and Biomass
A2: Inter-Agency Workgroup for the Coal and Biomass to Liquid (Jet Fuel) Case Study
A3: Introduction
A4: This spreadsheet presents a life cycle inventory and green house gas evaluation of the Fischer-Tropsch process for generating jet fuel from coal and biomass. This spreadsheet has three main components.
A5: First, the spreadsheet has a number of work sheets that document unit processes in the life cycle. These are called Unit Process sheets in this spreadsheet. The work sheet "UP Intro" provides an overview of the Unit Process sheets and how to fill them in.
A6: Second, the spreadsheet has work sheets that summarize input flows, output flows and emissions for the Unit Processes that comprise the stages in the life cycle. The work sheet "Summ Control" provides an overview of the summary worksheets and how to set them up.
A7: Third, the spreadsheet has the capability of evaluating uncertainty in input parameters by performing a probability analysis and a sensitivity analysis. The work sheet "Prob & SA Control" describes how these analyses can be performed.
A8: Contact Information
A9: For more information on this spreadsheet, contact
A10: David Morgan of NETL-DOE
A11: david.morgan@netl.doe.gov
A12: 412-386-7405
A14: Worksheet Reference
A15: Introductory worksheet and worksheets with macros for summarizing the results of the LCA model and performing uncertainty analysis and sensitivity analysis.
A16: 1 | B16: • Workbook Contents | C16: Workbook Contents: This worksheet provides an overview of the workbook and hyperlinks to the other sheets in the workbook.
A17: =A16+1 -> 2 | B17: • Summ Control | C17: Summ Control: This worksheet provides an overview of how to construct worksheets that summarize the results of a stage and also provides the macro for populating the summary worksheet with the necessary links to unit process worksheets.
A18: =A17+1 -> 3 | B18: • Prob & SA Control | C18: Prob & SA Control: This worksheet provides the macros for performing a probabilistic analysis similar to that performed by commercial programs such as @Risk and a sensitivity analysis which generates Tornado Charts.
A19: Worksheets created by uncertainty analysis and sensitivity analysis macros.
A20: =A18&"a" -> 3a | B20: • Res ProbSn | C20: Res ProbSn: This worksheet is generated by the uncertainty analysis macro and provides a table with summary statistics for each random variable where probabilistic results are desired. For each uncertainty analysis run, the macro creates a new summary sheet so that old summary sheets are preserved. The "n" in "Res ProbSn" is a number generated by the macro. If, for example, the sheets "Res ProbS1", "Res ProbS2", and "Res ProbS3" already exist, the macro creates a sheet named "Res ProbS4" (i.e., "n" is 4, the next number in the series of sheets).
A21: =A18&"b" -> 3b | B21: • Res ProbDn | C21: Res ProbDn: This worksheet is generated by the uncertainty analysis macro and provides detailed information for each random variable where probabilistic results are desired. The detailed information includes summary statistics, tables of distribution results, a graph of the probability density and cumulative distribution and a listing of the results of all simulation iterations for the random variable. For example, if the statistics are based on 2000 iterations of the underlying model, then the 2000 results for a specific random variable are given in this sheet. For each uncertainty analysis run, the macro creates a new sheet with detailed results so that old sheets with detailed results are preserved. The "n" in "Res ProbDn" is a number generated by the macro. If, for example, the sheets "Res ProbD1", "Res ProbD2", and "Res ProbD3" already exist, the macro creates a sheet named "Res ProbD4" (i.e., "n" is 4, the next number in the series of sheets).
A22: =A18&"c" -> 3c | B22: • Res Sensn | C22: Res Sensn: This worksheet is generated by the sensitivity analysis macro and provides the results of the sensitivtiy analysis for each variable where these results are desired. For each sensitivity analysis run, the macro creates a new sheet with sensitivity analysis results so that old sheets with sensitivity analysis results are preserved. The "n" in "Res Sensn" is a number generated by the macro. If, for example, the sheets "Res Sens1", "Res Sens2", and "Res Sens3" already exist, the macro creates a sheet named "Res Sens4" (i.e., "n" is 4, the next number in the series of sheets).
A23: Key overview worksheets.
A24: =A18+1 -> 4 | B24: • Scen.Control | C24: Scen.Control: This sheet is where the scenarios are selected.
A25: 5 | B25: • Stg Conv & Alloc | C25: Stg Conv & Alloc: This sheet is where the conversion factors are calculated that transform the reference flows for each stage to the system functional unit. These conversion factors depend on input values selected for parameters and the scenarios selected for evaluation. This sheet also includes calculations used in the allocation of greenhouse gases to products and co-products.
A26: 6 | B26: • Summ.GHG | C26: Summ.GHG: This sheet is where the allocated GHG results are calculated and presented.
A27: 7 | B27: • Summ.Rep.GHG | C27: Summ.Rep.GHG: This sheet presents results for GHGs in the correct format for the report. These results can be cut and pasted into the Word template for results.
A28: 8 | B28: • Pet Base JF GHG | C28: Pet Base JF GHG: This sheet presents the GHG emissions for each stage of the lifecycle of gasoline, diesel and jet fuel from NETL's petroleum baseline report.
A29: 9 | B29: • Summ.Rep.Flows | C29: Summ.Rep.Flows: This worksheet summarizes all the major flows in the life cycle assessment by stage. The flows are taken from sheet Summ.1 in terms of the functional unit and converted to mass flows per day. The flows include coal, switchgrass biomass, F-T and blended jet fuel, petroleum products from EOR and CO2 captured at the CBTL and sequestered either directly in a brine aquifer or eventually at the conclusion of EOR. This worksheet shows that the masses all balance across the stages and it also shows the that flow values generated elsewhere in the workbook match flow values derived from the results in sheet Summ.1.
A30: Worksheets providing detailed summaries of inputs, outputs and emissions from all the unit processes for each stage. Sheet Summ.1 summarizes inputs, outputs and emissions for the system as a whole.
A31: =A29+1 -> 10 | B31: • Summ.1 | C31: Summ.1: This worksheet summarizes the input flows, output flows (products and co-products) and GHG emissions for all stages. The results are summarized for each stage for operations, construction, direct land use, indirect land use and total flows. The results for all stages are summed and these total values are also presented.
A32: 11 | B32: • S1a.Summ | C32: S1a.Summ: This worksheet presents the input flows, output flows (products and co-products) and GHG emissions for stage 1a (coal aquisition). The results are summarized for operations, construction and total flows. The results for each unit process and each secondary unit process in the stage are presented in this sheet.
A33: 12 | B33: • S2a.Summ | C33: S2a.Summ: This worksheet presents the input flows, output flows (products and co-products) and GHG emissions for stage 2a (coal transport). The results are summarized for operations, construction and total flows. The results for each unit process and each secondary unit process in the stage are presented in this sheet.
A34: 13 | B34: • S1b.Summ | C34: S1b.Summ: This worksheet presents the input flows, output flows (products and co-products) and GHG emissions for stage 1b (biomass acquisition, aka, farming). The results are summarized for operations, construction and total flows. The results for each unit process and each secondary unit process in the stage are presented in this sheet.
A35: 14 | B35: • S1c.Summ | C35: S1c.Summ: This worksheet presents the input flows, output flows (products and co-products) and GHG emissions for stage 1c (direct and indirect land use). The results are summarized for direct land use, indirect land use and total flows.
A36: 15 | B36: • S2b.Summ | C36: S2b.Summ: This worksheet presents the input flows, output flows (products and co-products) and GHG emissions for stage 2b (biomass transport). The results are summarized for each stage for operations, construction and total flows. The results for each unit process and each secondary unit process in the stage are presented in this sheet.
A37: 16 | B37: • S3a.Summ | C37: S3a.Summ: This worksheet presents the input flows, output flows (products and co-products) and GHG emissions for stage 3a (CBTL). The results are summarized for each stage for operations, construction and total flows. The results for each unit process and each secondary unit process in the stage are presented in this sheet.
A38: 17 | B38: • S3b.Summ | C38: S3b.Summ: This worksheet presents the input flows, output flows (products and co-products) and GHG emissions for stage 3b (transport of supercritical CO2 to either an EOR or to a brine sequestration site where the CO2 is injected into the subsurface for storage). The results are summarized for each stage for operations, construction and total flows. The results for each unit process and each secondary unit process in the stage are presented in this sheet.
A39: 18 | B39: • S3c.Summ | C39: S3c.Summ: This worksheet presents the input flows, output flows (products and co-products) and GHG emissions for stage 3c (Enhanced Oil recovery or EOR using supercritical CO2). The results are summarized for each stage for operations, construction and total flows. The results for each unit process and each secondary unit process in the stage are presented in this sheet.
A40: 19 | B40: • S4.Summ | C40: S4.Summ: This worksheet presents the input flows, output flows (products and co-products) and GHG emissions for stage 4 (transport of F-T jet fuel to a refinery for blending with conventional jet fuel and then transport of blended jet fuel to an air craft at an airport). The results are summarized for each stage for operations, construction and total flows. The results for each unit process and each secondary unit process in the stage are presented in this sheet.
A41: 20 | B41: • S4a.Summ | C41: S4a.Summ: This worksheet presents the input flows, output flows (products and co-products) and GHG emissions for stage 4a of stage 4 (transport of F-T jet fuel to a refinery for blending with conventional jet fuel). The results are summarized for each stage for operations, construction and total flows. The results for each unit process and each secondary unit process in the stage are presented in this sheet.
A42: 21 | B42: • S4b.Summ | C42: S4b.Summ: This worksheet presents the input flows, output flows (products and co-products) and GHG emissions for stage 4b of stage 4. Stage 4b brings in the conventional jet fuel that is blended with F-T jet fuel and allows the upstream emissions of conventional jet fuel to be expressed directly. Only upstream inputs, outputs and GHG emissions for conventional jet fuel are provided by this sheet.
A43: 22 | B43: • S4c.Summ | C43: S4c.Summ: This worksheet presents the input flows, output flows (products and co-products) and GHG emissions for stage 4c of stage 4 (transport of blended jet fuel to an aircraft fuel tank at an airport). The results are summarized for each stage for operations, construction and total flows. The results for each unit process and each secondary unit process in the stage are presented in this sheet.
A44: =A40+1 -> 20 | B44: • S5.Summ | C44: S5.Summ: This worksheet presents the input flows, output flows (products and co-products) and GHG emissions for stage 5 (combustion of blnded jet fuel in an air craft). The results are summarized for each stage for operations, construction and total flows. The results for each unit process and each secondary unit process in the stage are presented in this sheet.
A45: Unit process worksheets for each stage.
A46: =A44+1 -> 21 | B46: • UP Control1 | C46: UP Control1: This worksheet provides centralized storage of a number of parameters that are used by more than 1 unit process. These parameters are input in a manner that allows the uncertainty in the parameter to be quantified and subjected to probabilistic analysis or sensitivity analysis.
A47: 22 | B47: • Misc1 | C47: Misc1: This worksheet includes a variety of miscellaneous information, primarily unit conversion factors.
A48: 23 | B48: • S1a.UP.O.CoalMOp | C48: S1a.UP.O.CoalMOp: This worksheet is for a unit process that provides a summary of relevant input and output flows associated with the operation of an underground No. 6 coal mine. The primary inputs are electricity and diesel fuel (to operate vehicles and machinery) used in the operation of the coal mine. The output is coal ready for transport. The reference flow is a unit mass of coal mined. The data for this unit process came from an NETL unit process.
A49: 24 | B49: • S1a.UP.C.CoalMCon | C49: S1a.UP.C.CoalMCon: This worksheet is a unit process specifying the energy needed to install and de-install an underground No. 6 bituminous coal mine and the materials needed to construct such a mine. For the materials needed to construct an underground coal mine, this worksheet consolidates the results from the following construction unit processes: S1a.UP.C.Bldg_Pav, S1a.UP.C.CoalPrep, S1a.UP.C.UnMine and S1a.UP.C.LWMine.
A50: 25 | B50: • S1a.UP.C.LWMiner | C50: S1a.UP.C.LWMine: This worksheet is for a unit process that identifies the equipment needed to form a longwall mining system. This unit process also specifies the number of pieces needed for each type of equipment and the mass of materials needed to construct each piece of equipment. For each material, the total mass needed for that material to construct all pieces in the unit process is also included. The data for this unit process came from NETL unit processes.
A51: 26 | B51: • S1a.UP.C.UnMine | C51: S1a.UP.C.UnMine: This worksheet is for a unit process that identifies the equipment needed to form the underground portion of an Illinois No. 6 underground coal mine. This unit process specifies the number of pieces needed for each type of equipment and the mass of materials needed to construct some of the pieces of equipment. For equipment where material is specified, the total mass of material needed to construct the indicated pieces of equipment is also included. The data for this unit process came from a variety of NETL unit processes. The material needed for a longwall mining system is specified in a separate unit process.
A52: 27 | B52: • S1a.UP.C.CoalPrep | C52: S1a.UP.C.CoalPrep: This worksheet is for a unit process that identifies the equipment needed to form the coal preparation facility for an Illinois No. 6 underground coal mine. This unit process specifies the number of pieces needed for each type of equipment and the mass of materials needed to construct the pieces of equipment. The total mass of each material needed to construct all pieces in the unit process is also included. The data for this unit process came from NETL unit processes.
A53: 28 | B53: • S1a.UP.C.Bldg_Pav | C53: S1a.UP.C.Bldg_Pav: This worksheet is for a unit process that identifies the mass of concrete and asphalt needed to construct onsite buildings and install necessary pavement (e.g., for roads and parking lots). The data for this unit process came from an NETL unit process.
A54: 29 | B54: • S1a.Ref | C54: S1a.Ref: This worksheet lists references cited in the unit processes for Stage 1a, coal acquisition.
A55: 30 | B55: • S2a.UP.O.CoalRailOp | C55: S2a.UP.O.CoalRailOp: This worksheet is for a unit process that provides a summary of relevant input and output flows associated with operating a train that transports coal from the underground coal mine to the CBTL facility. The primary inputs are coal loaded onto the train and diesel fuel used to operate the locomotive. The outputs are coal delivered to the CBTL facility, coal emitted as dust during the journey, and CO2, CH4 and N2O emitted as a result of diesel combustion. The reference flow is a unit mass of coal delivered to the CBTL. This is a gate to gate process so emissions associated with production of diesel are not included.
A56: 31 | B56: • S2a.UP.C.CoalRailCon | C56: S2a.UP.C.CoalRailCon: This worksheet is for a unit process that provides a summary of relevant input and output flows involving construction, installation and de-installation of equipment that transports coal from the mine to the CBTL facility. This unit process references two other unit processes in sheets S2a.UP.C.Train and S2a.UP.C.Track.
A57: 32 | B57: • S2a.UP.C.Train | C57: S2a.UP.C.Train: This worksheet is for a unit process that identifies the number of locomotives (5) and railcars (100) used to haul coal from the coal mine to the CBTL plant. The unit process also calculates the mass of materials in the locomotives and railcars. The data for this unit process came from a variety of NETL unit processes.
A58: 33 | B58: • S2a.UP.C.Track | C58: S2a.UP.C.Track: This worksheet is for a unit process that provides a summary of relevant input and output flows associated with constructing and installing/de-installing a segment of railroad track that connects the CBTL to a main railroad line. The primary inputs are steel, wood and gravel to construct the railroad track and diesel fuel to operate the machinery that will install or de-install the track. The output is an installed/ de-installed railroad track segment and emissions associated with the use of the diesel fuel. The reference flow is a unit mass of coal delivered to the CBTL facility. This is a gate to gate process so emissions associated with manufacturing steel, forming wood railroad ties, excavating gravel and producing diesel are not included.
A59: 34 | B59: • S2a.Ref | C59: S2a.Ref: This worksheet lists references cited in the unit processes for Stage 2a, coal transport.
A60: 35 | B60: • S1b.UP.O.FarmOp | C60: S1b.UP.O.FarmOp: This worksheet is for a unit process that provides a summary of relevant input and output flows associated with the operation of farms to grow switchgrass. Inputs include fertilizer, pesticide, seeds, disposable materials and energy sources (e.g., diesel). Outputs include switchgrass and emissions of greenhouse grass constituents. The reference flow is a tonne of biomass ready for transport to the CBTL (losses in transport are assumed to be negligible). This is a gate-to-gate process, so emissions associated with producing inputs such as fertilizer, pesticides, seeds and diesel are not included.
A61: 36 | B61: • S1b.UP.C.FarmCon | C61: S1b.UP.C.FarmCon: This worksheet is for a unit process that provides a summary of relevant input and output flows associated with the construction of farms to grow switchgrass. Inputs include the land and equipment (except disposable materials, such as bale wrap) used on the farm. Output is a "farm unit" (land and equipment) ready to produce switchgrass. The reference flow is a tonne of biomass delivered to the CBTL (losses in transport are assumed to be negligible). This is a gate-to-gate process, so emissions associated with manufacturing equipment are not included.
A62: 37 | B62: • S1c.UP.D.DirLand | C62: S1c.UP.D.DirLand: This worksheet is for a unit process that provides a summary of relevant input and output flows associated with switching land use from row crops or pasture to switchgrass. This unit process evaluates direct effects of such land use changes.
A63: 38 | B63: • S1c.UP.I.IndLand | C63: S1c.UP.I.IndLand: This worksheet is for a unit process that provides a summary of relevant input and output flows associated with switching land use from row crops or pasture to switchgrass. This unit process evaluates indirect effects of such land use changes.
A64: 39 | B64: • S2b.UP.O.BioTranOp | C64: S2b.UP.O.BioTranOp: This worksheet is for a unit process that provides a summary of relevant input and output flows associated with the operation of equipment used to transport switchgrass from farms to the CBTL. Inputs include switchgrass ready for transport at the farm, diesel and lubricants. Outputs are switchgrass delivered to the CBTL and emissions from the transportation equipment. Losses of switchgrass during tranport are assumed to be negligible. The reference flow is a tonne of biomass delivered to the CBTL. This is a gate-to-gate process, so emissions associated with production of diesel and lubricants are not included.
A65: 40 | B65: • S2b.UP.C.BioTranCon | C65: S2b.UP.C.BioTranCon: This worksheet is for a unit process that rovides a summary of relevant input and output flows associated with the construction of equipment used to transport switchgrass from farms to the CBTL. Inputs are transportation equipment. Outputs are a transportation system for transporting switchgrass. The reference flow is a tonne of biomass delivered to the CBTL. This is a gate-to-gate process, so emissions associated with manufacture of the transportation equipment are not included.
A66: 41 | B66: • S12b.UP.Summ | C66: S12b.UP.Summ: This worksheet provides an interface to a series of worksheets that perform the lifecycle input, output and emissions calculations for Stage 1b (switchgrass acquisition) and Stage 2b (switchgrass transport).
A67: 42 | B67: • S12b.UP.ScenRes | C67: S12b.UP.ScenRes: This worksheet is one of several that perform the lifecycle input, output and emissions calculations for Stage 1b (switchgrass acquisition) and Stage 2b (switchgrass transport).
A68: 43 | B68: • S12b.UP.GGBase | C68: S12b.UP.GGBase: This worksheet is one of several that perform the lifecycle input, output and emissions calculations for Stage 1b (switchgrass acquisition) and Stage 2b (switchgrass transport).
A69: 44 | B69: • S12b.UP.GGBest | C69: S12b.UP.GGBest: This worksheet is one of several that perform the lifecycle input, output and emissions calculations for Stage 1b (switchgrass acquisition) and Stage 2b (switchgrass transport).
A70: 45 | B70: • S12b.UP.GGWorst | C70: S12b.UP.GGWorst: This worksheet is one of several that perform the lifecycle input, output and emissions calculations for Stage 1b (switchgrass acquisition) and Stage 2b (switchgrass transport).
A71: 46 | B71: • S12b.UP.EstHvEq | C71: S12b.UP.EstHvEq: This worksheet is one of several that perform the lifecycle input, output and emissions calculations for Stage 1b (switchgrass acquisition) and Stage 2b (switchgrass transport).
A72: 47 | B72: • S12b.UP.EqData | C72: S12b.UP.EqData: This worksheet is one of several that perform the lifecycle input, output and emissions calculations for Stage 1b (switchgrass acquisition) and Stage 2b (switchgrass transport).
A73: 48 | B73: • S12b.UP.StorMod | C73: S12b.UP.StorMod: This worksheet is one of several that perform the lifecycle input, output and emissions calculations for Stage 1b (switchgrass acquisition) and Stage 2b (switchgrass transport).
A74: 49 | B74: • S12b.UP.Loss | C74: S12b.UP.Loss: This worksheet is one of several that perform the lifecycle input, output and emissions calculations for Stage 1b (switchgrass acquisition) and Stage 2b (switchgrass transport).
A75: 50 | B75: • S12b.UP.DryT | C75: S12b.UP.DryT: This worksheet is one of several that perform the lifecycle input, output and emissions calculations for Stage 1b (switchgrass acquisition) and Stage 2b (switchgrass transport).
A76: 51 | B76: • S12b.UP.Greet | C76: S12b.UP.Greet: This worksheet is one of several that perform the lifecycle input, output and emissions calculations for Stage 1b (switchgrass acquisition) and Stage 2b (switchgrass transport).
A77: 52 | B77: • S3a.UP.O.CBTLOp | C77: S3a.UP.O.CBTLOp: This worksheet is for a unit procees that identifies the inputs and outputs to a coal and biomass to liquids (CBTL) facility. The CBTL is a gasification facility with Fischer-Tropsch (F-T) processes for generating liquid fuels. The inputs include coal, biomass and hydrogen. The outputs are liquid fuels (including F-T jet fuel, diesel and naphtha), captured CO2 and greenhouse gas emissions to the atmosphere. Five different scenarios are presented in this unit process. The reference flow is 1 kg of F-T jet fuel produced by the CBTL. This is a gate-to-gate process.
A78: 53 | B78: • S3a.UP.C.CBTLCon | C78: S3a.UP.C.CBTLCon: This worksheet is for a unit procees that identifies the materials needed to construct a coal and biomass to liquids (CBTL) facility, and the energy needed to install and de-install such a facility. The reference flow is 1 kg of F-T jet fuel produced by the CBTL. This is a gate-to-gate process.
A79: 54 | B79: • S3a.Ref | C79: S3a.Ref: This worksheet lists references cited in the unit processes for Stage 3a, construction and operation of a CBTL.
A80: 55 | B80: • S3b.UP.O.PipeOp | C80: S3b.UP.C.PipeOp: This worksheet is for an operations unit process that includes the relevant input and output flows associated with operating a pipeline that delivers captured supercritical CO2 from the CBTL facility to an EOR facility or a brine sequestration site. The primary inputs are CO2 captured at the CBTL and electricity needed to operate the pumps that may be needed to boost the pressure of CO2 in the pipeline. The outputs are CO2 either delivered to the EOR or sequestered in a brine aquifer and CO2 emitted to the atmosphere. The reference flow is a unit mass of CO2 delivered to the EOR facility or injected into the brine aquifer. This is a gate to gate process so emissions associated with producing electricity are not included.
A81: 56 | B81: • S3b.UP.C.PipeCon | C81: S3b.UP.C.PipeCon: This worksheet is for a construction unit process that includes the relevant input and output flows associated with constructing and installing/de-installing a pipeline that transports supercritical CO2, where the pipeline connects the CBTL to either 1) an enhanced oil recovery (EOR) facility in West Texas or 2) a facility near the CBTL that injects CO2 into a brine aquifer for long-term sequestration. The primary inputs are steel, concrete, and diesel. The output is an installed/ de-installed pipeline and emissions associated with the use of the diesel fuel. The reference flow is a unit mass of CO2 delivered to the EOR or injected into the brine aquifer. This is a gate to gate process so emissions associated with producing steel, concrete and diesel are not included.
A82: 57 | B82: • S3c.UP.O.EOROp | C82: S3c.UP.O.EOROp: This worksheet is for a unit process that provides a summary of relevant input and output flows associated with operating an enhanced oil recovery (EOR) facility to extract crude oil from an oil field in west TX. The primary inputs are CO2 delivered by the pipeline and various energy sources (electricity, diesel and natural gas) needed to operate the equipment at the EOR facility. The outputs are extracted petroleum products (crude oil, natural gas and natural gas liquids) and CO2 sequestered. The reference flow is 1 bbl of crude oil extracted from the oil field. This is a gate to gate process so emissions associated with producing electricity, diesel and natural gas are not included.
A83: 58 | B83: • S3c.UP.C.EORCon | C83: S3c.UP.C.EORCon: This worksheet is for a unit process that provides a summary of relevant input and output flows associated with "construction" activities for an enhanced oil recovery (EOR) facility to extract crude oil from an oil field in west TX. The term "construction" refers to site characterization, construction, closure and monitoring, verification and accounting (MVA). The primary inputs are diesel and various materials (concrete, Portland cement and steel) needed to construct and close the EOR facility. The output is a constructed EOR facility. The reference flow is 1 bbl of crude oil extracted from the oil field. This is a gate to gate process so emissions associated with producing diesel and materials are not included.
A84: 59 | B84: • S3bc.Ref | C84: S3bc.Ref: This worksheet lists references cited in the unit processes for Stage 3b, construction of a pipeline that transports supercritical CO2 to an oil field and operation of a facility that uses the CO2 in enhanced oil recovery.
A85: =A84+1 -> 60 | B85: • S4.UP.O.JFTranOp | C85: S4.UP.O.JFTranOp: This worksheet is for an operations unit process that provides a summary of relevant input and output flows for two scenarios involving the transport of F-T jet fuel from the CBTL to an airport and, ultimately, an aircraft. In both scenarios, the F-T jet fuel is transported by pipeline from the CBTL to a petroleum refinery in Wood River, Illinois where the F-T jet fuel is mixed with conventional petroleum-based jet fuel. The blended jet fuel must have at least 50% conventional jet fuel by volume. In Scenario 1, the blended jet fuel is transported by pipeline to O'Hare airport. In Scenario 2, the blended jet fuel is transported by pipeline to a bulk storage terminal. A fraction of the blended fuel is sent by pipeline to O'Hare airport; the remaining blended jet fuel is shipped by tanker trailer truck to regional airports. This is a gate to gate unit process.
A86: 61 | B86: • S4a.UP.O.JFTranOp | C86: S4a.UP.O.JFTranOp: This worksheet is for an operations unit process that provides a summary of relevant input and output flows for Stage 4a, part of Stage 4. In Stage 4a, the F-T jet fuel is transported by pipeline from the CBTL to a petroleum refinery in Wood River, Illinois where the F-T jet fuel is mixed with conventional petroleum-based jet fuel. The blended jet fuel must have at least 50% conventional jet fuel by volume. This is a gate to gate unit process. See sheet S4.UP.O.JFtranOp for more details about the input flows, output flows and GHG emissions.
A87: 62 | B87: • S4b.UP.O.JFTranOp | C87: S4b.UP.O.JFTranOp: This worksheet is for an operations unit process for Stage 4b, part of Stage 4. This unit process specifies the mass of conventional jet fuel that is mixed with F-T jet fuel to generate blended jet fuel. This unit process was created to allow upstream GHG emissions from the production of conventional jet fuel to be reported explicitly and not be reported with other GHG emissions. This is a gate to gate unit process. See sheet S4.UP.O.JFtranOp for more details about the input flows, output flows and GHG emissions.
A88: 63 | B88: • S4c.UP.O.JFTranOp | C88: S4c.UP.O.JFTranOp: This worksheet is for an operations unit process that provides a summary of relevant input and output flows for Stage 4c, part of Stage 4. Stage 4c has two scenarios for transporting the blended jet fuel to aircraft. In Scenario 1, the blended jet fuel is transported by pipeline to O'Hare airport. In Scenario 2, the blended jet fuel is transported by pipeline to a bulk storage terminal. A fraction of the blended fuel is sent by pipeline to O'Hare airport; the remaining blended jet fuel is shipped by tanker trailer truck to regional airports. This is a gate to gate unit process. See sheet S4.UP.O.JFtranOp for more details about the input flows, output flows and GHG emissions.
A89: =A85+1 -> 61 | B89: • S4.UP.C.JFTranCon | C89: S4.UP.C.JFTranCon: This worksheet is for a construction unit process that provides a summary of relevant input and output flows for different scenarios involving construction, installation and de-installation of equipment that transports F-T jet fuel from a CBTL facility to a petroleum refinery for blending with conventional jet fuel and then transports the blended jet fuel to one or more airports. This unit process references two other unit processes in sheets S4.UP.C.Pipe and S4.UP.C.Truck.
A90: =A86+1 -> 62 | B90: • S4a.UP.C.JFTranCon | C90: S4a.UP.C.JFTranCon: This worksheet is for a construction unit process that provides a summary of relevant input and output flows for Stage 4a of Stage 4. This unit process involves construction, installation and de-installation of a pipeline that connects to a main pipeline that transports F-T jet fuel from a CBTL facility to a petroleum refinery for blending with conventional jet fuel. See sheet S4.UP.C.JFTranCon for more details about the input flows, output flows and GHG emissions.
A91: =A87+1 -> 63 | B91: • S4c.UP.C.JFTranCon | C91: S4c.UP.C.JFTranCon: This worksheet is for aconstruction unit process that provides a summary of relevant input and output flows for Stage 4c of Stage 4. This unit process involves construction of tanker trailer trucks that transport blended jet fuel to regional airports. See sheet S4.UP.C.JFTranCon for more details about the input flows, output flows and GHG emissions.
A92: =A89+1 -> 62 | B92: • S4.UP.C.Pipe | C92: S4.UP.C.Pipe: This worksheet is for a construction unit process that provides a summary of relevant input and output flows associated with constructing and installing/de-installing a pipeline that connects the CBTL to a primary jet fuel pipeline. The primary inputs are steel to construct the pipe and diesel fuel to operate the machinery that will install or de-install the pipeline. The output is an installed/ de-installed pipeline segment and emissions associated with the use of the diesel fuel. The reference flow is a unit mass of blended jet fuel delivered to an aircraft fuel tank. This is a gate to gate process so emissions associated with manufacturing steel and producing diesel are not included.
A93: 63 | B93: • S4.UP.C.Truck | C93: S4.UP.C.Truck: This worksheet is for a construction unit process that provides a summary of relevant input and output flows associated with constructing a 7,500 gallon tanker trailer truck that can haul et fuel from a bulk terminal to an airport. The inputs are materials to construct the tractor and trailer. The output is a constructed tanker trailer truck. The reference flow is a unit mass of jet fuel delivered to an aircraft fuel tank. This is a gate to gate process so emissions associated with manufacturing materials are not included.
A94: 64 | B94: • S4.Ref | C94: S4.Ref: This worksheet lists references cited in the unit processes for Stage 4, transport of F-T jet fuel from the CBTL to the airport.
A95: 65 | B95: • S5.UP.O.FTJFUseOp | C95: S5.UP.O.FTJFUse: This worksheet is for a unit process that provides a summary of relevant input and output flows associated with use of blended jet fuel to power an aircraft. In this unit process, all jet fuel delivered to the aircraft fuel tank is assumed to be combusted (i.e., losses are assumed to be negligible). The input is blended jet fuel delivered to the aircraft fuel tank and the outputs are combusted blended jet fuel and greenhouse gas emissions.
A96: 66 | B96: • S5.Ref | C96: S5.Ref: This worksheet lists references cited in the unit processes for Stage 5, combustion of blended jet fuel in an aircraft.
A97: 67 | B97: • Sec.UP.All | C97: Sec.UP.All: This worksheet provides the energy resource inputs and greenhouse gas emissions for a large number of secondary unit processes. In most cases, the inputs and greenhouse gas emissions are for cradle to gate unit processes.
A98: Miscellaneous worksheets.
A99: =A97+1 -> 68 | B99: • UP Intro | C99: UP Intro: This worksheet provides an overview of the structure and contents of a unit process worksheet. The worksheet also describes how to create a unit process worksheet.
A100: 69 | B100: • SX.UP.X.Template | C100: SX.UP.X.Template: This worksheet provides a blank template for creating a unit process worksheet.
A101: 70 | B101: • DQI | C101: DQI: This worksheet summarizes the Data Quality Indicators.
A102: 71 | B102: • Fuel LHV HHV | C102: Fuel LHV HHV: This worksheet provides lower heating values (LHVs) and higher heating values (HHVs) for a number of fuels. The source of the table is Pacific Northwest Laboratory's "Hydrogen Resource Center". Note that the original reference for the values in this table is Argon National Laboratory's GREET Model.

Sheet Summ Control
A1: First 5 rows reserved.
A2: Return to Workbook Contents sheet
A6: Overview of Work Sheet for Summarizing Results for a Stage
A7: Inter-Agency Workgroup for the Coal and Biomass to Liquid (Jet Fuel) Case Study
A9: Introduction
A10: The work sheet entitled "Sxx.Summ" is designed to summarize the input flows and output flows (products, co-products and emissions) for each Unit Process that makes up a Stage xx in the life cycle assessment. The summary work sheet summarizes flow results for each Unit Process and sums flows for related Unit Processes to provide total flows for the Stage. The work sheet is organized so that information for a flow is provided in a row of the sheet, while all results for a Unit Process or category summing Unit Processes are given in specific columns in the sheet. Information for each Unit Process is provided in one column in the work sheet. The columns that sum flows from related processes are referred to as Summation Columns. In each Unit Process column or Summation Column, three values are provided for each flow: 1) the value in units relative to the reference flow for the Unit Process; 2) the value in units relative to the Stage reference flow; and 3) the value in units relative to the functional unit (i.e., the reference flow for the overall System).
A11: Processes are organized by Level number. Level 0 is the System. Level 1 is the Stage. Levels 2 and higher are sub-stage processes. A Unit Process can occur at any Level above 0, although there are unlikely to be any Level 1 Unit Processes (i.e., stages are unlikely to be comprised of only one Unit Process).
A12: As mentioned previously, this sheet summarizes flows for individual Unit Processes, but the work sheet is also organized so that flows for groups of related unit processes can be summed. In particular, the first five columns in the work sheet with flow data provide summary flows for, first, the Stage as a total and, then for the four major process evaluation categories: 1) operation, 2) construction, 3) direct land use and 4) indirect land use.
A13: There is a macro that helps set up the summary work sheet and the command button to execute this macro is further down on this work sheet. The macro should only be executed after the step-by-step procedure has been followed so that the summary work sheet has been put in order and the macro will execute correctly.
A14: The structure of a stage summary work sheet is illustrated using the summary worksheet "S1a.Summ", which summarizes results for Stage 1a. The summary work sheet "S1a.Summ" has seven sections: 1) "General Information", 2) "Characteristics of Unit Processes and Multi-Component Processes", 3) "Summary of Inputs", 4) "Summary of Output Flows-Products and Co-Products", 5) "Summary of Emissions Using 1996 IPCC Global Warming Potentials", 6) "Summary of Emissions Using 2001 IPCC Global Warming Potentials" and 7) "Summary of Emissions Using 2007 IPCC Global Warming Potentials".
A15: The work sheet "S1a.Summ" provides a template that can be modified for any stage where Unit Process data is available.
A16: A Step-by-Step Guide to Filling Out the Summary Work Sheet
A17: Step 1: In the "General Information" section of the summary work sheet (upper left part), fill in information about the Stage, such as the Stage number, Stage name and Stage reference flow.
A18: Step 2: In the "General Information" section of the summary work sheet, enter a multiplier that translates the Stage reference flow to the functional unit. For example, how many kg of coal ready for transport are required to produce 1 MJ LHV of jet fuel combusted. If this is unknown, put in a placeholder such as 1.
A19: Step 3: In this step, the process flow diagram should be constructed for the Stage to determine the Unit Processes needed and how the reference flows from one process connect to another (e.g., how many kg of diesel are needed to extract a kg of coal during the operation of a coal mine). Also, determine what input flows and output flows should be included in the summary sheet. The emissions (i.e., greenhouse gases) are already included in the summary sheet.
A20: Step 4: For each Unit Process, insert a column in the spreadsheet. Also add columns for any Summation Columns desired. Unit Process columns are labeled "Unit Process" in row 21 and this label is colored blue. Summation Columns are colored green in row 21 and the label should be modified to reflect the Level the Summation Column is providing an intermediate summation for. When adding a Unit Process it is easiest to copy an existing Unit Process column, insert it and modify it. Similarly, for a Summation Column, it is best to copy an existing Summation Column, insert it and modify it. For certain elemental Unit Processes (such as Production and Delivery of Diesel Fuel or Production and Delivery of Electricity) that are included in more than one lower Level numbered process, it will probably be necessary to repeat the elemental Unit Process. At any rate, the total demand for flows from such elemental Unit Processes must be accounted for.
A21: Step 5: In the section of the work sheet labeled "Characteristics of Unit Processes and Multi-Component Processes", fill in the following information for each Unit Process. Enter the title of the Unit Process and fill in the various Levels in the hierarchy associated with the Unit Process. Enter the name of the work sheet where information for the Unit Process is stored. This can be done by creating a link to cell C5 in the Unit Process work sheet. The Process Evaluation Category, Process Scope and Reference Flow Value will be filled in by the macro. Fill in the units for the reference flow for the Unit Process. Next, fill in the multiplier that translates flows in the Unit Process to the next lower Level number and fill in the units for this multiplier. For example, if the Unit Process is at Level 4, then enter the multiplier that translates flows relative to the reference flow for the Unit Process to flows relative to the reference flow for the process at Level 3. Next fill in the multiplier that translates flows in the Unit Process to flows at the Stage Level and fill in the units for this multiplier. This is a multiplier that translates flows in the Unit Process relative to the reference flow for the Unit Process to flows at the Stage Level relative to the reference flow for the Stage. If the Unit Process is at Level 4, then the multiplier to the Stage Level can be obtained by multiplying together the multiplier from Level 4 to 3, the multiplier from Level 3 to 2 and the multiplier from Level 2 to 1. Finally, fill in the multiplier that translates flows in the Unit Process to flows at the System Level. This is a multiplier that translates flows in the Unit Process relative to the reference flow for the Unit Process to flows at the System Level relative to the functional unit.
A22: Note that information in the first four rows of this section of the work sheet (i.e., "Characteristics of Unit Processes and Multi-Component Processes") is automatically reproduced at the beginning of the "Inputs", "Outputs" and "Emissions" sections lower in the work sheet.
A23: Step 6: In the section of the summary work sheet labeled "Characteristics of Unit Processes and Multi-Component Processes", fill in the following information for each Summation Column. Enter the title of the Summation Column and fill in the various Levels in the hierarchy associated with the Summation Column. There is no work sheet associated with a Summation Column, so no work sheet name should be entered. The Process Evaluation Category, Process Scope and Reference Flow Value should be filled in because the macro does not act on Summation Columns. Fill in the value and units for the reference flow for the Summation Column and fill in the various multipliers as discussed in Step 5.
A24: Step 7: In the section of the summary work sheet labeled "Summary of Inputs", fill in the following information for the input flows for which summary information is desired. This section is divided into three parts, a part labeled "Input Flows (Relative to System FU)", where System FU refers to the functional unit of the System, a part labeled "Input Flows (Relative to Stage RF)", where Stage RF refers to the Stage Level reference flow and a part labeled "Input Flows (Relative to UP RF)", where UP RF refers to the Unit Process reference flow. The basic information on input flows for a Unit Process is provided in the third part of this section (i.e., the part labeled "Input Flows (Relative to UP RF)"). In this part, fill in the information for the first three columns (flow name, flow symbol and flow unit) for which summary information is desired. When the macro is run, the macro will read the symbol name for each flow and try to find the same symbol name in the input flow part of the Unit Process work sheet. If it finds a match, the macro will create a formula in the summary work sheet linking the flow back to the Unit Process work sheet. It is important that the flow symbol be entered correctly (i.e., match the flow symbols in the Unit Process work sheets) for the macro to run properly. The comparison is not sensitive to case, so the following symbols are treated the same in the macro evaluation: diesel_tot, Diesel_tot and DIESEL_TOT.
A25: For flows in Unit Processes in the Stage Level part of this section (i.e., the part labeled "Input Flows (Relative to UP RF)"), there are formulas multiplying the flow values in the third part by the multipliers provided in the previous section which translates the flows relative to the Unit Process reference flow to flows relative to the Stage Level reference flow. Similarly, for flows in Unit Processes in the System Level part of this section (i.e., the part labeled "Input Flows (Relative to System FU)"), there are formulas multiplying the flow values in the third part by the multipliers provided in the previous section which translates the flows relative to the Unit Process reference flow to flows relative to the System Level functional unit.
A26: If more rows are needed it is best to copy rows, insert them and modify them. Rows will need to be inserted in each part of this section and it will be necessary to make sure the formulas in the first two parts are correct. For this reason, it is best to insert rows in the third part first (i.e., the part labeled "Input Flows (Relative to UP RF)") and modify the flow information in the new rows. Rows should then be added to the first two parts of this section of the work sheet and formulas from existing rows in each part copied to the new rows. For the Summation Columns, formulas will need to be entered to create the desired summary values. Note that summary results cannot typically be generated in the third part of this section because the reference flows for Unit Processes are different, which means the flows for different Unit Processes cannot be added (i.e., the units of the flows in different Unit Processes are generally not compatible). However the flows in the first two parts of this section (the parts labeled "Input Flows (Relative to System FU)" and "Input Flows (Relative to Stage RF)") are compatible, because they are all relative to either the Stage Level reference flow of the System Level functional unit, and can be added. Note that the formulas in the columns in the first part of the work sheet that summarize flows for Operations, Construction, Direct Land Use and Indirect Land Use will also have to be modified to correctly reflect flows in the stage for each of these categories. Note: In order to sum values for flows across unit processes, the flows must all be in the same units. For example, emissions of CO2 must be in kg per the relevant reference flow.
A27: Step 8: In the section of the summary work sheet labeled "Summary of Output Flows-Products and Co-Products", fill in the information for output flows (products and co-products) as described in Section 7 for input flows. As described in Section 7, rows may need to be added to accommodate all the output flows for the stage. Also, for the Summation Columns, formulas will need to be entered to create the desired summary values.
A28: Step 9: In the sections of the summary work sheet labeled "Summary of Emissions Using 1996 IPCC Global Warming Potentials", "Summary of Emissions Using 2001 IPCC Global Warming Potentials" and "Summary of Emissions Using 2007 IPCC Global Warming Potentials", fill in the information for emissions as described in Section 7 for input flows. Since only greenhouse gas emissions are being evaluated, no rows will need to be added or removed in these sections. However, for the Summation Columns, formulas will need to be entered to create the desired summary values.
A29: Step 10: Before executing the macro, make sure an "X" is placed in the first column of each row in the part of the "Inputs", "Outputs" and "Emissions" sections with flows relative to Unit Process reference flows (i.e., the part with a title that includes "(Relative to UP RF)"). Also, make sure an "X" is placed in the first row of each Unit Process column. Note: In the first column of the summary work sheet are the labels "Sheets", "Inputs", "Outputs", "Emissions" and "End". Also, in the first row of the summary work sheet is the label "End". These labels are used by the macro. If they are removed, the macro will not work properly. In particular, the label "End" should be placed in the first row of the first column after the last Unit Process column or Summation Column.
A30: Step 11: The macro can process multiple summary worksheets in one run. Enter below the names of all the summary worksheets that are to be processed. The macro keeps processing summary sheets until a blank cell is reached.
A31: Step 12: Run the macro. The macro will update information and flow values for Unit Process columns in each summary worksheet.
A32: Step 13: In the upper right portion of the sheet "S1a.Summ" is pre-formatted General Information text that can be copied and pasted over Unit Process columns and Summation Columns to help finalize the formatting of the summary work sheet for printing. Also to the far right are section headings that can be copied and pasted to help finalize the formatting of the summary work sheet for printing.
A44: Inputs for setting up summary sheet
A45: Summary sheet name: | B45: S1a.Summ | C45: Enter name of first work sheet with summary table, leave cell blank to stop macro
B46: S2a.Summ | C46: Enter name of another work sheet with summary table, leave cell blank to stop macro
B47: S1b.Summ | C47: Enter name of another work sheet with summary table, leave cell blank to stop macro
B48: S1c.Summ | C48: Enter name of another work sheet with summary table, leave cell blank to stop macro
B49: S2b.Summ | C49: Enter name of another work sheet with summary table, leave cell blank to stop macro
B50: S3a.Summ | C50: Enter name of another work sheet with summary table, leave cell blank to stop macro
B51: S3b.Summ | C51: Enter name of another work sheet with summary table, leave cell blank to stop macro
B52: S3c.Summ | C52: Etc.
B53: S4.Summ | C53: Etc.
B54: S4a.Summ | C54: Etc.
B55: S4b.Summ | C55: Etc.
B56: S4c.Summ | C56: Etc.
B57: S5.Summ | C57: Etc.
C58: Etc.
C59: Etc.
C60: Etc.
C61: Etc.
C62: Etc.
C63: Etc.
C64: Etc.
C65: Etc.

Sheet Prob & SA Control
A1: First 5 rows reserved.
A2: Return to Workbook Contents sheet
A6: Overview of Worksheet for Performing Probabilistic Analysis and Sensitivity Analysis
A7: Inter-Agency Workgroup for the Coal and Biomass to Liquid (Jet Fuel) Case Study
A9: Introduction
A10: This worksheet provides the controls necessary for performing a probabilistic analysis similar to that performed by commercial programs such as @Risk and a sensitivity analysis which generates Tornado Charts.
A11: Overview of Probabilistic Analysis
A12: The probabilistic analysis is performed by executing a macro coded in Visual Basic for Applications (VBA), the macro language for Excel (and all Microsoft Office applications).
A13: In overview, the probabilistic analysis has the following elements.
A14: 1. In the spreadsheet, the user defines values in specific cells as random variables (i.e., the values in these cells are randomly selected from a specified probability distribution). The user does this by entering volatile, probabilistic functions in these cells. Functions for randomly selecting values from a uniform distribution, triangular distribution, truncated normal distribution, truncated log-normal distribution, truncated Pareto distribution and discrete distribution are available and described below. Any cell that has formulas that reference cells that are random variables also becomes a random variable. Depending on how interconnected the cells are in a spreadsheet as a consequence of the formulas in the spreadsheet, defining a handful of cells as random variables can result in hundreds of other cells becoming random variables.
A15: 2. The user also defines specific cells where results are desired. These are referred to as result cells and, presumably, these are cells that are also random variables either because they were specifically defined as random variables (see above) or because they have formulas in them that reference cells that are random variables.
A16: 3. Finally, the user defines the number of iterations desired in the probabilistic analysis.
A17: 4. When the macro is executed, the basic calculation procedure is as follows. - First, the macro puts the entire spreadsheet in manual calculation mode. - Next, the macro enters a For ... Next loop and cycles through the user-specified iterations. For each iteration, the entire spreadsheet is recalculated (actually all open spreadsheet files are recalculated; so to keep execution time to a minimum it is best to close all other spreadsheet files). When the spreadsheet is recalculated, a new value is randomly selected for each random variable from the distribution defining that variable and all the cells with formulas depending on that random variable are recalculated. After the recalculation is complete, the macro stores the results for the desired result cells in a VBA array. - After a specified number of iterations, the results are transferred from the VBA array to a temporary work sheet for temporary storage.
A18: 5. After all the iterations are completed, the macro then cycles through the results for each result cell. The results are read from the temporary worksheet into a VBA array and transferred to a new sheet for permanent storage. The results are also processed with statistics, distributions and histograms being generated for each result cell. Finally, statistics for each result cell are stored in a summary table in a new sheet that is different from the sheet that stores the detailed results for each result cell.
A19: ------ Acknowledgement ----------------------------------------------------------------------------------------------------------------------------------------------------------------------------------------------------------------
A20: The basic idea for the probabilistic analysis comes from Humberto Barreto and Frank Howland who developed the MCSim Excel add-in which performs Monte Carlo probabilistic analysis. The add-in was developed as a companion tool for their econometrics textbook:
A21: Introductory Econometrics: Using Monte Carlo Simulation with Microsoft Excel
A22: The textbook was published in 2005 by Cambridge University Press.
A23: Parts of the MCSim code has been incorporated into the macro that performs the probabilistic analysis in this spreadsheet.
A24: As of March 2010, the MCSim add-in can be found at: http://www3.wabash.edu/econometrics/EconometricsBook/UpdatesTypos.htm ---------------------------------------------------------------------------------------------------------------------------------------------------------------------------------------------------------------------------------------------------
A25: Overview of Worksheet for Performing Probabilistic Analysis and Sensitivity Analysis (Cont'd)
A26: Inter-Agency Workgroup for the Coal and Biomass to Liquid (Jet Fuel) Case Study
A28: A Step-by-Step Procedure for Performing a Probabilistic Analysis
A29: Step 1: For any variable in the Unit Process sheets (or any other sheet for that matter) that has significant uncertainty, the user can characterize that uncertainty by defining the variable as a random variable. There are seven functions available for defining random variables, all of the form NETLR.... These functions are described below. The easiest way to define a variable in a Unit Process sheet as a random variable is to use the function NETLRFunctionRng. This function was created to work specifically with the Unit Process sheets, which have several columns dedicated to characterizing the uncertainty of variables (i.e., specifying types of distributions and the parameters that define the distributions). The NETLRFunctionRng function is discussed below and the characterization of uncertainty in variables in the Unit Process sheets is discussed in the "UP Intro" sheet.
A30: Any variable in the spreadsheet that is defined by a formula that depends on a random variable becomes a random variable. Therefore, defining a few key variables as random variables can result in a significant part of the remaining variables in the spreadsheet being defined through formulas as random variables.
A31: Step 2: After variables have been defined as random variables, the user must specify which variables they wish to obtain probabilistic results for. These variables, which are in specific cells in the spreadsheet (typically in Unit Process sheets or summary sheets), are referred to as result cells. The result cells can be cells defined as random variables through an NETLR... function or they can be cells that have become random variables through formulas that depend on one or more random variables. The result cells are specified below in the part of the spreadsheet where macro inputs are defined and the macros are executed.
A32: Note: The variables specified for the sensitivity analysis are also entered in this part of the sheet. Many variables will be selected as result cells for the probabilistic analysis and variables to be evaluated in the sensitivity analysis. However, the user can choose to specify some variables entered in this part of the spreadsheet as result cells only and not include these variables in the sensitivity analysis. Similarly, the user can choose to specify some variables entered in this part of the spreadsheet as variables to be evaluated in the sensitivity analysis, but not specify these variables as result cells for the probabilistic analysis.
A33: Eight fields must be defined for each result cell. A special function, NETLVarProp, has been created that works specifically with the Unit Process sheets and can be used to specify the first six fields for a result cell. This function is discussed below after the eight fields are discussed. The eight fields are as follows.
A34: - Variable name: This cell typically stores the name of the result cell. In some cases, this cell may store a title for a group of results cells. This title is repeated in the table that summarizes the statistics for the results cells. If a title is entered in this field, then this needs to be indicated in the eighth field where a "T" for title should be entered. Note: If this cell is blank, it signals the macro that the input of result cells (or titles) is complete.
A35: - Variable symbol: This cell stores a symbol that is a short-hand reference to the results cell. Typically the variable name is longer than the variable symbol.
A36: - Worksheet name: This is the name of the work sheet where the result cell is found.
A37: - Variable address: This is the address (such as "I51") for the result cell.
A38: - Value: This cell stores the value of the result cell and must be a reference to the cell where the result cell is found. The special function NETLVarProp creates such a reference. When the macro recalculates the spreadsheet, the macro reads the result in the Value cell and stores it. Thus the Value cell must be a link to the result cell reflecting the changes that occur in the result cell with each iteration of the probabilistic analysis.
A39: - Units: This cell stores the units of the variable associated with the results cell.
A40: - Probabilistic result desired: Enter an "X" in this cell if probabilistic results are desired for this variable. As discussed above, variables specified for both the probabilistic analysis and the sensitivity analysis are entered in this part of the sheet. For those variables where probabilistic results are desired (i.e., results cells), an "X" should be entered in this field.
A41: - Title (T) or Output (O): This field specifies if the first field, the variable name, is the title of a category (T) or the name of a variable in a result cell (i.e., O for output).
A42: Step 3: Using the fields below the command button, the user should specify the number of iterations for the probabilistic analysis and the number of significant figures that will be reported in the results.
A43: Overview of Worksheet for Performing Probabilistic Analysis and Sensitivity Analysis
A44: Inter-Agency Workgroup for the Coal and Biomass to Liquid (Jet Fuel) Case Study
A46: Step 4: The macro for running the probabilistic analysis can be executed by clicking on the command button below. As the macro is running, the status of the macro will be displayed. Depending on the number of random variables in the entire spreadsheet and the number of iterations specified, the macro can take a bit of time to execute (several minutes). The macro recalculates all open work books at each iteration, so it is best to close all work books except this one (unless there are links to random variables in other work books) before executing the macro.
A47: The macro generates two result or output sheets, "Res ProbS n" and "Res ProbD n". - Res ProbS n: This sheet provides a table that presents summary statistics (minimum, maximum, mean, median, etc.) for each result cell. - Res ProbD n: This sheet provides detailed results for each result cell. This includes summary statistics, information on how each variable is distributed, and a plot displaying a histogram of the probability density and the cumulative distribution. - The "n" in "Res ProbS n" and "Res ProbD n" is a positive integer. When the macro runs, it checks the number n of all existing "Res ProbS n" and "Res ProbD n" sheets and creates new result sheets with an integer n different from the existing sheets.
A48: Description of NETLVarProp Function
A49: The function NETLVarProp is a function designed to work with the Unit Process sheets to retrieve information on random variables. The function has the following form: NETLVarProp(Xcell, Prop) where Xcell is a reference to the cell where the random variable is defined and Prop controls the information returned by the function. Prop can be specified as one of the following values.
A50: - Var_Value: When Prop is set to this value, NETLVarProp returns the value of the random variable. - Sheet_Name: When Prop is set to this value, NETLVarProp returns the name of the work sheet where Xcell is located. - Var_Address: When Prop is set to this value, NETLVarProp returns the address of Xcell (e.g., "$I$51"). The function NETLVarProp can be used with any random variable with the above designations of Prop since these only require a reference to the cell, Xcell, where the random variable is defined. The following specifications of Prop only work with the Unit Process sheets because these specifications of Prop cause NETLVarProp to retrieve information in cells to the left and right of Xcell.
A51: - Var_Name: When Prop is set to this value, NETLVarProp returns the name of the random variable, which is assumed to be stored in a cell 7 columns to the left of Xcell. - Var_Sym: When Prop is set to this value, NETLVarProp returns the symbol for the random variable, which is assumed to be stored in a cell 6 columns to the left of Xcell. - Var_Units: When Prop is set to this value, NETLVarProp returns the units for the random variable, which is assumed to be stored in a cell 1 column to the right of Xcell. - Var_Min: When Prop is set to this value, NETLVarProp returns the minimum value for the random variable, which is assumed to be stored in a cell 8 columns to the right of Xcell. - Var_Max: When Prop is set to this value, NETLVarProp returns the maximum value for the random variable, which is assumed to be stored in a cell 9 columns to the right of Xcell.
A52: Overview of Worksheet for Performing Probabilistic Analysis and Sensitivity Analysis
A53: Inter-Agency Workgroup for the Coal and Biomass to Liquid (Jet Fuel) Case Study
A55: Description of NETLR… Functions Available for Specifying Random Variables
A56: The following NETLR... functions are available for specifying random variables.
A57: NETLRUnif(Xmin , Xmax): The random variable X is characterized by a uniform distribution with a minimum value of Xmin and a maximum value of Xmax.
A58: NETLRTria(Xmin , Xmax , Xmode): The random variable X is characterized by a triangular distribution with a minimum value of Xmin, a maximum value of Xmax and a mode of Xmode.
A59: NETLRNorm(Xmean, Xstd_dev, Xmin (Opt) , Xmax (Opt)): The random variable X is distributed according to a truncated normal distribution with a mean of Xmean and standard deviation of Xstd_dev. If X is truncated, it has a minimum value of Xmin and a maximum value of Xmax. Note 1: The mean and standard deviation are for the untruncated form of the distribution. Note 2: Xmin and Xmax are optional arguments. If not included, Xmin is assumed to be -infinity and Xmax is assumed to be +infinity (i.e., the normal distribution is assumed to be un-truncated or unbounded). Xmin and Xmax can be specified as None. If Xmin is set to None, then it is assumed to be -infinity. If Xmax is set to None, then it is assumed to be +infinity.
A60: NETLRLogNorm(Xmean, Xstd_dev, Xmin (Opt) , Xmax (Opt)): The random variable X is distributed according to a truncated log-normal distribution with a mean of Xmean and standard deviation of Xstd_dev. If X is truncated, it has a minimum value of Xmin and a maximum value of Xmax. Note 1: The mean and standard deviation are for the untruncated form of the distribution. Note 2: The mean and standard deviation are for the data before they are log-transformed, where "log" refers to the natural logarithm. If Xmean and Xstd_dev are the mean and standard deviation of the distribution before the data is log-transformed, then the mean (Xmean_ln) and standard deviation Xstd_dev_ln of the log-transformed data (which is, by definition, normally distributed) are given by the following expressions. Xmean_ln = Log(Xmean / Sqr((Xstd_dev / Xmean) ^ 2 + 1)) where Log is the natural logarithm Xstd_dev_ln = Sqr(Log((Xstd_dev / Xmean) ^ 2 + 1)) where Log is the natural logarithm and Sqr is the square root Note 3: Xmin and Xmax are optional arguments. If not included, Xmin is assumed to be 0 and Xmax is assumed to be +infinity (i.e., the log-normal distribution is assumed to be un-truncated or unbounded). Xmin and Xmax can be specified as None. If Xmin is set to None, then it is assumed to be 0. If Xmax is set to None, then it is assumed to be +infinity.
A61: NETLRPareto(ashape, Xmin , Xmax): The random variable X is distributed according to a bounded or truncated Pareto distribution with a shape factor of ashape, a minimum value of Xmin and a maximum value of Xmax. The Pareto distribution is a power-law distribution with a probability density function, f(X), and cumulative distribution function, F(X), defined as follows. f(X) = (ashape * (Xmin ^ ashape) * X ^ (-ashape - 1)) / (1 - (Xmin / Xmax) ^ ashape) F(X) = (1 - (Xmin ^ ashape) * (X ^ -ashape)) / (1 - (Xmin / Xmax) ^ ashape)
A62: NETLRDiscreteRng(Pvec, Xvec): The random variable X is distributed according to a discrete distribution where Xvec is a range of cells specifying the value of the random variable X and Pvec is a range of cells specifying the associated probability. The values in Xvec must be ordered in increasing value and the values in Pvec must sum to 1.
A63: NETLRFunctionRng(cell1:cell2): This function was formulated to work with the Unit Process sheets in specifying the type of distribution that characterizes a random variable. This function processes data in columns O through AU of the Unit Process sheets. These columns contain information which specify the type of distribution and the parameters necessary to define the distribution. Thus, the argument "cell1" should be a row in column O and the argument "cell2" should be the same row in column AU (e.g., O51:AU51).
A64: Arguments in the NETLR… functions:
A65: Xmin is the minimum value.
A66: Xmax is the maximum value.
A67: Xmode is the mode (i.e., the most likely value X is likely to assume).
A68: Xmean is the mean of the untruncated form of the distribution.
A69: Xstd_dev is the standard deviation of the untruncated form of the distribution.
A70: ashape is the shape parameter in the Pareto distribution.
A71: Pvec and Xvec are single row or single column ranges where Xvec stores discrete values of X and Pvec stores the associated probabilities. The values in Xvec must be organized in ascending order (i.e., they must be increasing) and the values in Pvec must sum to 1.
A72: Overview of Worksheet for Performing Probabilistic Analysis and Sensitivity Analysis
A73: Inter-Agency Workgroup for the Coal and Biomass to Liquid (Jet Fuel) Case Study
A75: Overview of Sensitivity Analysis
A76: The sensitivity analysis is performed by executing a macro coded in Visual Basic for Applications (VBA), the macro language for Excel (and all Microsoft Office applications).
A77: The sensitivity analysis systematically evaluates the influence of input variables on the results for a single output variable. - The user specifies up to 25 input variables and one output variable that, presumably, depends on the input variables. For each input variable, the user specifies a "best estimate" along with a minimum value and maximum value. - The macro temporarily stores all the initial formulas or values in the cells defining the input variables and then sets all input values to their best estimate, recalculates the spreadsheet and stores the result for the output variable, referred to as the "base case result".
A78: - The macro then loops through all the input variables, changing the best estimate for one input variable to the minimum value, recalculating the spreadsheet, storing the result for the output variable, changing the minimum value to the maximum value for the same input variable, recalculating the spreadsheet, storing the result for the output variable and, finally, setting the input variable back to the best estimate. The macro also calculates and stores the absolute value of the difference between the outputs for the minimum and maximum values of the input variable. This result is referred to as the "absolute difference" for an input variable. - After the macro has looped through all the input variables, it restores the initial formulas or values to the cell defining each input variable.
A79: - After the macro has looped through all the input variables, the macro sorts all the input variables based on their "absolute difference". The input variable with the highest "absolute difference" is listed first, the input variable with the next highest "absolute difference" is listed next and so on. - The macro then generates a Tornado chart which presents the results of the sensitivity analysis (graphically displays the results for each input variable).
A80: Note: For the sensitivity analysis to be able to generate reproducible results, all volatile functions in the spreadsheet must be made non-volatile. Therefore, before the macro calculates any results, it sets a control parameter that causes all the NETLR... functions to calculate the mean value rather than a randomly selected value. Analytical expressions are available for calculating the mean for the uniform, triangular and discrete distributions. An analytical expression is also available for calculating the mean for most cases of the Pareto distribution. For the truncated normal and log-normal distributions and certain cases of the Pareto distribution, the mean is calculated numerically. This calculation is done over a number of evenly spaced intervals between 0 and 1 in probability space. The default for the number of intervals is 301 and since this calculation is done for each random variable specified using the NETLRNorm and NETLRLogNorm functions (and sometimes the random variables specified using the NETLRPareto function), the macro for the sensitivity analysis can sometime take a few minutes to execute. The user can control the number of intervals that this calculation uses. Fewer intervals result in shorter execution time, but the resulting mean estimates will be somewhat less accurate. For random variables that are not particularly skewed, limited testing suggests that as few as 21 or 31 intervals result in estimates of the mean that are accurate to about two significant figures.
A81: A Step-by-Step Procedure for Performing a Sensitivity Analysis
A82: Step 1: For a sensitivity analysis, the user must specify which variable they wish to choose as an output variable and which variables they wish to designate as input variables. The input for the sensitivity analysis overlaps with the input for the probabilistic analysis. For the sensitivity analysis, the first six fields that must be specified for result cells in the probabilistic analysis are also required for the input and output variables in the sensitivity analysis. These six input fields are discussed above in the step-by-step procedure for performing a probabilistic analysis.
A83: Note: As discussed above, many variables will be selected as result cells for the probabilistic analysis and variables to be evaluated in the sensitivity analysis. However, the user can choose to specify some variables entered in this part of the spreadsheet as result cells only and not include these variables in the sensitivity analysis. Similarly, the user can choose to specify some variables entered in this part of the spreadsheet as variables to be evaluated in the sensitivity analysis, but not specify these variables as result cells for the probabilistic analysis.
A84: Step 2: For each input variable in the sensitivity analysis, the user must specify three additional fields. The special function NETLVarProp (described above), which works specifically with the Unit Process sheets, can be used to specify the first two fields. The three fields are as follows.
A85: - Minimum: This cell stores the minimum of an input variable. The special function NETLVarProp can be used to obtain the information necessary for this field.
A86: - Maximum: This cell stores the maximum of an input variable. The special function NETLVarProp can be used to obtain the information necessary for this field.
A87: - Best Estimate: This cell stores the "best estimate" of an input variable. The special function NETLVarProp cannot be used to obtain the information necessary for this field.
A88: Step 3: To the right of the column where the best estimates are entered, there are 20 columns where the input variables and output variable can be specified for up to 20 individual sensitivity analyses. These columns all begin with the heading "Enter X to Make Column Active". As indicated by the heading, the first row below the heading should have an "X" place in it to make the column active. In the remaining rows in the column, an "I" should be placed in the row of a variable that is an input variable and an "O" should be placed in the row of the output variable.
A89: Step 4: Using the fields below the command button, the user should specify the number of significant figures that will be reported in the results and the number of intervals that will be used to calculate mean values for the NETLR… functions.
A90: Overview of Worksheet for Performing Probabilistic Analysis and Sensitivity Analysis
A91: Inter-Agency Workgroup for the Coal and Biomass to Liquid (Jet Fuel) Case Study
A93: Step 5: The macro for running the sensitivity analysis can be executed by clicking on the command button below. As the macro is running, the status of the macro will be displayed. The macro can take a bit of time to execute (several minutes). Each time the macro tells Excel to recalculate the workbook , Excel actually recalculates all open work books, so it is best to close all work books except this one (unless there are links to other work books) before executing the macro.
A94: The macro generates one result or output sheet, "Res Sens n". - Res Sens n: This sheet provides a table that presents the results of each sensitivity analysis and also provides a Tornado Chart for each sensitivity analysis. - The "n" in "Res Sens n" is a positive integer. When the macro runs, it checks the number n of all existing "Res Sens n" sheets and creates a new result sheet with an integer n different from the existing sheets.
A95: ------ Acknowledgement ----------------------------------------------------------------------------------------------------------------------------------------------------------------------------------------------------------------
A96: The basic idea for the Tornado Charts comes from Juan Carlos Méndez-García in a posting to his blog at:
A97: http://8020world.com/jcmendez/2009/05/business/tools-methodologies/tornado-charts-in-excel-2007-update/
A98: ---------------------------------------------------------------------------------------------------------------------------------------------------------------------------------------------------------------------------------------------------
A103: Overview of Worksheet for Performing Probabilistic Analysis and Sensitivity Analysis (Cont'd) | I103: Overview of Worksheet for Performing Probabilistic Analysis and Sensitivity Analysis (Cont'd) | T103: Overview of Worksheet for Performing Probabilistic Analysis and Sensitivity Analysis (Cont'd)
A104: Inter-Agency Workgroup for the Coal and Biomass to Liquid (Jet Fuel) Case Study | I104: Inter-Agency Workgroup for the Coal and Biomass to Liquid (Jet Fuel) Case Study | T104: Inter-Agency Workgroup for the Coal and Biomass to Liquid (Jet Fuel) Case Study
A106: Macros
A107: The command button below, when clicked, executes a macro that changes the calculation performed by the NETLR… functions. - For the probabilistic analysis, the NETLR… functions calculate a value randomly selected from the distribution specified by the NETLR… function. - For the sensitivity analysis, the NETLR... functions calculate the mean of the distribution specified by the NETLR… function. This macro allows the user to control the type of calculation performed. When the command button below is clicked, the macro changes the calculation from its current calculation type to the other calculation type. In other word, if the NETLR... functions are currently set to calculate a random value, then clicking the command button executes the macro and changes the NETLR... functions so the mean is calculated. Similarly, if the NETLR... functions are currently set to calculate the mean, then clicking the command button executes the macro and changes the NETLR... functions so a random value is calculated. When the NETLR... functions calculate a mean, the versions of the NETLR... functions for the normal, lognormal and Pareto distributions calculate the mean numerically. This calculation is done over a number of evenly spaced intervals between 0 and 1 in probability space. When executing this macro, the user can specify the number of intervals used in this calculation. Any number less than 11 is set to the default value of 301.
A109: Are NETLR… functions calculating random value or either the point value (if available) or the mean? | B109: Mean (with number of intervals = 301)
A110: Number of intervals used to numerically calculate mean of normal, lognormal and Pareto distributions. | B110: 301
A112: The command button below, when clicked, executes the macro that performs the probabilistic analysis. | I112: The command button below, when clicked, executes the macro that performs the sensitivity analysis.
A114: Inputs for Probabilistic Analysis | I114: Inputs for Sensitivity Analysis
A115: Number of Iterations | B115: 2000 | D115: Progress indicator: | I115: Number of Significant Figures in Output | K115: 5 | M115: Progress indicator:
A116: Number of Significant Figures in Output | B116: 3 | C116: zz-- Begin Input --zz | I116: Number of intervals used to numerically calculate mean of normal, lognormal and Pareto distributions (must be > 10). | K116: 301
I117: Note: The sensitivity analysis is limited to 25 input variables per run and 20 individual sensitivity analyses or runs.
A118: Variables where probabilistic results are desired
A119: Variable Name | B119: Variable Symbol | C119: Worksheet Name | D119: Variable Address | E119: Value | F119: Units | G119: Probabilistic Result Desired? | H119: Title (T) or Output (O)? | I119: Best Estimate | J119: Minimum | K119: Maximum | L119: Most Likely Value | M119: Distribution | N119: Enter X to Make column Active | O119: Enter X to Make column Active | P119: Enter X to Make column Active | Q119: Enter X to Make column Active | R119: Enter X to Make column Active | S119: Enter X to Make column Active | T119: Enter X to Make column Active | U119: Enter X to Make column Active | V119: Enter X to Make column Active | W119: Enter X to Make column Active | X119: Enter X to Make column Active | Y119: Enter X to Make column Active | Z119: Enter X to Make column Active | AA119: Enter X to Make column Active | AB119: Enter X to Make column Active | AC119: Enter X to Make column Active | AD119: Enter X to Make column Active | AE119: Enter X to Make column Active | AF119: Enter X to Make column Active | AG119: Enter X to Make column Active | AJ119: Variable Name | AK119: Units | AL119: Best Estimate | AM119: Minimum | AN119: Maximum | AO119: Most Likely | AP119: Distribution | AQ119: Discussion
A120: Var_Name | B120: Var_Sym | C120: Sheet_Name | D120: Var_Address | E120: Var_Value | F120: Var_Units | I120: Point_Val | J120: Var_Min | K120: Var_Max | L120: Most_Like | M120: Prob_Dist | N120: X | O120: X | P120: X | AH120: End
A123: Stage 1a-Coal Acquisition | H123: T | AJ123: =IF(A123="","",A123) -> Stage 1a-Coal Acquisition | AK123: =IF(F123="","",F123) ->  | AL123: =IF(I123="","",I123) ->  | AM123: =IF(J123="","",J123) ->  | AN123: =IF(K123="","",K123) ->  | AO123: =IF(L123="","",L123) ->  | AP123: =IF(M123="","",M123) -> 
A124: Input Parameters-Coal Mine Operation | H124: T | AJ124: Input Parameters-Coal Mine Operation
A125: =NETLVarProp(S1a.UP.O.CoalMOp!$I$55,A$120) -> Electricity Used per kg of Useful Coal Produced | B125: =NETLVarProp(S1a.UP.O.CoalMOp!$I$55,B$120) -> Electricity_kg | C125: =NETLVarProp(S1a.UP.O.CoalMOp!$I$55,C$120) -> S1a.UP.O.CoalMOp | D125: =NETLVarProp(S1a.UP.O.CoalMOp!$I$55,D$120) -> $I$55 | E125: =NETLVarProp(S1a.UP.O.CoalMOp!$I$55,E$120) ->  | F125: =NETLVarProp(S1a.UP.O.CoalMOp!$I$55,F$120) -> kWh/kg coal | H125: O | I125: =NETLVarProp(S1a.UP.O.CoalMOp!$I$55,I$120) -> 0.03305691243 | J125: =NETLVarProp(S1a.UP.O.CoalMOp!$I$55,J$120) -> 0.02975122119 | K125: =NETLVarProp(S1a.UP.O.CoalMOp!$I$55,K$120) -> 0.03636260368 | L125: =NETLVarProp(S1a.UP.O.CoalMOp!$I$55,L$120) -> 0.03305691243 | M125: =NETLVarProp(S1a.UP.O.CoalMOp!$I$55,M$120) -> Uniform | N125: I | AJ125: Electricity Used per kg of Useful Coal Produced | AK125: kWh/kg coal | AL125: 0.03305691243 | AM125: 0.02975122119 | AN125: 0.03636260368 | AO125: 0.03305691243 | AP125: Uniform | AQ125: Assumed that electricity use is -10% to +10% of best estimate | AS125: =AM125/AL125 -> 0.9 | AT125: =AN125/AL125 -> 1.1 | AU125: =(AL125-AM125)/AL125 -> 0.1 | AV125: =(AN125-AL125)/AL125 -> 0.1
A126: =NETLVarProp(S1a.UP.O.CoalMOp!$I$56,A$120) -> Diesel Fuel Used per kg of Useful Coal Produced | B126: =NETLVarProp(S1a.UP.O.CoalMOp!$I$56,B$120) -> Diesel_kg | C126: =NETLVarProp(S1a.UP.O.CoalMOp!$I$56,C$120) -> S1a.UP.O.CoalMOp | D126: =NETLVarProp(S1a.UP.O.CoalMOp!$I$56,D$120) -> $I$56 | E126: =NETLVarProp(S1a.UP.O.CoalMOp!$I$56,E$120) ->  | F126: =NETLVarProp(S1a.UP.O.CoalMOp!$I$56,F$120) -> kg dies/kg coal | H126: O | I126: =NETLVarProp(S1a.UP.O.CoalMOp!$I$56,I$120) -> 0.0002628050848 | J126: =NETLVarProp(S1a.UP.O.CoalMOp!$I$56,J$120) -> 0.0002365245763 | K126: =NETLVarProp(S1a.UP.O.CoalMOp!$I$56,K$120) -> 0.0003942076272 | L126: =NETLVarProp(S1a.UP.O.CoalMOp!$I$56,L$120) -> 0.0002628050848 | M126: =NETLVarProp(S1a.UP.O.CoalMOp!$I$56,M$120) -> Triangular | N126: I | AJ126: Diesel Fuel Used per kg of Useful Coal Produced | AK126: kg dies/kg coal | AL126: 0.0002628050848 | AM126: 0.0002365245763 | AN126: 0.0003942076272 | AO126: 0.0002628050848 | AP126: Triangular | AQ126: Assumed that diesel use is -10% to +50% of best estimate | AS126: 0.9 | AT126: 1.5 | AU126: 0.1 | AV126: 0.5
A127: =NETLVarProp(S1a.UP.O.CoalMOp!$I$65,A$120) -> Coal Bed Methane Generated in scf per Ton of Useful Coal Produced | B127: =NETLVarProp(S1a.UP.O.CoalMOp!$I$65,B$120) -> CBM_ton | C127: =NETLVarProp(S1a.UP.O.CoalMOp!$I$65,C$120) -> S1a.UP.O.CoalMOp | D127: =NETLVarProp(S1a.UP.O.CoalMOp!$I$65,D$120) -> $I$65 | E127: =NETLVarProp(S1a.UP.O.CoalMOp!$I$65,E$120) ->  | F127: =NETLVarProp(S1a.UP.O.CoalMOp!$I$65,F$120) -> scf/ton | H127: O | I127: =NETLVarProp(S1a.UP.O.CoalMOp!$I$65,I$120) -> 150 | J127: =NETLVarProp(S1a.UP.O.CoalMOp!$I$65,J$120) -> 120 | K127: =NETLVarProp(S1a.UP.O.CoalMOp!$I$65,K$120) -> 180 | L127: =NETLVarProp(S1a.UP.O.CoalMOp!$I$65,L$120) -> 150 | M127: =NETLVarProp(S1a.UP.O.CoalMOp!$I$65,M$120) -> Uniform | N127: I | AJ127: Coal Bed Methane Generated in scf per Ton of Useful Coal Produced | AK127: scf/ton | AL127: 150 | AM127: 120 | AN127: 180 | AO127: 150 | AP127: Uniform | AQ127: Minimum and maximum from data for Galatia, best estimate is weighted average of data, most likely is average of minimum and maximum, data appears uniformly distributed | AS127: 0.8 | AT127: 1.2 | AU127: 0.2 | AV127: 0.2
A128: =NETLVarProp(S1a.UP.O.CoalMOp!$I$67,A$120) -> Fraction of Coal Bed Methane Captured | B128: =NETLVarProp(S1a.UP.O.CoalMOp!$I$67,B$120) -> Frac_CH4_Cap | C128: =NETLVarProp(S1a.UP.O.CoalMOp!$I$67,C$120) -> S1a.UP.O.CoalMOp | D128: =NETLVarProp(S1a.UP.O.CoalMOp!$I$67,D$120) -> $I$67 | E128: =NETLVarProp(S1a.UP.O.CoalMOp!$I$67,E$120) ->  | F128: =NETLVarProp(S1a.UP.O.CoalMOp!$I$67,F$120) -> kg/kg | H128: O | I128: =NETLVarProp(S1a.UP.O.CoalMOp!$I$67,I$120) -> 0.4 | J128: =NETLVarProp(S1a.UP.O.CoalMOp!$I$67,J$120) -> 0.2 | K128: =NETLVarProp(S1a.UP.O.CoalMOp!$I$67,K$120) -> 0.6 | L128: =NETLVarProp(S1a.UP.O.CoalMOp!$I$67,L$120) -> 0.4 | M128: =NETLVarProp(S1a.UP.O.CoalMOp!$I$67,M$120) -> Uniform | N128: I | AJ128: Fraction of Coal Bed Methane Captured | AK128: kg/kg | AL128: 0.4 | AM128: 0.2 | AN128: 0.6 | AO128: 0.4 | AP128: Uniform | AQ128: Minimum, maximum and best estimate from USEPA report on coal bed methane capture | AS128: 0.5 | AT128: 1.5 | AU128: 0.5 | AV128: 0.5
A129: =NETLVarProp('UP Control1'!$I$17,A$120) -> Fraction of Capacity of Mine that is Actually Used | B129: =NETLVarProp('UP Control1'!$I$17,B$120) -> Frac_Used | C129: =NETLVarProp('UP Control1'!$I$17,C$120) -> UP Control1 | D129: =NETLVarProp('UP Control1'!$I$17,D$120) -> $I$17 | E129: =NETLVarProp('UP Control1'!$I$17,E$120) ->  | F129: =NETLVarProp('UP Control1'!$I$17,F$120) -> kg/kg | H129: O | I129: =NETLVarProp('UP Control1'!$I$17,I$120) -> 0.5312609765 | J129: =NETLVarProp('UP Control1'!$I$17,J$120) -> 0.5009220232 | K129: =NETLVarProp('UP Control1'!$I$17,K$120) -> 0.5706006322 | L129: =NETLVarProp('UP Control1'!$I$17,L$120) -> 0.5357613277 | M129: =NETLVarProp('UP Control1'!$I$17,M$120) -> Uniform | N129: I | AJ129: Fraction of Capacity of Mine that is Actually Used | AK129: kg/kg | AL129: 0.5312609765 | AM129: 0.5009220232 | AN129: 0.5706006322 | AO129: 0.5357613277 | AP129: Uniform | AQ129: Based on data from Galatia mine from 2005-2007, data for 2008 excluded because production declined due to recesssion | AS129: 0.942892562 | AT129: 1.074049587 | AU129: 0.05710743802 | AV129: 0.07404958678
A130: =NETLVarProp('UP Control1'!$I$18,A$120) -> Fraction of Run-of-Mine Coal that is Usable Coal | B130: =NETLVarProp('UP Control1'!$I$18,B$120) -> Frac_Coal | C130: =NETLVarProp('UP Control1'!$I$18,C$120) -> UP Control1 | D130: =NETLVarProp('UP Control1'!$I$18,D$120) -> $I$18 | E130: =NETLVarProp('UP Control1'!$I$18,E$120) ->  | F130: =NETLVarProp('UP Control1'!$I$18,F$120) -> kg/kg | H130: O | I130: =NETLVarProp('UP Control1'!$I$18,I$120) -> 0.5479303795 | J130: =NETLVarProp('UP Control1'!$I$18,J$120) -> 0.5165435519 | K130: =NETLVarProp('UP Control1'!$I$18,K$120) -> 0.5992433796 | L130: =NETLVarProp('UP Control1'!$I$18,L$120) -> 0.5578934657 | M130: =NETLVarProp('UP Control1'!$I$18,M$120) -> Uniform | N130: I | AJ130: Fraction of Run-of-Mine Coal that is Usable Coal | AK130: kg/kg | AL130: 0.5479303795 | AM130: 0.5165435519 | AN130: 0.5992433796 | AO130: 0.5578934657 | AP130: Uniform | AQ130: Based on data from Galatia mine from 2005-2007 | AS130: 0.9427174896 | AT130: 1.093648759 | AU130: 0.05728251043 | AV130: 0.09364875893
A131: Input Parameters-Coal Mine Construction | H131: T | AJ131: Input Parameters-Coal Mine Construction
A132: =NETLVarProp(S1a.UP.C.CoalMCon!$I$55,A$120) -> Fraction of Installation Inputs and Outputs Assumed to Apply to De-Installation | B132: =NETLVarProp(S1a.UP.C.CoalMCon!$I$55,B$120) -> DeIn_Frac | C132: =NETLVarProp(S1a.UP.C.CoalMCon!$I$55,C$120) -> S1a.UP.C.CoalMCon | D132: =NETLVarProp(S1a.UP.C.CoalMCon!$I$55,D$120) -> $I$55 | E132: =NETLVarProp(S1a.UP.C.CoalMCon!$I$55,E$120) ->  | H132: O | I132: =NETLVarProp(S1a.UP.C.CoalMCon!$I$55,I$120) -> 0.1 | J132: =NETLVarProp(S1a.UP.C.CoalMCon!$I$55,J$120) -> 0.05 | K132: =NETLVarProp(S1a.UP.C.CoalMCon!$I$55,K$120) -> 0.25 | L132: =NETLVarProp(S1a.UP.C.CoalMCon!$I$55,L$120) -> 0.1 | M132: =NETLVarProp(S1a.UP.C.CoalMCon!$I$55,M$120) -> Triangular | N132: I | AJ132: Fraction of Installation Inputs and Outputs Assumed to Apply to De-Installation | AL132: 0.1 | AM132: 0.05 | AN132: 0.25 | AO132: 0.1 | AP132: Triangular | AQ132: Assumed based on best engineering judgement | AS132: 0.5 | AT132: 2.5 | AU132: 0.5 | AV132: 1.5
A133: =NETLVarProp(S1a.UP.C.CoalMCon!$I$56,A$120) -> Diesel Fuel Used in Installation | B133: =NETLVarProp(S1a.UP.C.CoalMCon!$I$56,B$120) -> Dies_Used_In | C133: =NETLVarProp(S1a.UP.C.CoalMCon!$I$56,C$120) -> S1a.UP.C.CoalMCon | D133: =NETLVarProp(S1a.UP.C.CoalMCon!$I$56,D$120) -> $I$56 | E133: =NETLVarProp(S1a.UP.C.CoalMCon!$I$56,E$120) ->  | F133: =NETLVarProp(S1a.UP.C.CoalMCon!$I$56,F$120) -> kg | H133: O | I133: =NETLVarProp(S1a.UP.C.CoalMCon!$I$56,I$120) -> 485357.1429 | J133: =NETLVarProp(S1a.UP.C.CoalMCon!$I$56,J$120) -> 436821.4286 | K133: =NETLVarProp(S1a.UP.C.CoalMCon!$I$56,K$120) -> 728035.7143 | L133: =NETLVarProp(S1a.UP.C.CoalMCon!$I$56,L$120) -> 485357.1429 | M133: =NETLVarProp(S1a.UP.C.CoalMCon!$I$56,M$120) -> Triangular | N133: I | AJ133: Diesel Fuel Used in Installation | AK133: kg | AL133: 485357.1429 | AM133: 436821.4286 | AN133: 728035.7143 | AO133: 485357.1429 | AP133: Triangular | AQ133: Assumed that diesel use is -10% to +50% of best estimate | AS133: 0.9 | AT133: 1.5 | AU133: 0.1 | AV133: 0.5
A134: =NETLVarProp(S1a.UP.C.CoalMCon!$I$109,A$120) -> Steel Plate, BF (85% Recovery Rate) for Underground Coal Mine | B134: =NETLVarProp(S1a.UP.C.CoalMCon!$I$109,B$120) -> Stl_Plt_BF85_Coal_kg | C134: =NETLVarProp(S1a.UP.C.CoalMCon!$I$109,C$120) -> S1a.UP.C.CoalMCon | D134: =NETLVarProp(S1a.UP.C.CoalMCon!$I$109,D$120) -> $I$109 | E134: =NETLVarProp(S1a.UP.C.CoalMCon!$I$109,E$120) ->  | F134: =NETLVarProp(S1a.UP.C.CoalMCon!$I$109,F$120) -> kg/kg coal | H134: O | I134: =NETLVarProp(S1a.UP.C.CoalMCon!$I$109,I$120) ->  | J134: =NETLVarProp(S1a.UP.C.CoalMCon!$I$109,J$120) ->  | K134: =NETLVarProp(S1a.UP.C.CoalMCon!$I$109,K$120) ->  | L134: =NETLVarProp(S1a.UP.C.CoalMCon!$I$109,L$120) ->  | M134: =NETLVarProp(S1a.UP.C.CoalMCon!$I$109,M$120) -> Triangular | N134: I | AJ134: Steel Plate, BF (85% Recovery Rate) for Underground Coal Mine | AK134: kg/kg coal | AP134: Triangular | AQ134: Assumed that material use is -10% to +50% of best estimate
A135: =NETLVarProp(S1a.UP.C.CoalMCon!$I$110,A$120) -> Steel, Cold Rolled for Underground Coal Mine | B135: =NETLVarProp(S1a.UP.C.CoalMCon!$I$110,B$120) -> Stl_CRoll_Coal_kg | C135: =NETLVarProp(S1a.UP.C.CoalMCon!$I$110,C$120) -> S1a.UP.C.CoalMCon | D135: =NETLVarProp(S1a.UP.C.CoalMCon!$I$110,D$120) -> $I$110 | E135: =NETLVarProp(S1a.UP.C.CoalMCon!$I$110,E$120) ->  | F135: =NETLVarProp(S1a.UP.C.CoalMCon!$I$110,F$120) -> kg/kg coal | H135: O | I135: =NETLVarProp(S1a.UP.C.CoalMCon!$I$110,I$120) ->  | J135: =NETLVarProp(S1a.UP.C.CoalMCon!$I$110,J$120) ->  | K135: =NETLVarProp(S1a.UP.C.CoalMCon!$I$110,K$120) ->  | L135: =NETLVarProp(S1a.UP.C.CoalMCon!$I$110,L$120) ->  | M135: =NETLVarProp(S1a.UP.C.CoalMCon!$I$110,M$120) -> Triangular | N135: I | AJ135: Steel, Cold Rolled for Underground Coal Mine | AK135: kg/kg coal | AP135: Triangular | AQ135: Assumed that material use is -10% to +50% of best estimate
A136: =NETLVarProp(S1a.UP.C.CoalMCon!$I$112,A$120) -> Steel, 316 Stainless Cold Rolled for Underground Coal Mine | B136: =NETLVarProp(S1a.UP.C.CoalMCon!$I$112,B$120) -> Stl_CR316_Coal_kg | C136: =NETLVarProp(S1a.UP.C.CoalMCon!$I$112,C$120) -> S1a.UP.C.CoalMCon | D136: =NETLVarProp(S1a.UP.C.CoalMCon!$I$112,D$120) -> $I$112 | E136: =NETLVarProp(S1a.UP.C.CoalMCon!$I$112,E$120) ->  | F136: =NETLVarProp(S1a.UP.C.CoalMCon!$I$112,F$120) -> kg/kg coal | H136: O | I136: =NETLVarProp(S1a.UP.C.CoalMCon!$I$112,I$120) ->  | J136: =NETLVarProp(S1a.UP.C.CoalMCon!$I$112,J$120) ->  | K136: =NETLVarProp(S1a.UP.C.CoalMCon!$I$112,K$120) ->  | L136: =NETLVarProp(S1a.UP.C.CoalMCon!$I$112,L$120) ->  | M136: =NETLVarProp(S1a.UP.C.CoalMCon!$I$112,M$120) -> Triangular | N136: I | AJ136: Steel, 316 Stainless Cold Rolled for Underground Coal Mine | AK136: kg/kg coal | AP136: Triangular | AQ136: Assumed that material use is -10% to +50% of best estimate
A137: =NETLVarProp(S1a.UP.C.CoalMCon!$I$114,A$120) -> Steel, 431 Stainless Cold Rolled for Underground Coal Mine | B137: =NETLVarProp(S1a.UP.C.CoalMCon!$I$114,B$120) -> Stl_CR431_Coal_kg | C137: =NETLVarProp(S1a.UP.C.CoalMCon!$I$114,C$120) -> S1a.UP.C.CoalMCon | D137: =NETLVarProp(S1a.UP.C.CoalMCon!$I$114,D$120) -> $I$114 | E137: =NETLVarProp(S1a.UP.C.CoalMCon!$I$114,E$120) ->  | F137: =NETLVarProp(S1a.UP.C.CoalMCon!$I$114,F$120) -> kg/kg coal | H137: O | I137: =NETLVarProp(S1a.UP.C.CoalMCon!$I$114,I$120) ->  | J137: =NETLVarProp(S1a.UP.C.CoalMCon!$I$114,J$120) ->  | K137: =NETLVarProp(S1a.UP.C.CoalMCon!$I$114,K$120) ->  | L137: =NETLVarProp(S1a.UP.C.CoalMCon!$I$114,L$120) ->  | M137: =NETLVarProp(S1a.UP.C.CoalMCon!$I$114,M$120) -> Triangular | N137: I | AJ137: Steel, 431 Stainless Cold Rolled for Underground Coal Mine | AK137: kg/kg coal | AP137: Triangular | AQ137: Assumed that material use is -10% to +50% of best estimate
A138: =NETLVarProp(S1a.UP.C.CoalMCon!$I$122,A$120) -> Asphalt for Underground Coal Mine | B138: =NETLVarProp(S1a.UP.C.CoalMCon!$I$122,B$120) -> Asphalt_Coal_kg | C138: =NETLVarProp(S1a.UP.C.CoalMCon!$I$122,C$120) -> S1a.UP.C.CoalMCon | D138: =NETLVarProp(S1a.UP.C.CoalMCon!$I$122,D$120) -> $I$122 | E138: =NETLVarProp(S1a.UP.C.CoalMCon!$I$122,E$120) ->  | F138: =NETLVarProp(S1a.UP.C.CoalMCon!$I$122,F$120) -> kg/kg coal | H138: O | I138: =NETLVarProp(S1a.UP.C.CoalMCon!$I$122,I$120) ->  | J138: =NETLVarProp(S1a.UP.C.CoalMCon!$I$122,J$120) ->  | K138: =NETLVarProp(S1a.UP.C.CoalMCon!$I$122,K$120) ->  | L138: =NETLVarProp(S1a.UP.C.CoalMCon!$I$122,L$120) ->  | M138: =NETLVarProp(S1a.UP.C.CoalMCon!$I$122,M$120) -> Triangular | N138: I | AJ138: Asphalt for Underground Coal Mine | AK138: kg/kg coal | AP138: Triangular | AQ138: Assumed that material use is -10% to +50% of best estimate
A139: =NETLVarProp(S1a.UP.C.CoalMCon!$I$123,A$120) -> Concrete, Mixed 5-0 for Underground Coal Mine | B139: =NETLVarProp(S1a.UP.C.CoalMCon!$I$123,B$120) -> Concrete_5_0_Coal_kg | C139: =NETLVarProp(S1a.UP.C.CoalMCon!$I$123,C$120) -> S1a.UP.C.CoalMCon | D139: =NETLVarProp(S1a.UP.C.CoalMCon!$I$123,D$120) -> $I$123 | E139: =NETLVarProp(S1a.UP.C.CoalMCon!$I$123,E$120) ->  | F139: =NETLVarProp(S1a.UP.C.CoalMCon!$I$123,F$120) -> kg/kg coal | H139: O | I139: =NETLVarProp(S1a.UP.C.CoalMCon!$I$123,I$120) ->  | J139: =NETLVarProp(S1a.UP.C.CoalMCon!$I$123,J$120) ->  | K139: =NETLVarProp(S1a.UP.C.CoalMCon!$I$123,K$120) ->  | L139: =NETLVarProp(S1a.UP.C.CoalMCon!$I$123,L$120) ->  | M139: =NETLVarProp(S1a.UP.C.CoalMCon!$I$123,M$120) -> Triangular | N139: I | AJ139: Concrete, Mixed 5-0 for Underground Coal Mine | AK139: kg/kg coal | AP139: Triangular | AQ139: Assumed that material use is -10% to +50% of best estimate
A140: =NETLVarProp(S1a.UP.C.CoalMCon!$I$59,A$120) -> Gasoline Used in Installation | B140: =NETLVarProp(S1a.UP.C.CoalMCon!$I$59,B$120) -> Gas_Used_In | C140: =NETLVarProp(S1a.UP.C.CoalMCon!$I$59,C$120) -> S1a.UP.C.CoalMCon | D140: =NETLVarProp(S1a.UP.C.CoalMCon!$I$59,D$120) -> $I$59 | E140: =NETLVarProp(S1a.UP.C.CoalMCon!$I$59,E$120) ->  | F140: =NETLVarProp(S1a.UP.C.CoalMCon!$I$59,F$120) -> kg | H140: O | I140: =NETLVarProp(S1a.UP.C.CoalMCon!$I$59,I$120) -> 509.7857143 | J140: =NETLVarProp(S1a.UP.C.CoalMCon!$I$59,J$120) -> 458.8071429 | K140: =NETLVarProp(S1a.UP.C.CoalMCon!$I$59,K$120) -> 764.6785714 | L140: =NETLVarProp(S1a.UP.C.CoalMCon!$I$59,L$120) -> 509.7857143 | M140: =NETLVarProp(S1a.UP.C.CoalMCon!$I$59,M$120) -> Triangular | AJ140: Gasoline Used in Installation | AK140: kg | AL140: 509.7857143 | AM140: 458.8071429 | AN140: 764.6785714 | AO140: 509.7857143 | AP140: Triangular | AQ140: Assumed that material use is -10% to +50% of best estimate | AS140: 0.9 | AT140: 1.5 | AU140: 0.1 | AV140: 0.5
A141: =NETLVarProp(S1a.UP.C.CoalMCon!$I$111,A$120) -> Steel, Hot-dip Galvanized for Underground Coal Mine | B141: =NETLVarProp(S1a.UP.C.CoalMCon!$I$111,B$120) -> Stl_Galv_Coal_kg | C141: =NETLVarProp(S1a.UP.C.CoalMCon!$I$111,C$120) -> S1a.UP.C.CoalMCon | D141: =NETLVarProp(S1a.UP.C.CoalMCon!$I$111,D$120) -> $I$111 | E141: =NETLVarProp(S1a.UP.C.CoalMCon!$I$111,E$120) ->  | F141: =NETLVarProp(S1a.UP.C.CoalMCon!$I$111,F$120) -> kg/kg coal | H141: O | I141: =NETLVarProp(S1a.UP.C.CoalMCon!$I$111,I$120) ->  | J141: =NETLVarProp(S1a.UP.C.CoalMCon!$I$111,J$120) ->  | K141: =NETLVarProp(S1a.UP.C.CoalMCon!$I$111,K$120) ->  | L141: =NETLVarProp(S1a.UP.C.CoalMCon!$I$111,L$120) ->  | M141: =NETLVarProp(S1a.UP.C.CoalMCon!$I$111,M$120) -> Triangular | AJ141: Steel, Hot-dip Galvanized for Underground Coal Mine | AK141: kg/kg coal | AP141: Triangular | AQ141: Assumed that material use is -10% to +50% of best estimate
A142: =NETLVarProp(S1a.UP.C.CoalMCon!$I$113,A$120) -> Steel, 316 2B (80% Recycled) for Underground Coal Mine | B142: =NETLVarProp(S1a.UP.C.CoalMCon!$I$113,B$120) -> Stl_3162B_80_Coal_kg | C142: =NETLVarProp(S1a.UP.C.CoalMCon!$I$113,C$120) -> S1a.UP.C.CoalMCon | D142: =NETLVarProp(S1a.UP.C.CoalMCon!$I$113,D$120) -> $I$113 | E142: =NETLVarProp(S1a.UP.C.CoalMCon!$I$113,E$120) ->  | F142: =NETLVarProp(S1a.UP.C.CoalMCon!$I$113,F$120) -> kg/kg coal | H142: O | I142: =NETLVarProp(S1a.UP.C.CoalMCon!$I$113,I$120) ->  | J142: =NETLVarProp(S1a.UP.C.CoalMCon!$I$113,J$120) ->  | K142: =NETLVarProp(S1a.UP.C.CoalMCon!$I$113,K$120) ->  | L142: =NETLVarProp(S1a.UP.C.CoalMCon!$I$113,L$120) ->  | M142: =NETLVarProp(S1a.UP.C.CoalMCon!$I$113,M$120) -> Triangular | AJ142: Steel, 316 2B (80% Recycled) for Underground Coal Mine | AK142: kg/kg coal | AP142: Triangular | AQ142: Assumed that material use is -10% to +50% of best estimate
A143: =NETLVarProp(S1a.UP.C.CoalMCon!$I$115,A$120) -> Cast Iron Parts for Underground Coal Mine | B143: =NETLVarProp(S1a.UP.C.CoalMCon!$I$115,B$120) -> Cst_Iron_Pt1_Coal_kg | C143: =NETLVarProp(S1a.UP.C.CoalMCon!$I$115,C$120) -> S1a.UP.C.CoalMCon | D143: =NETLVarProp(S1a.UP.C.CoalMCon!$I$115,D$120) -> $I$115 | E143: =NETLVarProp(S1a.UP.C.CoalMCon!$I$115,E$120) ->  | F143: =NETLVarProp(S1a.UP.C.CoalMCon!$I$115,F$120) -> kg/kg coal | H143: O | I143: =NETLVarProp(S1a.UP.C.CoalMCon!$I$115,I$120) ->  | J143: =NETLVarProp(S1a.UP.C.CoalMCon!$I$115,J$120) ->  | K143: =NETLVarProp(S1a.UP.C.CoalMCon!$I$115,K$120) ->  | L143: =NETLVarProp(S1a.UP.C.CoalMCon!$I$115,L$120) ->  | M143: =NETLVarProp(S1a.UP.C.CoalMCon!$I$115,M$120) -> Triangular | AJ143: Cast Iron Parts for Underground Coal Mine | AK143: kg/kg coal | AP143: Triangular | AQ143: Assumed that material use is -10% to +50% of best estimate
A144: =NETLVarProp(S1a.UP.C.CoalMCon!$I$116,A$120) -> Rebar for Underground Coal Mine | B144: =NETLVarProp(S1a.UP.C.CoalMCon!$I$116,B$120) -> Rebar1_Coal_kg | C144: =NETLVarProp(S1a.UP.C.CoalMCon!$I$116,C$120) -> S1a.UP.C.CoalMCon | D144: =NETLVarProp(S1a.UP.C.CoalMCon!$I$116,D$120) -> $I$116 | E144: =NETLVarProp(S1a.UP.C.CoalMCon!$I$116,E$120) ->  | F144: =NETLVarProp(S1a.UP.C.CoalMCon!$I$116,F$120) -> kg/kg coal | H144: O | I144: =NETLVarProp(S1a.UP.C.CoalMCon!$I$116,I$120) ->  | J144: =NETLVarProp(S1a.UP.C.CoalMCon!$I$116,J$120) ->  | K144: =NETLVarProp(S1a.UP.C.CoalMCon!$I$116,K$120) ->  | L144: =NETLVarProp(S1a.UP.C.CoalMCon!$I$116,L$120) ->  | M144: =NETLVarProp(S1a.UP.C.CoalMCon!$I$116,M$120) -> Triangular | AJ144: =IF(A144="","",A144) -> Rebar for Underground Coal Mine | AK144: =IF(F144="","",F144) -> kg/kg coal | AL144: =IF(I144="","",I144) ->  | AM144: =IF(J144="","",J144) ->  | AN144: =IF(K144="","",K144) ->  | AO144: =IF(L144="","",L144) ->  | AP144: =IF(M144="","",M144) -> Triangular | AQ144: Assumed that material use is -10% to +50% of best estimate | AS144: =AM144/AL144 ->  | AT144: =AN144/AL144 ->  | AU144: =(AL144-AM144)/AL144 ->  | AV144: =(AN144-AL144)/AL144 -> 
A145: =NETLVarProp(S1a.UP.C.CoalMCon!$I$117,A$120) -> Coppersheet for Underground Coal Mine | B145: =NETLVarProp(S1a.UP.C.CoalMCon!$I$117,B$120) -> CopSht1_Coal_kg | C145: =NETLVarProp(S1a.UP.C.CoalMCon!$I$117,C$120) -> S1a.UP.C.CoalMCon | D145: =NETLVarProp(S1a.UP.C.CoalMCon!$I$117,D$120) -> $I$117 | E145: =NETLVarProp(S1a.UP.C.CoalMCon!$I$117,E$120) ->  | F145: =NETLVarProp(S1a.UP.C.CoalMCon!$I$117,F$120) -> kg/kg coal | H145: O | I145: =NETLVarProp(S1a.UP.C.CoalMCon!$I$117,I$120) ->  | J145: =NETLVarProp(S1a.UP.C.CoalMCon!$I$117,J$120) ->  | K145: =NETLVarProp(S1a.UP.C.CoalMCon!$I$117,K$120) ->  | L145: =NETLVarProp(S1a.UP.C.CoalMCon!$I$117,L$120) ->  | M145: =NETLVarProp(S1a.UP.C.CoalMCon!$I$117,M$120) -> Triangular | AJ145: Coppersheet for Underground Coal Mine | AK145: kg/kg coal | AP145: Triangular | AQ145: Assumed that material use is -10% to +50% of best estimate
A146: =NETLVarProp(S1a.UP.C.CoalMCon!$I$118,A$120) -> Zinc for Underground Coal Mine | B146: =NETLVarProp(S1a.UP.C.CoalMCon!$I$118,B$120) -> Zinc1_Coal_kg | C146: =NETLVarProp(S1a.UP.C.CoalMCon!$I$118,C$120) -> S1a.UP.C.CoalMCon | D146: =NETLVarProp(S1a.UP.C.CoalMCon!$I$118,D$120) -> $I$118 | E146: =NETLVarProp(S1a.UP.C.CoalMCon!$I$118,E$120) ->  | F146: =NETLVarProp(S1a.UP.C.CoalMCon!$I$118,F$120) -> kg/kg coal | H146: O | I146: =NETLVarProp(S1a.UP.C.CoalMCon!$I$118,I$120) ->  | J146: =NETLVarProp(S1a.UP.C.CoalMCon!$I$118,J$120) ->  | K146: =NETLVarProp(S1a.UP.C.CoalMCon!$I$118,K$120) ->  | L146: =NETLVarProp(S1a.UP.C.CoalMCon!$I$118,L$120) ->  | M146: =NETLVarProp(S1a.UP.C.CoalMCon!$I$118,M$120) -> Triangular | AJ146: Zinc for Underground Coal Mine | AK146: kg/kg coal | AP146: Triangular | AQ146: Assumed that material use is -10% to +50% of best estimate
A147: =NETLVarProp(S1a.UP.C.CoalMCon!$I$119,A$120) -> Rubber, Natural Vulcanised for Underground Coal Mine | B147: =NETLVarProp(S1a.UP.C.CoalMCon!$I$119,B$120) -> Rub_NVulc_Coal_kg | C147: =NETLVarProp(S1a.UP.C.CoalMCon!$I$119,C$120) -> S1a.UP.C.CoalMCon | D147: =NETLVarProp(S1a.UP.C.CoalMCon!$I$119,D$120) -> $I$119 | E147: =NETLVarProp(S1a.UP.C.CoalMCon!$I$119,E$120) ->  | F147: =NETLVarProp(S1a.UP.C.CoalMCon!$I$119,F$120) -> kg/kg coal | H147: O | I147: =NETLVarProp(S1a.UP.C.CoalMCon!$I$119,I$120) ->  | J147: =NETLVarProp(S1a.UP.C.CoalMCon!$I$119,J$120) ->  | K147: =NETLVarProp(S1a.UP.C.CoalMCon!$I$119,K$120) ->  | L147: =NETLVarProp(S1a.UP.C.CoalMCon!$I$119,L$120) ->  | M147: =NETLVarProp(S1a.UP.C.CoalMCon!$I$119,M$120) -> Triangular | AJ147: Rubber, Natural Vulcanised for Underground Coal Mine | AK147: kg/kg coal | AP147: Triangular | AQ147: Assumed that material use is -10% to +50% of best estimate
A148: =NETLVarProp(S1a.UP.C.CoalMCon!$I$120,A$120) -> Polyvinylchloride (PVC) Tubing | B148: =NETLVarProp(S1a.UP.C.CoalMCon!$I$120,B$120) -> PVC_Tube1_Coal_kg | C148: =NETLVarProp(S1a.UP.C.CoalMCon!$I$120,C$120) -> S1a.UP.C.CoalMCon | D148: =NETLVarProp(S1a.UP.C.CoalMCon!$I$120,D$120) -> $I$120 | E148: =NETLVarProp(S1a.UP.C.CoalMCon!$I$120,E$120) ->  | F148: =NETLVarProp(S1a.UP.C.CoalMCon!$I$120,F$120) -> kg/kg coal | H148: O | I148: =NETLVarProp(S1a.UP.C.CoalMCon!$I$120,I$120) ->  | J148: =NETLVarProp(S1a.UP.C.CoalMCon!$I$120,J$120) ->  | K148: =NETLVarProp(S1a.UP.C.CoalMCon!$I$120,K$120) ->  | L148: =NETLVarProp(S1a.UP.C.CoalMCon!$I$120,L$120) ->  | M148: =NETLVarProp(S1a.UP.C.CoalMCon!$I$120,M$120) -> Triangular | AJ148: Polyvinylchloride (PVC) Tubing | AK148: kg/kg coal | AP148: Triangular | AQ148: Assumed that material use is -10% to +50% of best estimate
A149: Input Parameters-Upstream GHG Emissions from Secondary Energy Unit Processes | H149: T | AJ149: =IF(A149="","",A149) -> Input Parameters-Upstream GHG Emissions from Secondary Energy Unit Processes | AK149: =IF(F149="","",F149) ->  | AL149: =IF(I149="","",I149) ->  | AM149: =IF(J149="","",J149) ->  | AN149: =IF(K149="","",K149) ->  | AO149: =IF(L149="","",L149) ->  | AP149: =IF(M149="","",M149) -> 
A150: Upstream CO2 Emitted per kg Petroleum Diesel Fuel Produced | B150: Dies_Upstr_CO2 | C150: =NETLVarProp(Sec.UP.All!$E$143,C$120) -> Sec.UP.All | D150: =NETLVarProp(Sec.UP.All!$E$143,D$120) -> $E$143 | E150: =NETLVarProp(Sec.UP.All!$E$143,E$120) ->  | F150: kg CO2/kg | H150: O | I150: =Sec.UP.All!G$143 -> 0.7184460198 | J150: =Sec.UP.All!H$143 -> 0.6825237188 | K150: =Sec.UP.All!I$143 -> 0.7543683208 | L150: =Sec.UP.All!J$143 -> 0.7184460198 | M150: =Sec.UP.All!F$143 -> Triangular | N150: I | AJ150: Upstream CO2 Emitted per kg Petroleum Diesel Fuel Produced | AK150: kg CO2/kg | AL150: 0.7184460198 | AM150: 0.6825237188 | AN150: 0.7543683208 | AO150: 0.7184460198 | AP150: Triangular | AQ150: Assumed that upstream GHG emissions are -5% to +5% of best estimate | AS150: 0.95 | AT150: 1.05 | AU150: 0.05 | AV150: 0.05
A151: Upstream CH4 Emitted per kg Petroleum Diesel Fuel Produced | B151: Dies_Upstr_CH4 | C151: =NETLVarProp(Sec.UP.All!$E$145,C$120) -> Sec.UP.All | D151: =NETLVarProp(Sec.UP.All!$E$145,D$120) -> $E$145 | E151: =NETLVarProp(Sec.UP.All!$E$145,E$120) ->  | F151: kg CH4/kg | H151: O | I151: =Sec.UP.All!G$145 -> 0.00399826704 | J151: =Sec.UP.All!H$145 -> 0.003798353688 | K151: =Sec.UP.All!I$145 -> 0.004198180392 | L151: =Sec.UP.All!J$145 -> 0.00399826704 | M151: =Sec.UP.All!F$145 -> Triangular | N151: I | AJ151: Upstream CH4 Emitted per kg Petroleum Diesel Fuel Produced | AK151: kg CH4/kg | AL151: 0.00399826704 | AM151: 0.003798353688 | AN151: 0.004198180392 | AO151: 0.00399826704 | AP151: Triangular | AQ151: Assumed that upstream GHG emissions are -5% to +5% of best estimate | AS151: 0.95 | AT151: 1.05 | AU151: 0.05 | AV151: 0.05
A152: Upstream N2O Emitted per kg Petroleum Diesel Fuel Produced | B152: Dies_Upstr_N2O | C152: =NETLVarProp(Sec.UP.All!$E$146,C$120) -> Sec.UP.All | D152: =NETLVarProp(Sec.UP.All!$E$146,D$120) -> $E$146 | E152: =NETLVarProp(Sec.UP.All!$E$146,E$120) ->  | F152: kg N2O/kg | H152: O | I152: =Sec.UP.All!G$146 -> 1.298416479e-05 | J152: =Sec.UP.All!H$146 -> 1.233495655e-05 | K152: =Sec.UP.All!I$146 -> 1.363337303e-05 | L152: =Sec.UP.All!J$146 -> 1.298416479e-05 | M152: =Sec.UP.All!F$146 -> Triangular | N152: I | AJ152: Upstream N2O Emitted per kg Petroleum Diesel Fuel Produced | AK152: kg N2O/kg | AL152: 1.298416479e-05 | AM152: 1.233495655e-05 | AN152: 1.363337303e-05 | AO152: 1.298416479e-05 | AP152: Triangular | AQ152: Assumed that upstream GHG emissions are -5% to +5% of best estimate | AS152: 0.95 | AT152: 1.05 | AU152: 0.05 | AV152: 0.05
A153: Upstream CO2 Emitted per kg Petroleum Gasoline Produced | B153: Gasoline_Upstr_CO2 | C153: =NETLVarProp(Sec.UP.All!$K$143,C$120) -> Sec.UP.All | D153: =NETLVarProp(Sec.UP.All!$K$143,D$120) -> $K$143 | E153: =NETLVarProp(Sec.UP.All!$K$143,E$120) ->  | F153: kg CO2/kg | H153: O | I153: =Sec.UP.All!M$143 -> 0.7455876277 | J153: =Sec.UP.All!N$143 -> 0.7083082463 | K153: =Sec.UP.All!O$143 -> 0.7828670091 | L153: =Sec.UP.All!P$143 -> 0.7455876277 | M153: =Sec.UP.All!L$143 -> Triangular | AJ153: =IF(A153="","",A153) -> Upstream CO2 Emitted per kg Petroleum Gasoline Produced | AK153: =IF(F153="","",F153) -> kg CO2/kg | AL153: =IF(I153="","",I153) -> 0.7455876277 | AM153: =IF(J153="","",J153) -> 0.7083082463 | AN153: =IF(K153="","",K153) -> 0.7828670091 | AO153: =IF(L153="","",L153) -> 0.7455876277 | AP153: =IF(M153="","",M153) -> Triangular | AQ153: Assumed that upstream GHG emissions are -5% to +5% of best estimate | AS153: =AM153/AL153 -> 0.95 | AT153: =AN153/AL153 -> 1.05 | AU153: =(AL153-AM153)/AL153 -> 0.05 | AV153: =(AN153-AL153)/AL153 -> 0.05
A154: Upstream CH4 Emitted per kg Petroleum Gasoline Produced | B154: Gasoline_Upstr_CH4 | C154: =NETLVarProp(Sec.UP.All!$K$145,C$120) -> Sec.UP.All | D154: =NETLVarProp(Sec.UP.All!$K$145,D$120) -> $K$145 | E154: =NETLVarProp(Sec.UP.All!$K$145,E$120) ->  | F154: kg CH4/kg | H154: O | I154: =Sec.UP.All!M$145 -> 0.003893733782 | J154: =Sec.UP.All!N$145 -> 0.003699047093 | K154: =Sec.UP.All!O$145 -> 0.004088420471 | L154: =Sec.UP.All!P$145 -> 0.003893733782 | M154: =Sec.UP.All!L$145 -> Triangular | AJ154: Upstream CH4 Emitted per kg Petroleum Gasoline Produced | AK154: kg CH4/kg | AL154: 0.003893733782 | AM154: 0.003699047093 | AN154: 0.004088420471 | AO154: 0.003893733782 | AP154: Triangular | AQ154: Assumed that upstream GHG emissions are -5% to +5% of best estimate | AS154: 0.95 | AT154: 1.05 | AU154: 0.05 | AV154: 0.05
A155: Upstream N2O Emitted per kg Petroleum Gasoline Produced | B155: Gasoline_Upstr_N2O | C155: =NETLVarProp(Sec.UP.All!$K$146,C$120) -> Sec.UP.All | D155: =NETLVarProp(Sec.UP.All!$K$146,D$120) -> $K$146 | E155: =NETLVarProp(Sec.UP.All!$K$146,E$120) ->  | F155: kg N2O/kg | H155: O | I155: =Sec.UP.All!M$146 -> 1.383045923e-05 | J155: =Sec.UP.All!N$146 -> 1.313893627e-05 | K155: =Sec.UP.All!O$146 -> 1.45219822e-05 | L155: =Sec.UP.All!P$146 -> 1.383045923e-05 | M155: =Sec.UP.All!L$146 -> Triangular | AJ155: Upstream N2O Emitted per kg Petroleum Gasoline Produced | AK155: kg N2O/kg | AL155: 1.383045923e-05 | AM155: 1.313893627e-05 | AN155: 1.45219822e-05 | AO155: 1.383045923e-05 | AP155: Triangular | AQ155: Assumed that upstream GHG emissions are -5% to +5% of best estimate | AS155: 0.95 | AT155: 1.05 | AU155: 0.05 | AV155: 0.05
A156: Upstream CO2 Emitted per kWh SERC Electricity Produced | B156: Elec_SERC_Upstr_CO2 | C156: =NETLVarProp(Sec.UP.All!$AI$143,C$120) -> Sec.UP.All | D156: =NETLVarProp(Sec.UP.All!$AI$143,D$120) -> $AI$143 | E156: =NETLVarProp(Sec.UP.All!$AI$143,E$120) ->  | F156: kg CO2/kWh | H156: O | I156: =Sec.UP.All!AK$143 -> 0.7619553272 | J156: =Sec.UP.All!AL$143 -> 0.6857597945 | K156: =Sec.UP.All!AM$143 -> 0.8381508599 | L156: =Sec.UP.All!AN$143 -> 0.7619553272 | M156: =Sec.UP.All!AJ$143 -> Triangular | N156: I | AJ156: =IF(A156="","",A156) -> Upstream CO2 Emitted per kWh SERC Electricity Produced | AK156: =IF(F156="","",F156) -> kg CO2/kWh | AL156: =IF(I156="","",I156) -> 0.7619553272 | AM156: =IF(J156="","",J156) -> 0.6857597945 | AN156: =IF(K156="","",K156) -> 0.8381508599 | AO156: =IF(L156="","",L156) -> 0.7619553272 | AP156: =IF(M156="","",M156) -> Triangular | AQ156: Assumed that upstream GHG emissions are -10% to +10% of best estimate | AS156: 0.9 | AT156: 1.1 | AU156: 0.1 | AV156: 0.1
A157: Upstream CH4 Emitted per kWh SERC Electricity Produced | B157: Elec_SERC_Upstr_CH4 | C157: =NETLVarProp(Sec.UP.All!$AI$145,C$120) -> Sec.UP.All | D157: =NETLVarProp(Sec.UP.All!$AI$145,D$120) -> $AI$145 | E157: =NETLVarProp(Sec.UP.All!$AI$145,E$120) ->  | F157: kg CH4/kWh | H157: O | I157: =Sec.UP.All!AK$145 -> 0.0008353179069 | J157: =Sec.UP.All!AL$145 -> 0.0007517861163 | K157: =Sec.UP.All!AM$145 -> 0.0009188496976 | L157: =Sec.UP.All!AN$145 -> 0.0008353179069 | M157: =Sec.UP.All!AJ$145 -> Triangular | N157: I | AJ157: =IF(A157="","",A157) -> Upstream CH4 Emitted per kWh SERC Electricity Produced | AK157: =IF(F157="","",F157) -> kg CH4/kWh | AL157: =IF(I157="","",I157) -> 0.0008353179069 | AM157: =IF(J157="","",J157) -> 0.0007517861163 | AN157: =IF(K157="","",K157) -> 0.0009188496976 | AO157: =IF(L157="","",L157) -> 0.0008353179069 | AP157: =IF(M157="","",M157) -> Triangular | AQ157: Assumed that upstream GHG emissions are -10% to +10% of best estimate | AS157: 0.9 | AT157: 1.1 | AU157: 0.1 | AV157: 0.1
A158: Upstream N2O Emitted per kWh SERC Electricity Produced | B158: Elec_SERC_Upstr_N2O | C158: =NETLVarProp(Sec.UP.All!$AI$146,C$120) -> Sec.UP.All | D158: =NETLVarProp(Sec.UP.All!$AI$146,D$120) -> $AI$146 | E158: =NETLVarProp(Sec.UP.All!$AI$146,E$120) ->  | F158: kg N2O/kWh | H158: O | I158: =Sec.UP.All!AK$146 -> 1.009258319e-05 | J158: =Sec.UP.All!AL$146 -> 9.083324869e-06 | K158: =Sec.UP.All!AM$146 -> 1.110184151e-05 | L158: =Sec.UP.All!AN$146 -> 1.009258319e-05 | M158: =Sec.UP.All!AJ$146 -> Triangular | N158: I | AJ158: Upstream N2O Emitted per kWh SERC Electricity Produced | AK158: kg N2O/kWh | AL158: 1.009258319e-05 | AM158: 9.083324869e-06 | AN158: 1.110184151e-05 | AO158: 1.009258319e-05 | AP158: Triangular | AQ158: Assumed that upstream GHG emissions are -10% to +10% of best estimate | AS158: 0.9 | AT158: 1.1 | AU158: 0.1 | AV158: 0.1
A159: Output-CO2e Emissions-Coal Mine | H159: T | AJ159: Output-CO2e Emissions-Coal Mine
A160: Coal Acquisition-Total CO2e Emiss. (IPCC 2007) per RF | B160: CO2e2007CoalMineRF | C160: =NETLVarProp(Summ.Rep.GHG!$D$36,C$120) -> Summ.Rep.GHG | D160: =NETLVarProp(Summ.Rep.GHG!$D$36,D$120) -> $D$36 | E160: =NETLVarProp(Summ.Rep.GHG!$D$36,E$120) ->  | F160: g CO2e/kg coal | G160: X | H160: O | N160: O | AJ160: Coal Acquisition-Total CO2e Emiss. (IPCC 2007) per RF | AK160: g CO2e/kg coal
A163: Stage 1b-Switchgrass Acquisition | H163: T | AJ163: =IF(A163="","",A163) -> Stage 1b-Switchgrass Acquisition | AK163: =IF(F163="","",F163) ->  | AL163: =IF(I163="","",I163) ->  | AM163: =IF(J163="","",J163) ->  | AN163: =IF(K163="","",K163) ->  | AO163: =IF(L163="","",L163) ->  | AP163: =IF(M163="","",M163) -> 
A164: Input Parameters-SG Farming, Operation | H164: T | AJ164: Input Parameters-SG Farming, Operation
A165: =NETLVarProp(S1b.UP.O.FarmOp!$I$146,A$120) -> Carbon dioxide (CO2): Direct emissions from farm activities | B165: =NETLVarProp(S1b.UP.O.FarmOp!$I$146,B$120) -> CO2N_x | C165: =NETLVarProp(S1b.UP.O.FarmOp!$I$146,C$120) -> S1b.UP.O.FarmOp | D165: =NETLVarProp(S1b.UP.O.FarmOp!$I$146,D$120) -> $I$146 | E165: =NETLVarProp(S1b.UP.O.FarmOp!$I$146,E$120) -> 0 | F165: =NETLVarProp(S1b.UP.O.FarmOp!$I$146,F$120) -> kg/tonne | H165: O | I165: =NETLVarProp(S1b.UP.O.FarmOp!$I$146,I$120) -> 0 | J165: =NETLVarProp(S1b.UP.O.FarmOp!$I$146,J$120) -> 0 | K165: =NETLVarProp(S1b.UP.O.FarmOp!$I$146,K$120) -> 0 | L165: =NETLVarProp(S1b.UP.O.FarmOp!$I$146,L$120) -> 0 | M165: =NETLVarProp(S1b.UP.O.FarmOp!$I$146,M$120) -> Triangular | N165: I | AJ165: Carbon dioxide (CO2): Direct emissions from farm activities | AK165: kg/tonne | AL165: 0 | AM165: 0 | AN165: 0 | AO165: 0 | AP165: Triangular | AQ165: Minimum, maximum and best estimate determined in separate analysis. | AS165: =AM165/AL165 ->  | AT165: =AN165/AL165 ->  | AU165: =(AL165-AM165)/AL165 ->  | AV165: =(AN165-AL165)/AL165 -> 
A166: =NETLVarProp(S1b.UP.O.FarmOp!$I$148,A$120) -> Methane (CH4): Direct emissions from farm activities | B166: =NETLVarProp(S1b.UP.O.FarmOp!$I$148,B$120) -> CH4_x | C166: =NETLVarProp(S1b.UP.O.FarmOp!$I$148,C$120) -> S1b.UP.O.FarmOp | D166: =NETLVarProp(S1b.UP.O.FarmOp!$I$148,D$120) -> $I$148 | E166: =NETLVarProp(S1b.UP.O.FarmOp!$I$148,E$120) -> 0 | F166: =NETLVarProp(S1b.UP.O.FarmOp!$I$148,F$120) -> kg/tonne | H166: O | I166: =NETLVarProp(S1b.UP.O.FarmOp!$I$148,I$120) -> 0 | J166: =NETLVarProp(S1b.UP.O.FarmOp!$I$148,J$120) -> 0 | K166: =NETLVarProp(S1b.UP.O.FarmOp!$I$148,K$120) -> 0 | L166: =NETLVarProp(S1b.UP.O.FarmOp!$I$148,L$120) -> 0 | M166: =NETLVarProp(S1b.UP.O.FarmOp!$I$148,M$120) -> Triangular | N166: I | AJ166: Methane (CH4): Direct emissions from farm activities | AK166: kg/tonne | AL166: 0 | AM166: 0 | AN166: 0 | AO166: 0 | AP166: Triangular | AQ166: Minimum, maximum and best estimate determined in separate analysis.
A167: =NETLVarProp(S1b.UP.O.FarmOp!$I$149,A$120) -> Nitrous oxide (N2O): Direct emissions from farm activities | B167: =NETLVarProp(S1b.UP.O.FarmOp!$I$149,B$120) -> N2O_x | C167: =NETLVarProp(S1b.UP.O.FarmOp!$I$149,C$120) -> S1b.UP.O.FarmOp | D167: =NETLVarProp(S1b.UP.O.FarmOp!$I$149,D$120) -> $I$149 | E167: =NETLVarProp(S1b.UP.O.FarmOp!$I$149,E$120) -> 0 | F167: =NETLVarProp(S1b.UP.O.FarmOp!$I$149,F$120) -> kg/tonne | H167: O | I167: =NETLVarProp(S1b.UP.O.FarmOp!$I$149,I$120) -> 0 | J167: =NETLVarProp(S1b.UP.O.FarmOp!$I$149,J$120) -> 0 | K167: =NETLVarProp(S1b.UP.O.FarmOp!$I$149,K$120) -> 0 | L167: =NETLVarProp(S1b.UP.O.FarmOp!$I$149,L$120) -> 0 | M167: =NETLVarProp(S1b.UP.O.FarmOp!$I$149,M$120) -> Triangular | N167: I | AJ167: Nitrous oxide (N2O): Direct emissions from farm activities | AK167: kg/tonne | AL167: 0 | AM167: 0 | AN167: 0 | AO167: 0 | AP167: Triangular | AQ167: Minimum, maximum and best estimate determined in separate analysis.
A168: =NETLVarProp(S1b.UP.O.FarmOp!$I$93,A$120) -> Lime, at farm | B168: =NETLVarProp(S1b.UP.O.FarmOp!$I$93,B$120) -> Lime_ag1_x | C168: =NETLVarProp(S1b.UP.O.FarmOp!$I$93,C$120) -> S1b.UP.O.FarmOp | D168: =NETLVarProp(S1b.UP.O.FarmOp!$I$93,D$120) -> $I$93 | E168: =NETLVarProp(S1b.UP.O.FarmOp!$I$93,E$120) -> 0 | F168: =NETLVarProp(S1b.UP.O.FarmOp!$I$93,F$120) -> kg/tonne | H168: O | I168: =NETLVarProp(S1b.UP.O.FarmOp!$I$93,I$120) -> 0 | J168: =NETLVarProp(S1b.UP.O.FarmOp!$I$93,J$120) -> 0 | K168: =NETLVarProp(S1b.UP.O.FarmOp!$I$93,K$120) -> 0 | L168: =NETLVarProp(S1b.UP.O.FarmOp!$I$93,L$120) -> 0 | M168: =NETLVarProp(S1b.UP.O.FarmOp!$I$93,M$120) -> Triangular | N168: I | AJ168: Lime, at farm | AK168: kg/tonne | AL168: 0 | AM168: 0 | AN168: 0 | AO168: 0 | AP168: Triangular | AQ168: Minimum, maximum and best estimate determined in separate analysis.
A169: =NETLVarProp(S1b.UP.O.FarmOp!$I$94,A$120) -> Fertilizer as nitrogen, at farm | B169: =NETLVarProp(S1b.UP.O.FarmOp!$I$94,B$120) -> Fert_N1_x | C169: =NETLVarProp(S1b.UP.O.FarmOp!$I$94,C$120) -> S1b.UP.O.FarmOp | D169: =NETLVarProp(S1b.UP.O.FarmOp!$I$94,D$120) -> $I$94 | E169: =NETLVarProp(S1b.UP.O.FarmOp!$I$94,E$120) -> 0 | F169: =NETLVarProp(S1b.UP.O.FarmOp!$I$94,F$120) -> kg/tonne | H169: O | I169: =NETLVarProp(S1b.UP.O.FarmOp!$I$94,I$120) -> 0 | J169: =NETLVarProp(S1b.UP.O.FarmOp!$I$94,J$120) -> 0 | K169: =NETLVarProp(S1b.UP.O.FarmOp!$I$94,K$120) -> 0 | L169: =NETLVarProp(S1b.UP.O.FarmOp!$I$94,L$120) -> 0 | M169: =NETLVarProp(S1b.UP.O.FarmOp!$I$94,M$120) -> Triangular | N169: I | AJ169: Fertilizer as nitrogen, at farm | AK169: kg/tonne | AL169: 0 | AM169: 0 | AN169: 0 | AO169: 0 | AP169: Triangular | AQ169: Minimum, maximum and best estimate determined in separate analysis.
A170: =NETLVarProp(S1b.UP.O.FarmOp!$I$95,A$120) -> Fertilizer as phosphorous, at farm | B170: =NETLVarProp(S1b.UP.O.FarmOp!$I$95,B$120) -> Fert_P1_x | C170: =NETLVarProp(S1b.UP.O.FarmOp!$I$95,C$120) -> S1b.UP.O.FarmOp | D170: =NETLVarProp(S1b.UP.O.FarmOp!$I$95,D$120) -> $I$95 | E170: =NETLVarProp(S1b.UP.O.FarmOp!$I$95,E$120) -> 0 | F170: =NETLVarProp(S1b.UP.O.FarmOp!$I$95,F$120) -> kg/tonne | H170: O | I170: =NETLVarProp(S1b.UP.O.FarmOp!$I$95,I$120) -> 0 | J170: =NETLVarProp(S1b.UP.O.FarmOp!$I$95,J$120) -> 0 | K170: =NETLVarProp(S1b.UP.O.FarmOp!$I$95,K$120) -> 0 | L170: =NETLVarProp(S1b.UP.O.FarmOp!$I$95,L$120) -> 0 | M170: =NETLVarProp(S1b.UP.O.FarmOp!$I$95,M$120) -> Triangular | N170: I | AJ170: Fertilizer as phosphorous, at farm | AK170: kg/tonne | AL170: 0 | AM170: 0 | AN170: 0 | AO170: 0 | AP170: Triangular | AQ170: Minimum, maximum and best estimate determined in separate analysis.
A171: =NETLVarProp(S1b.UP.O.FarmOp!$I$112,A$120) -> Diesel fuel, at farm | B171: =NETLVarProp(S1b.UP.O.FarmOp!$I$112,B$120) -> Diesel_x | C171: =NETLVarProp(S1b.UP.O.FarmOp!$I$112,C$120) -> S1b.UP.O.FarmOp | D171: =NETLVarProp(S1b.UP.O.FarmOp!$I$112,D$120) -> $I$112 | E171: =NETLVarProp(S1b.UP.O.FarmOp!$I$112,E$120) -> 0 | F171: =NETLVarProp(S1b.UP.O.FarmOp!$I$112,F$120) -> kg/tonne | H171: O | I171: =NETLVarProp(S1b.UP.O.FarmOp!$I$112,I$120) -> 0 | J171: =NETLVarProp(S1b.UP.O.FarmOp!$I$112,J$120) -> 0 | K171: =NETLVarProp(S1b.UP.O.FarmOp!$I$112,K$120) -> 0 | L171: =NETLVarProp(S1b.UP.O.FarmOp!$I$112,L$120) -> 0 | M171: =NETLVarProp(S1b.UP.O.FarmOp!$I$112,M$120) -> Triangular | N171: I | AJ171: Diesel fuel, at farm | AK171: kg/tonne | AL171: 0 | AM171: 0 | AN171: 0 | AO171: 0 | AP171: Triangular | AQ171: Minimum, maximum and best estimate determined in separate analysis.
A172: Input Parameters-SG Farming, Construction | AJ172: Input Parameters-SG Farming, Construction
A173: =NETLVarProp(S1b.UP.C.FarmCon!$I$71,A$120) -> Baler, midsize-large rectangular | B173: =NETLVarProp(S1b.UP.C.FarmCon!$I$71,B$120) -> Baler_rec1_x | C173: =NETLVarProp(S1b.UP.C.FarmCon!$I$71,C$120) -> S1b.UP.C.FarmCon | D173: =NETLVarProp(S1b.UP.C.FarmCon!$I$71,D$120) -> $I$71 | E173: =NETLVarProp(S1b.UP.C.FarmCon!$I$71,E$120) -> 0 | F173: =NETLVarProp(S1b.UP.C.FarmCon!$I$71,F$120) -> pcs/tonne | H173: O | I173: =NETLVarProp(S1b.UP.C.FarmCon!$I$71,I$120) -> 0 | J173: =NETLVarProp(S1b.UP.C.FarmCon!$I$71,J$120) -> 0 | K173: =NETLVarProp(S1b.UP.C.FarmCon!$I$71,K$120) -> 0 | L173: =NETLVarProp(S1b.UP.C.FarmCon!$I$71,L$120) -> 0 | M173: =NETLVarProp(S1b.UP.C.FarmCon!$I$71,M$120) -> Triangular | N173: I | AJ173: Baler, midsize-large rectangular | AK173: pcs/tonne | AL173: 0 | AM173: 0 | AN173: 0 | AO173: 0 | AP173: Triangular | AQ173: Minimum, maximum and best estimate determined in separate analysis.
A174: =NETLVarProp(S1b.UP.C.FarmCon!$I$86,A$120) -> Mower-cond. (14-16 ft) or SP swather (16 ft) | B174: =NETLVarProp(S1b.UP.C.FarmCon!$I$86,B$120) -> AgMowCond_14_16_x | C174: =NETLVarProp(S1b.UP.C.FarmCon!$I$86,C$120) -> S1b.UP.C.FarmCon | D174: =NETLVarProp(S1b.UP.C.FarmCon!$I$86,D$120) -> $I$86 | E174: =NETLVarProp(S1b.UP.C.FarmCon!$I$86,E$120) -> 0 | F174: =NETLVarProp(S1b.UP.C.FarmCon!$I$86,F$120) -> pcs/tonne | H174: O | I174: =NETLVarProp(S1b.UP.C.FarmCon!$I$86,I$120) -> 0 | J174: =NETLVarProp(S1b.UP.C.FarmCon!$I$86,J$120) -> 0 | K174: =NETLVarProp(S1b.UP.C.FarmCon!$I$86,K$120) -> 0 | L174: =NETLVarProp(S1b.UP.C.FarmCon!$I$86,L$120) -> 0 | M174: =NETLVarProp(S1b.UP.C.FarmCon!$I$86,M$120) -> Triangular | N174: I | AJ174: Mower-cond. (14-16 ft) or SP swather (16 ft) | AK174: pcs/tonne | AL174: 0 | AM174: 0 | AN174: 0 | AO174: 0 | AP174: Triangular | AQ174: Minimum, maximum and best estimate determined in separate analysis.
A175: =NETLVarProp(S1b.UP.C.FarmCon!$I$92,A$120) -> Bale/module storage pad &/or building constructed area | B175: =NETLVarProp(S1b.UP.C.FarmCon!$I$92,B$120) -> BaleModPad1_x | C175: =NETLVarProp(S1b.UP.C.FarmCon!$I$92,C$120) -> S1b.UP.C.FarmCon | D175: =NETLVarProp(S1b.UP.C.FarmCon!$I$92,D$120) -> $I$92 | E175: =NETLVarProp(S1b.UP.C.FarmCon!$I$92,E$120) -> 0 | F175: =NETLVarProp(S1b.UP.C.FarmCon!$I$92,F$120) -> ha/tonne | H175: O | I175: =NETLVarProp(S1b.UP.C.FarmCon!$I$92,I$120) -> 0 | J175: =NETLVarProp(S1b.UP.C.FarmCon!$I$92,J$120) -> 0 | K175: =NETLVarProp(S1b.UP.C.FarmCon!$I$92,K$120) -> 0 | L175: =NETLVarProp(S1b.UP.C.FarmCon!$I$92,L$120) -> 0 | M175: =NETLVarProp(S1b.UP.C.FarmCon!$I$92,M$120) -> Triangular | N175: I | AJ175: Bale/module storage pad &/or building constructed area | AK175: ha/tonne | AL175: 0 | AM175: 0 | AN175: 0 | AO175: 0 | AP175: Triangular | AQ175: Minimum, maximum and best estimate determined in separate analysis.
A176: Input Parameters-Upstream GHG Emissions from Secondary Energy Unit Processes | H176: T | AJ176: Input Parameters-Upstream GHG Emissions from Secondary Energy Unit Processes
A177: Upstream CO2 Emitted per kg Petroleum Diesel Fuel Produced | B177: Dies_Upstr_CO2 | C177: =NETLVarProp(Sec.UP.All!$E$143,C$120) -> Sec.UP.All | D177: =NETLVarProp(Sec.UP.All!$E$143,D$120) -> $E$143 | E177: =NETLVarProp(Sec.UP.All!$E$143,E$120) ->  | F177: kg CO2/kg | H177: O | I177: =Sec.UP.All!G$143 -> 0.7184460198 | J177: =Sec.UP.All!H$143 -> 0.6825237188 | K177: =Sec.UP.All!I$143 -> 0.7543683208 | L177: =Sec.UP.All!J$143 -> 0.7184460198 | M177: =Sec.UP.All!F$143 -> Triangular | N177: I | AJ177: Upstream CO2 Emitted per kg Petroleum Diesel Fuel Produced | AK177: kg CO2/kg | AL177: 0.7184460198 | AM177: 0.6825237188 | AN177: 0.7543683208 | AO177: 0.7184460198 | AP177: Triangular | AQ177: Assumed that upstream GHG emissions are -5% to +5% of best estimate | AS177: 0.95 | AT177: 1.05 | AU177: 0.05 | AV177: 0.05
A178: Upstream CH4 Emitted per kg Petroleum Diesel Fuel Produced | B178: Dies_Upstr_CH4 | C178: =NETLVarProp(Sec.UP.All!$E$145,C$120) -> Sec.UP.All | D178: =NETLVarProp(Sec.UP.All!$E$145,D$120) -> $E$145 | E178: =NETLVarProp(Sec.UP.All!$E$145,E$120) ->  | F178: kg CH4/kg | H178: O | I178: =Sec.UP.All!G$145 -> 0.00399826704 | J178: =Sec.UP.All!H$145 -> 0.003798353688 | K178: =Sec.UP.All!I$145 -> 0.004198180392 | L178: =Sec.UP.All!J$145 -> 0.00399826704 | M178: =Sec.UP.All!F$145 -> Triangular | N178: I | AJ178: Upstream CH4 Emitted per kg Petroleum Diesel Fuel Produced | AK178: kg CH4/kg | AL178: 0.00399826704 | AM178: 0.003798353688 | AN178: 0.004198180392 | AO178: 0.00399826704 | AP178: Triangular | AQ178: Assumed that upstream GHG emissions are -5% to +5% of best estimate | AS178: 0.95 | AT178: 1.05 | AU178: 0.05 | AV178: 0.05
A179: Upstream N2O Emitted per kg Petroleum Diesel Fuel Produced | B179: Dies_Upstr_N2O | C179: =NETLVarProp(Sec.UP.All!$E$146,C$120) -> Sec.UP.All | D179: =NETLVarProp(Sec.UP.All!$E$146,D$120) -> $E$146 | E179: =NETLVarProp(Sec.UP.All!$E$146,E$120) ->  | F179: kg N2O/kg | H179: O | I179: =Sec.UP.All!G$146 -> 1.298416479e-05 | J179: =Sec.UP.All!H$146 -> 1.233495655e-05 | K179: =Sec.UP.All!I$146 -> 1.363337303e-05 | L179: =Sec.UP.All!J$146 -> 1.298416479e-05 | M179: =Sec.UP.All!F$146 -> Triangular | N179: I | AJ179: Upstream N2O Emitted per kg Petroleum Diesel Fuel Produced | AK179: kg N2O/kg | AL179: 1.298416479e-05 | AM179: 1.233495655e-05 | AN179: 1.363337303e-05 | AO179: 1.298416479e-05 | AP179: Triangular | AQ179: Assumed that upstream GHG emissions are -5% to +5% of best estimate | AS179: 0.95 | AT179: 1.05 | AU179: 0.05 | AV179: 0.05
A180: Output-CO2e Emissions-Farming | AJ180: Output-CO2e Emissions-Farming
A181: Stage 1b: Total Non-biogenic CO2e Emiss. (IPCC 2007) per RF | B181: CO2e2007NonbioFarmRF | C181: =NETLVarProp(Summ.Rep.GHG!$L$37,C$120) -> Summ.Rep.GHG | D181: =NETLVarProp(Summ.Rep.GHG!$L$37,D$120) -> $L$37 | E181: =NETLVarProp(Summ.Rep.GHG!$L$37,E$120) ->  | F181: g CO2e/tonne | G181: X | H181: O | N181: O | AJ181: Stage 1b: Total Non-biogenic CO2e Emiss. (IPCC 2007) per RF | AK181: g CO2e/tonne
A184: Stage 1c-Direct and Indirect Land Use | H184: T | AJ184: =IF(A184="","",A184) -> Stage 1c-Direct and Indirect Land Use | AK184: =IF(F184="","",F184) ->  | AL184: =IF(I184="","",I184) ->  | AM184: =IF(J184="","",J184) ->  | AN184: =IF(K184="","",K184) ->  | AO184: =IF(L184="","",L184) ->  | AP184: =IF(M184="","",M184) -> 
A185: Input Parameters-Direct and Indirect Land Use | H185: T | AJ185: Input Parameters-Direct and Indirect Land Use
A186: =NETLVarProp(S1c.UP.D.DirLand!$I$57,A$120) -> Share of land previously crop land | B186: =NETLVarProp(S1c.UP.D.DirLand!$I$57,B$120) -> s_cr | C186: =NETLVarProp(S1c.UP.D.DirLand!$I$57,C$120) -> S1c.UP.D.DirLand | D186: =NETLVarProp(S1c.UP.D.DirLand!$I$57,D$120) -> $I$57 | E186: =NETLVarProp(S1c.UP.D.DirLand!$I$57,E$120) ->  | H186: O | I186: =NETLVarProp(S1c.UP.D.DirLand!$I$57,I$120) -> 0.239 | J186: =NETLVarProp(S1c.UP.D.DirLand!$I$57,J$120) -> 0.15 | K186: =NETLVarProp(S1c.UP.D.DirLand!$I$57,K$120) -> 0.4 | L186: =NETLVarProp(S1c.UP.D.DirLand!$I$57,L$120) -> 0.239 | M186: =NETLVarProp(S1c.UP.D.DirLand!$I$57,M$120) -> Triangular | N186: I | O186: I | P186: I | AJ186: Share of land previously crop land | AL186: 0.239 | AM186: 0.15 | AN186: 0.4 | AO186: 0.239 | AP186: Triangular | AQ186: The best estimate is from Eppink et al. (2010), the minimum and maximum values are based on engineering judgement. | AS186: =AM186/AL186 -> 0.6276150628 | AT186: =AN186/AL186 -> 1.673640167 | AU186: =(AL186-AM186)/AL186 -> 0.3723849372 | AV186: =(AN186-AL186)/AL186 -> 0.6736401674
A187: =NETLVarProp(S1c.UP.D.DirLand!$I$60,A$120) -> N2O emissions from nitrogen fertilizer | B187: =NETLVarProp(S1c.UP.D.DirLand!$I$60,B$120) -> r_N2O | C187: =NETLVarProp(S1c.UP.D.DirLand!$I$60,C$120) -> S1c.UP.D.DirLand | D187: =NETLVarProp(S1c.UP.D.DirLand!$I$60,D$120) -> $I$60 | E187: =NETLVarProp(S1c.UP.D.DirLand!$I$60,E$120) ->  | F187: =NETLVarProp(S1c.UP.D.DirLand!$I$60,F$120) -> kg N2O/kg N | H187: O | I187: =NETLVarProp(S1c.UP.D.DirLand!$I$60,I$120) -> 0.02 | J187: =NETLVarProp(S1c.UP.D.DirLand!$I$60,J$120) -> 0.003 | K187: =NETLVarProp(S1c.UP.D.DirLand!$I$60,K$120) -> 0.05 | L187: =NETLVarProp(S1c.UP.D.DirLand!$I$60,L$120) -> 0.02 | M187: =NETLVarProp(S1c.UP.D.DirLand!$I$60,M$120) -> Triangular | N187: I | O187: I | P187: I | AJ187: N2O emissions from nitrogen fertilizer | AK187: kg N2O/kg N | AL187: 0.02 | AM187: 0.003 | AN187: 0.05 | AO187: 0.02 | AP187: Triangular | AQ187: Based on estimated rates from the literature. | AS187: 0.15 | AT187: 2.5 | AU187: =(AL187-AM187)/AL187 -> 0.85 | AV187: =(AN187-AL187)/AL187 -> 1.5
A188: =NETLVarProp(S1c.UP.D.DirLand!$I$67,A$120) -> Crop pre-harvest yield | B188: =NETLVarProp(S1c.UP.D.DirLand!$I$67,B$120) -> Y_cr | C188: =NETLVarProp(S1c.UP.D.DirLand!$I$67,C$120) -> S1c.UP.D.DirLand | D188: =NETLVarProp(S1c.UP.D.DirLand!$I$67,D$120) -> $I$67 | E188: =NETLVarProp(S1c.UP.D.DirLand!$I$67,E$120) ->  | F188: =NETLVarProp(S1c.UP.D.DirLand!$I$67,F$120) -> tonne/ha/yr | H188: O | I188: =NETLVarProp(S1c.UP.D.DirLand!$I$67,I$120) -> 1 | J188: =NETLVarProp(S1c.UP.D.DirLand!$I$67,J$120) -> 0.8 | K188: =NETLVarProp(S1c.UP.D.DirLand!$I$67,K$120) -> 1.2 | L188: =NETLVarProp(S1c.UP.D.DirLand!$I$67,L$120) -> 1 | M188: =NETLVarProp(S1c.UP.D.DirLand!$I$67,M$120) -> Uniform | N188: I | O188: I | P188: I | AJ188: Crop pre-harvest yield | AK188: tonne/ha/yr | AL188: 1 | AM188: 0.8 | AN188: 1.2 | AO188: 1 | AP188: Uniform | AQ188: Assumes that yield is -20% to +20% of best estimate | AS188: 0.8 | AT188: 1.2 | AU188: 0.2 | AV188: 0.2
A189: =NETLVarProp(S1c.UP.D.DirLand!$I$68,A$120) -> Pasture pre-harvest yield | B189: =NETLVarProp(S1c.UP.D.DirLand!$I$68,B$120) -> Y_pa | C189: =NETLVarProp(S1c.UP.D.DirLand!$I$68,C$120) -> S1c.UP.D.DirLand | D189: =NETLVarProp(S1c.UP.D.DirLand!$I$68,D$120) -> $I$68 | E189: =NETLVarProp(S1c.UP.D.DirLand!$I$68,E$120) ->  | F189: =NETLVarProp(S1c.UP.D.DirLand!$I$68,F$120) -> tonne/ha/yr | H189: O | I189: =NETLVarProp(S1c.UP.D.DirLand!$I$68,I$120) -> 5 | J189: =NETLVarProp(S1c.UP.D.DirLand!$I$68,J$120) -> 4 | K189: =NETLVarProp(S1c.UP.D.DirLand!$I$68,K$120) -> 6 | L189: =NETLVarProp(S1c.UP.D.DirLand!$I$68,L$120) -> 5 | M189: =NETLVarProp(S1c.UP.D.DirLand!$I$68,M$120) -> Uniform | N189: I | O189: I | P189: I | AJ189: Pasture pre-harvest yield | AK189: tonne/ha/yr | AL189: 5 | AM189: 4 | AN189: 6 | AO189: 5 | AP189: Uniform | AQ189: Assumes that yield is -20% to +20% of best estimate | AS189: 0.8 | AT189: 1.2 | AU189: 0.2 | AV189: 0.2
A190: =NETLVarProp(S1c.UP.D.DirLand!$I$70,A$120) -> Fraction of switchgrass yield assumed to be present during time period T_bio_ag (1year) | B190: =NETLVarProp(S1c.UP.D.DirLand!$I$70,B$120) -> f_b_sw | C190: =NETLVarProp(S1c.UP.D.DirLand!$I$70,C$120) -> S1c.UP.D.DirLand | D190: =NETLVarProp(S1c.UP.D.DirLand!$I$70,D$120) -> $I$70 | E190: =NETLVarProp(S1c.UP.D.DirLand!$I$70,E$120) ->  | H190: O | I190: =NETLVarProp(S1c.UP.D.DirLand!$I$70,I$120) -> 0.5 | J190: =NETLVarProp(S1c.UP.D.DirLand!$I$70,J$120) -> 0.4 | K190: =NETLVarProp(S1c.UP.D.DirLand!$I$70,K$120) -> 0.6 | L190: =NETLVarProp(S1c.UP.D.DirLand!$I$70,L$120) -> 0.5 | M190: =NETLVarProp(S1c.UP.D.DirLand!$I$70,M$120) -> Uniform | N190: I | O190: I | P190: I | AJ190: Fraction of switchgrass yield assumed to be present during time period T_bio_ag (1year) | AL190: 0.5 | AM190: 0.4 | AN190: 0.6 | AO190: 0.5 | AP190: Uniform | AQ190: Assumes that fraction of switchgrass yield is -20% to +20% of best estimate | AS190: 0.8 | AT190: 1.2 | AU190: 0.2 | AV190: 0.2
A191: =NETLVarProp(S1c.UP.D.DirLand!$I$71,A$120) -> Fraction of crop yield assumed to be present during time period T_bio_ag (1 year) | B191: =NETLVarProp(S1c.UP.D.DirLand!$I$71,B$120) -> f_b_cr | C191: =NETLVarProp(S1c.UP.D.DirLand!$I$71,C$120) -> S1c.UP.D.DirLand | D191: =NETLVarProp(S1c.UP.D.DirLand!$I$71,D$120) -> $I$71 | E191: =NETLVarProp(S1c.UP.D.DirLand!$I$71,E$120) ->  | H191: O | I191: =NETLVarProp(S1c.UP.D.DirLand!$I$71,I$120) -> 0.5 | J191: =NETLVarProp(S1c.UP.D.DirLand!$I$71,J$120) -> 0.4 | K191: =NETLVarProp(S1c.UP.D.DirLand!$I$71,K$120) -> 0.6 | L191: =NETLVarProp(S1c.UP.D.DirLand!$I$71,L$120) -> 0.5 | M191: =NETLVarProp(S1c.UP.D.DirLand!$I$71,M$120) -> Uniform | N191: I | O191: I | P191: I | AJ191: Fraction of crop yield assumed to be present during time period T_bio_ag (1 year) | AL191: 0.5 | AM191: 0.4 | AN191: 0.6 | AO191: 0.5 | AP191: Uniform | AQ191: Assumes that fraction of switchgrass yield is -20% to +20% of best estimate | AS191: 0.8 | AT191: 1.2 | AU191: 0.2 | AV191: 0.2
A192: =NETLVarProp(S1c.UP.D.DirLand!$I$72,A$120) -> Fraction of pasture yield assumed to be present during time period T_bio_ag (1 year) | B192: =NETLVarProp(S1c.UP.D.DirLand!$I$72,B$120) -> f_b_pa | C192: =NETLVarProp(S1c.UP.D.DirLand!$I$72,C$120) -> S1c.UP.D.DirLand | D192: =NETLVarProp(S1c.UP.D.DirLand!$I$72,D$120) -> $I$72 | E192: =NETLVarProp(S1c.UP.D.DirLand!$I$72,E$120) ->  | H192: O | I192: =NETLVarProp(S1c.UP.D.DirLand!$I$72,I$120) -> 0.5 | J192: =NETLVarProp(S1c.UP.D.DirLand!$I$72,J$120) -> 0.4 | K192: =NETLVarProp(S1c.UP.D.DirLand!$I$72,K$120) -> 0.6 | L192: =NETLVarProp(S1c.UP.D.DirLand!$I$72,L$120) -> 0.5 | M192: =NETLVarProp(S1c.UP.D.DirLand!$I$72,M$120) -> Uniform | N192: I | O192: I | P192: I | AJ192: Fraction of pasture yield assumed to be present during time period T_bio_ag (1 year) | AL192: 0.5 | AM192: 0.4 | AN192: 0.6 | AO192: 0.5 | AP192: Uniform | AQ192: Assumes that fraction of switchgrass yield is -20% to +20% of best estimate | AS192: 0.8 | AT192: 1.2 | AU192: 0.2 | AV192: 0.2
A193: =NETLVarProp(S1c.UP.D.DirLand!$I$74,A$120) -> Carbon fraction of dry crops | B193: =NETLVarProp(S1c.UP.D.DirLand!$I$74,B$120) -> C_cr | C193: =NETLVarProp(S1c.UP.D.DirLand!$I$74,C$120) -> S1c.UP.D.DirLand | D193: =NETLVarProp(S1c.UP.D.DirLand!$I$74,D$120) -> $I$74 | E193: =NETLVarProp(S1c.UP.D.DirLand!$I$74,E$120) ->  | F193: =NETLVarProp(S1c.UP.D.DirLand!$I$74,F$120) -> kg C/kg row crops | H193: O | I193: =NETLVarProp(S1c.UP.D.DirLand!$I$74,I$120) -> 0.4 | J193: =NETLVarProp(S1c.UP.D.DirLand!$I$74,J$120) -> 0.36 | K193: =NETLVarProp(S1c.UP.D.DirLand!$I$74,K$120) -> 0.44 | L193: =NETLVarProp(S1c.UP.D.DirLand!$I$74,L$120) -> 0.4 | M193: =NETLVarProp(S1c.UP.D.DirLand!$I$74,M$120) -> Uniform | N193: I | O193: I | P193: I | AJ193: Carbon fraction of dry crops | AK193: kg C/kg row crops | AL193: 0.4 | AM193: 0.36 | AN193: 0.44 | AO193: 0.4 | AP193: Uniform | AQ193: Assumes that carbon fraction is -10% to +10% of best estimate | AS193: 0.9 | AT193: 1.1 | AU193: 0.1 | AV193: 0.1
A194: =NETLVarProp(S1c.UP.D.DirLand!$I$75,A$120) -> Carbon fraction of dry pasture | B194: =NETLVarProp(S1c.UP.D.DirLand!$I$75,B$120) -> C_pa | C194: =NETLVarProp(S1c.UP.D.DirLand!$I$75,C$120) -> S1c.UP.D.DirLand | D194: =NETLVarProp(S1c.UP.D.DirLand!$I$75,D$120) -> $I$75 | E194: =NETLVarProp(S1c.UP.D.DirLand!$I$75,E$120) ->  | F194: =NETLVarProp(S1c.UP.D.DirLand!$I$75,F$120) -> kg C/kg pasture | H194: O | I194: =NETLVarProp(S1c.UP.D.DirLand!$I$75,I$120) -> 0.4 | J194: =NETLVarProp(S1c.UP.D.DirLand!$I$75,J$120) -> 0.36 | K194: =NETLVarProp(S1c.UP.D.DirLand!$I$75,K$120) -> 0.44 | L194: =NETLVarProp(S1c.UP.D.DirLand!$I$75,L$120) -> 0.4 | M194: =NETLVarProp(S1c.UP.D.DirLand!$I$75,M$120) -> Uniform | N194: I | O194: I | P194: I | AJ194: Carbon fraction of dry pasture | AK194: kg C/kg pasture | AL194: 0.4 | AM194: 0.36 | AN194: 0.44 | AO194: 0.4 | AP194: Uniform | AQ194: Assumes that carbon fraction is -10% to +10% of best estimate | AS194: 0.9 | AT194: 1.1 | AU194: 0.1 | AV194: 0.1
A195: =NETLVarProp(S1c.UP.D.DirLand!$I$81,A$120) -> Carbon in crop roots | B195: =NETLVarProp(S1c.UP.D.DirLand!$I$81,B$120) -> C_root_cr | C195: =NETLVarProp(S1c.UP.D.DirLand!$I$81,C$120) -> S1c.UP.D.DirLand | D195: =NETLVarProp(S1c.UP.D.DirLand!$I$81,D$120) -> $I$81 | E195: =NETLVarProp(S1c.UP.D.DirLand!$I$81,E$120) ->  | F195: =NETLVarProp(S1c.UP.D.DirLand!$I$81,F$120) -> tonne C/ha | H195: O | I195: =NETLVarProp(S1c.UP.D.DirLand!$I$81,I$120) -> 2 | J195: =NETLVarProp(S1c.UP.D.DirLand!$I$81,J$120) -> 1.8 | K195: =NETLVarProp(S1c.UP.D.DirLand!$I$81,K$120) -> 2.2 | L195: =NETLVarProp(S1c.UP.D.DirLand!$I$81,L$120) -> 2 | M195: =NETLVarProp(S1c.UP.D.DirLand!$I$81,M$120) -> Uniform | N195: I | O195: I | P195: I | AJ195: Carbon in crop roots | AK195: tonne C/ha | AL195: 2 | AM195: 1.8 | AN195: 2.2 | AO195: 2 | AP195: Uniform | AQ195: Assumes that carbon in roots is -10% to +10% of best estimate | AS195: 0.9 | AT195: 1.1 | AU195: 0.1 | AV195: 0.1
A196: =NETLVarProp(S1c.UP.D.DirLand!$I$82,A$120) -> Carbon in pasture roots | B196: =NETLVarProp(S1c.UP.D.DirLand!$I$82,B$120) -> C_root_pa | C196: =NETLVarProp(S1c.UP.D.DirLand!$I$82,C$120) -> S1c.UP.D.DirLand | D196: =NETLVarProp(S1c.UP.D.DirLand!$I$82,D$120) -> $I$82 | E196: =NETLVarProp(S1c.UP.D.DirLand!$I$82,E$120) ->  | F196: =NETLVarProp(S1c.UP.D.DirLand!$I$82,F$120) -> tonne C/ha | H196: O | I196: =NETLVarProp(S1c.UP.D.DirLand!$I$82,I$120) -> 4.8 | J196: =NETLVarProp(S1c.UP.D.DirLand!$I$82,J$120) -> 4.32 | K196: =NETLVarProp(S1c.UP.D.DirLand!$I$82,K$120) -> 5.28 | L196: =NETLVarProp(S1c.UP.D.DirLand!$I$82,L$120) -> 4.8 | M196: =NETLVarProp(S1c.UP.D.DirLand!$I$82,M$120) -> Uniform | N196: I | O196: I | P196: I | AJ196: Carbon in pasture roots | AK196: tonne C/ha | AL196: 4.8 | AM196: 4.32 | AN196: 5.28 | AO196: 4.8 | AP196: Uniform | AQ196: Assumes that carbon in roots is -10% to +10% of best estimate | AS196: =AM196/AL196 -> 0.9 | AT196: =AN196/AL196 -> 1.1 | AU196: 0.1 | AV196: 0.1
A197: Input Parameters-Direct Land Use Only | H197: T | AJ197: Input Parameters-Direct Land Use Only
A198: =NETLVarProp(S1c.UP.D.DirLand!$I$80,A$120) -> Carbon in switchgrass roots | B198: =NETLVarProp(S1c.UP.D.DirLand!$I$80,B$120) -> C_root_sw | C198: =NETLVarProp(S1c.UP.D.DirLand!$I$80,C$120) -> S1c.UP.D.DirLand | D198: =NETLVarProp(S1c.UP.D.DirLand!$I$80,D$120) -> $I$80 | E198: =NETLVarProp(S1c.UP.D.DirLand!$I$80,E$120) ->  | F198: =NETLVarProp(S1c.UP.D.DirLand!$I$80,F$120) -> tonne C/ha | H198: O | I198: =NETLVarProp(S1c.UP.D.DirLand!$I$80,I$120) -> 4.9 | J198: =NETLVarProp(S1c.UP.D.DirLand!$I$80,J$120) -> 4.41 | K198: =NETLVarProp(S1c.UP.D.DirLand!$I$80,K$120) -> 5.39 | L198: =NETLVarProp(S1c.UP.D.DirLand!$I$80,L$120) -> 4.9 | M198: =NETLVarProp(S1c.UP.D.DirLand!$I$80,M$120) -> Uniform | N198: I | P198: I | AJ198: Carbon in switchgrass roots | AK198: tonne C/ha | AL198: 4.9 | AM198: 4.41 | AN198: 5.39 | AO198: 4.9 | AP198: Uniform | AQ198: Assumes that carbon in roots is -10% to +10% of best estimate | AS198: =AM198/AL198 -> 0.9 | AT198: =AN198/AL198 -> 1.1 | AU198: =(AL198-AM198)/AL198 -> 0.1 | AV198: =(AN198-AL198)/AL198 -> 0.1
A199: Input Parameters-Indirect Land Use Only | H199: T | AJ199: Input Parameters-Indirect Land Use Only
A200: =NETLVarProp(S1c.UP.I.IndLand!$I$58,A$120) -> Fraction of crop land converted directly to switchgrass that is indirectly converted back to crop land | B200: =NETLVarProp(S1c.UP.I.IndLand!$I$58,B$120) -> f_cr_ind | C200: =NETLVarProp(S1c.UP.I.IndLand!$I$58,C$120) -> S1c.UP.I.IndLand | D200: =NETLVarProp(S1c.UP.I.IndLand!$I$58,D$120) -> $I$58 | E200: =NETLVarProp(S1c.UP.I.IndLand!$I$58,E$120) ->  | H200: O | I200: =NETLVarProp(S1c.UP.I.IndLand!$I$58,I$120) -> 0.3 | J200: =NETLVarProp(S1c.UP.I.IndLand!$I$58,J$120) -> 0.2 | K200: =NETLVarProp(S1c.UP.I.IndLand!$I$58,K$120) -> 0.4 | L200: =NETLVarProp(S1c.UP.I.IndLand!$I$58,L$120) -> 0.3 | M200: =NETLVarProp(S1c.UP.I.IndLand!$I$58,M$120) -> Uniform | O200: I | P200: I | AJ200: Fraction of crop land converted directly to switchgrass that is indirectly converted back to crop land | AL200: 0.3 | AM200: 0.2 | AN200: 0.4 | AO200: 0.3 | AP200: Uniform | AQ200: Assumes that fraction of land is -33% to +33% of best estimate | AS200: =AM200/AL200 -> 0.6666666667 | AT200: =AN200/AL200 -> 1.333333333 | AU200: =(AL200-AM200)/AL200 -> 0.3333333333 | AV200: =(AN200-AL200)/AL200 -> 0.3333333333
A201: =NETLVarProp(S1c.UP.I.IndLand!$I$64,A$120) -> Fraction of pasture land converted directly to switchgrass that is indirectly converted back to pasture land | B201: =NETLVarProp(S1c.UP.I.IndLand!$I$64,B$120) -> f_pa_ind | C201: =NETLVarProp(S1c.UP.I.IndLand!$I$64,C$120) -> S1c.UP.I.IndLand | D201: =NETLVarProp(S1c.UP.I.IndLand!$I$64,D$120) -> $I$64 | E201: =NETLVarProp(S1c.UP.I.IndLand!$I$64,E$120) ->  | H201: O | I201: =NETLVarProp(S1c.UP.I.IndLand!$I$64,I$120) -> 0.3 | J201: =NETLVarProp(S1c.UP.I.IndLand!$I$64,J$120) -> 0.2 | K201: =NETLVarProp(S1c.UP.I.IndLand!$I$64,K$120) -> 0.4 | L201: =NETLVarProp(S1c.UP.I.IndLand!$I$64,L$120) -> 0.3 | M201: =NETLVarProp(S1c.UP.I.IndLand!$I$64,M$120) -> Uniform | O201: I | P201: I | AJ201: Fraction of pasture land converted directly to switchgrass that is indirectly converted back to pasture land | AL201: 0.3 | AM201: 0.2 | AN201: 0.4 | AO201: 0.3 | AP201: Uniform | AQ201: Assumes that fraction of land is -33% to +33% of best estimate | AS201: 0.6666666667 | AT201: 1.333333333 | AU201: =(AL201-AM201)/AL201 -> 0.3333333333 | AV201: =(AN201-AL201)/AL201 -> 0.3333333333
A202: =NETLVarProp(S1c.UP.I.IndLand!$I$76,A$120) -> Carbon in above ground "other" (including forest) biomass | B202: =NETLVarProp(S1c.UP.I.IndLand!$I$76,B$120) -> C_above_oth | C202: =NETLVarProp(S1c.UP.I.IndLand!$I$76,C$120) -> S1c.UP.I.IndLand | D202: =NETLVarProp(S1c.UP.I.IndLand!$I$76,D$120) -> $I$76 | E202: =NETLVarProp(S1c.UP.I.IndLand!$I$76,E$120) ->  | F202: =NETLVarProp(S1c.UP.I.IndLand!$I$76,F$120) -> tonne C/ha | H202: O | I202: =NETLVarProp(S1c.UP.I.IndLand!$I$76,I$120) -> 40 | J202: =NETLVarProp(S1c.UP.I.IndLand!$I$76,J$120) -> 30 | K202: =NETLVarProp(S1c.UP.I.IndLand!$I$76,K$120) -> 50 | L202: =NETLVarProp(S1c.UP.I.IndLand!$I$76,L$120) -> 40 | M202: =NETLVarProp(S1c.UP.I.IndLand!$I$76,M$120) -> Uniform | O202: I | P202: I | AJ202: Carbon in above ground "other" (including forest) biomass | AK202: tonne C/ha | AL202: 40 | AM202: 30 | AN202: 50 | AO202: 40 | AP202: Uniform | AQ202: Assumes that carbon mass is -25% to +25% of best estimate | AS202: 0.75 | AT202: 1.25 | AU202: 0.25 | AV202: 0.25
A203: =NETLVarProp(S1c.UP.I.IndLand!$I$88,A$120) -> Carbon in "other" biomass (including forest) roots | B203: =NETLVarProp(S1c.UP.I.IndLand!$I$88,B$120) -> C_root_oth | C203: =NETLVarProp(S1c.UP.I.IndLand!$I$88,C$120) -> S1c.UP.I.IndLand | D203: =NETLVarProp(S1c.UP.I.IndLand!$I$88,D$120) -> $I$88 | E203: =NETLVarProp(S1c.UP.I.IndLand!$I$88,E$120) ->  | F203: =NETLVarProp(S1c.UP.I.IndLand!$I$88,F$120) -> tonne C/ha | H203: O | I203: =NETLVarProp(S1c.UP.I.IndLand!$I$88,I$120) -> 10 | J203: =NETLVarProp(S1c.UP.I.IndLand!$I$88,J$120) -> 8 | K203: =NETLVarProp(S1c.UP.I.IndLand!$I$88,K$120) -> 12 | L203: =NETLVarProp(S1c.UP.I.IndLand!$I$88,L$120) -> 10 | M203: =NETLVarProp(S1c.UP.I.IndLand!$I$88,M$120) -> Uniform | O203: I | P203: I | AJ203: Carbon in "other" biomass (including forest) roots | AK203: tonne C/ha | AL203: 10 | AM203: =IF(J203="","",J203) -> 8 | AN203: 12 | AO203: 10 | AP203: Uniform | AQ203: Assumes that carbon mass is -20% to +20% of best estimate | AS203: 0.8 | AT203: 1.2 | AU203: 0.2 | AV203: 0.2
A204: Output-CO2e Emiss./Seques.-Direct Land Use | H204: T | AJ204: Output-CO2e Emiss./Seques.-Direct Land Use
A205: Direct Land Use-Total CO2e Emiss. (IPCC 2007) per RF | B205: CO2e2007_DLU_EmisRF | C205: =NETLVarProp(Summ.Rep.GHG!$D$118,C$120) -> Summ.Rep.GHG | D205: =NETLVarProp(Summ.Rep.GHG!$D$118,D$120) -> $D$118 | E205: =NETLVarProp(Summ.Rep.GHG!$D$118,E$120) -> 0 | F205: g CO2e/tonne | G205: X | H205: O | N205: O | AJ205: Direct Land Use-Total CO2e Emiss. (IPCC 2007) per RF | AK205: g CO2e/tonne
A206: Direct Land Use-Total CO2e Seques. (IPCC 2007) per RF | B206: CO2e2007_DLU_SeqRF | C206: =NETLVarProp(Summ.Rep.GHG!$D$118,C$120) -> Summ.Rep.GHG | D206: =NETLVarProp(Summ.Rep.GHG!$D$118,D$120) -> $D$118 | E206: =-NETLVarProp(Summ.Rep.GHG!$D$118,E$120) -> 0 | F206: g CO2e/tonne | G206: X | H206: O | AJ206: Direct Land Use-Total CO2e Seques. (IPCC 2007) per RF | AK206: g CO2e/tonne
A207: Output-CO2e Emissions-Indirect Land Use | H207: T | AJ207: Output-CO2e Emissions-Indirect Land Use
A208: Indirect Land Use-Total CO2e Emiss. (IPCC 2007) per RF | B208: CO2e2007_ILU_EmisRF | C208: =NETLVarProp(Summ.Rep.GHG!$D$119,C$120) -> Summ.Rep.GHG | D208: =NETLVarProp(Summ.Rep.GHG!$D$119,D$120) -> $D$119 | E208: =NETLVarProp(Summ.Rep.GHG!$D$119,E$120) -> 0 | F208: g CO2e/tonne | G208: X | H208: O | O208: O | AJ208: Indirect Land Use-Total CO2e Emiss. (IPCC 2007) per RF | AK208: g CO2e/tonne
A209: Output-CO2e Emissions-Direct and Indirect Land Use | H209: T | AJ209: =IF(A209="","",A209) -> Output-CO2e Emissions-Direct and Indirect Land Use | AK209: =IF(F209="","",F209) ->  | AL209: =IF(I209="","",I209) ->  | AM209: =IF(J209="","",J209) ->  | AN209: =IF(K209="","",K209) ->  | AO209: =IF(L209="","",L209) ->  | AP209: =IF(M209="","",M209) -> 
A210: Direct and Indirect Land Use-Total CO2e Emiss. (IPCC 2007) per RF | B210: CO2e2007_DLU_ILU_EmisRF | C210: =NETLVarProp(Summ.Rep.GHG!$D$120,C$120) -> Summ.Rep.GHG | D210: =NETLVarProp(Summ.Rep.GHG!$D$120,D$120) -> $D$120 | E210: =NETLVarProp(Summ.Rep.GHG!$D$120,E$120) -> 0 | F210: g CO2e/tonne | G210: X | H210: O | P210: O | AJ210: Direct and Indirect Land Use-Total CO2e Emiss. (IPCC 2007) per RF | AK210: g CO2e/tonne
A213: Stage 2a-Coal Transport | H213: T | AJ213: =IF(A213="","",A213) -> Stage 2a-Coal Transport | AK213: =IF(F213="","",F213) ->  | AL213: =IF(I213="","",I213) ->  | AM213: =IF(J213="","",J213) ->  | AN213: =IF(K213="","",K213) ->  | AO213: =IF(L213="","",L213) ->  | AP213: =IF(M213="","",M213) -> 
A214: Input Parameters-Coal Transport, Operation | H214: T | AJ214: Input Parameters-Coal Transport, Operation
A215: =NETLVarProp('UP Control1'!$I$22,A$120) -> One-way Distance from Mine to CBTL Facility | B215: =NETLVarProp('UP Control1'!$I$22,B$120) -> TripDist_1way_mi | C215: =NETLVarProp('UP Control1'!$I$22,C$120) -> UP Control1 | D215: =NETLVarProp('UP Control1'!$I$22,D$120) -> $I$22 | E215: =NETLVarProp('UP Control1'!$I$22,E$120) ->  | F215: =NETLVarProp('UP Control1'!$I$22,F$120) -> mi | H215: O | I215: =NETLVarProp('UP Control1'!$I$22,I$120) -> 200 | J215: =NETLVarProp('UP Control1'!$I$22,J$120) -> 150 | K215: =NETLVarProp('UP Control1'!$I$22,K$120) -> 250 | L215: =NETLVarProp('UP Control1'!$I$22,L$120) -> 200 | M215: =NETLVarProp('UP Control1'!$I$22,M$120) -> Uniform | N215: I | AJ215: One-way Distance from Mine to CBTL Facility | AK215: mi | AL215: 200 | AM215: 150 | AN215: 250 | AO215: 200 | AP215: Uniform | AQ215: Based on reasonable estimates of minimum and maximum distances from mine in southern Illinois to CBTL in northcentral to northwestern Missouri | AS215: =AM215/AL215 -> 0.75 | AT215: =AN215/AL215 -> 1.25 | AU215: =(AL215-AM215)/AL215 -> 0.25 | AV215: =(AN215-AL215)/AL215 -> 0.25
A216: =NETLVarProp(S2a.UP.O.CoalRailOp!$I$62,A$120) -> Diesel Fuel Used per kg of Coal per km Transported | B216: =NETLVarProp(S2a.UP.O.CoalRailOp!$I$62,B$120) -> Diesel_kg_km | C216: =NETLVarProp(S2a.UP.O.CoalRailOp!$I$62,C$120) -> S2a.UP.O.CoalRailOp | D216: =NETLVarProp(S2a.UP.O.CoalRailOp!$I$62,D$120) -> $I$62 | E216: =NETLVarProp(S2a.UP.O.CoalRailOp!$I$62,E$120) ->  | F216: =NETLVarProp(S2a.UP.O.CoalRailOp!$I$62,F$120) -> kg diesel/kg-km | H216: O | I216: =NETLVarProp(S2a.UP.O.CoalRailOp!$I$62,I$120) -> 5.2063965e-06 | J216: =NETLVarProp(S2a.UP.O.CoalRailOp!$I$62,J$120) -> 4.68575685e-06 | K216: =NETLVarProp(S2a.UP.O.CoalRailOp!$I$62,K$120) -> 5.72703615e-06 | L216: =NETLVarProp(S2a.UP.O.CoalRailOp!$I$62,L$120) -> 5.2063965e-06 | M216: =NETLVarProp(S2a.UP.O.CoalRailOp!$I$62,M$120) -> Uniform | N216: I | AJ216: Diesel Fuel Used per kg of Coal per km Transported | AK216: kg diesel/kg-km | AL216: 5.2063965e-06 | AM216: 4.68575685e-06 | AN216: 5.72703615e-06 | AO216: 5.2063965e-06 | AP216: Uniform | AQ216: Assumes that diesel use is -10% to +10% of best estimate | AS216: 0.9 | AT216: 1.1 | AU216: 0.1 | AV216: 0.1
A217: =NETLVarProp(S2a.UP.O.CoalRailOp!$I$55,A$120) -> Factor for Fugitive Emissions of Coal During Transport | B217: =NETLVarProp(S2a.UP.O.CoalRailOp!$I$55,B$120) -> FugEmisFac_Coal_Train | C217: =NETLVarProp(S2a.UP.O.CoalRailOp!$I$55,C$120) -> S2a.UP.O.CoalRailOp | D217: =NETLVarProp(S2a.UP.O.CoalRailOp!$I$55,D$120) -> $I$55 | E217: =NETLVarProp(S2a.UP.O.CoalRailOp!$I$55,E$120) ->  | F217: =NETLVarProp(S2a.UP.O.CoalRailOp!$I$55,F$120) -> kg/kg-km | H217: O | I217: =NETLVarProp(S2a.UP.O.CoalRailOp!$I$55,I$120) -> 1.2e-07 | J217: =NETLVarProp(S2a.UP.O.CoalRailOp!$I$55,J$120) -> 1.08e-07 | K217: =NETLVarProp(S2a.UP.O.CoalRailOp!$I$55,K$120) -> 1.8e-07 | L217: =NETLVarProp(S2a.UP.O.CoalRailOp!$I$55,L$120) -> 1.44e-07 | M217: =NETLVarProp(S2a.UP.O.CoalRailOp!$I$55,M$120) -> Uniform | N217: I | AJ217: Factor for Fugitive Emissions of Coal During Transport | AK217: kg/kg-km | AL217: 1.2e-07 | AM217: 1.08e-07 | AN217: =IF(K217="","",K217) -> 1.8e-07 | AO217: 1.44e-07 | AP217: Uniform | AQ217: Assumes that fugitive dust emission factor is -10% to +50% of best estimate | AS217: 0.9 | AT217: 1.5 | AU217: 0.1 | AV217: 0.5
A218: Input Parameters-Coal Transport, Construction | H218: T | AJ218: Input Parameters-Coal Transport, Construction
A219: =NETLVarProp(S2a.UP.C.Track!$I$56,A$120) -> Length of Railroad Segment from CBTL Facility to Main Railroad Line | B219: =NETLVarProp(S2a.UP.C.Track!$I$56,B$120) -> Rail_Len1_mi | C219: =NETLVarProp(S2a.UP.C.Track!$I$56,C$120) -> S2a.UP.C.Track | D219: =NETLVarProp(S2a.UP.C.Track!$I$56,D$120) -> $I$56 | E219: =NETLVarProp(S2a.UP.C.Track!$I$56,E$120) ->  | F219: =NETLVarProp(S2a.UP.C.Track!$I$56,F$120) -> mi | H219: O | I219: =NETLVarProp(S2a.UP.C.Track!$I$56,I$120) -> 25 | J219: =NETLVarProp(S2a.UP.C.Track!$I$56,J$120) -> 15 | K219: =NETLVarProp(S2a.UP.C.Track!$I$56,K$120) -> 35 | L219: =NETLVarProp(S2a.UP.C.Track!$I$56,L$120) -> 25 | M219: =NETLVarProp(S2a.UP.C.Track!$I$56,M$120) -> Uniform | N219: I | AJ219: Length of Railroad Segment from CBTL Facility to Main Railroad Line | AK219: mi | AL219: 25 | AM219: 15 | AN219: 35 | AO219: 25 | AP219: Uniform | AQ219: Assumes connecting segment may need to be 10 miles shorter or longer than best estimate | AS219: 0.6 | AT219: 1.4 | AU219: 0.4 | AV219: 0.4
A220: =NETLVarProp(S2a.UP.C.Track!$I$66,A$120) -> Diesel Fuel Used per Mile of Installed Railroad Track | B220: =NETLVarProp(S2a.UP.C.Track!$I$66,B$120) -> Dies_Used_mi | C220: =NETLVarProp(S2a.UP.C.Track!$I$66,C$120) -> S2a.UP.C.Track | D220: =NETLVarProp(S2a.UP.C.Track!$I$66,D$120) -> $I$66 | E220: =NETLVarProp(S2a.UP.C.Track!$I$66,E$120) ->  | F220: =NETLVarProp(S2a.UP.C.Track!$I$66,F$120) -> L/mi | H220: O | I220: =NETLVarProp(S2a.UP.C.Track!$I$66,I$120) -> 9200 | J220: =NETLVarProp(S2a.UP.C.Track!$I$66,J$120) -> 8280 | K220: =NETLVarProp(S2a.UP.C.Track!$I$66,K$120) -> 10120 | L220: =NETLVarProp(S2a.UP.C.Track!$I$66,L$120) -> 9200 | M220: =NETLVarProp(S2a.UP.C.Track!$I$66,M$120) -> Uniform | N220: I | AJ220: Diesel Fuel Used per Mile of Installed Railroad Track | AK220: L/mi | AL220: 9200 | AM220: 8280 | AN220: 10120 | AO220: 9200 | AP220: Uniform | AQ220: Assumes that diesel fuel usage factor is -10% to +10% of best estimate | AS220: 0.9 | AT220: 1.1 | AU220: 0.1 | AV220: 0.1
A221: =NETLVarProp(S2a.UP.C.Track!$I$65,A$120) -> Fraction of Installation Inputs and Outputs Assumed to Apply to De-Installation | B221: =NETLVarProp(S2a.UP.C.Track!$I$65,B$120) -> DeIn_Frac | C221: =NETLVarProp(S2a.UP.C.Track!$I$65,C$120) -> S2a.UP.C.Track | D221: =NETLVarProp(S2a.UP.C.Track!$I$65,D$120) -> $I$65 | E221: =NETLVarProp(S2a.UP.C.Track!$I$65,E$120) ->  | H221: O | I221: =NETLVarProp(S2a.UP.C.Track!$I$65,I$120) -> 0.1 | J221: =NETLVarProp(S2a.UP.C.Track!$I$65,J$120) -> 0.05 | K221: =NETLVarProp(S2a.UP.C.Track!$I$65,K$120) -> 0.25 | L221: =NETLVarProp(S2a.UP.C.Track!$I$65,L$120) -> 0.1 | M221: =NETLVarProp(S2a.UP.C.Track!$I$65,M$120) -> Triangular | N221: I | AJ221: Fraction of Installation Inputs and Outputs Assumed to Apply to De-Installation | AL221: 0.1 | AM221: 0.05 | AN221: 0.25 | AO221: 0.1 | AP221: Triangular | AQ221: Assumed based on best engineering judgement | AS221: 0.5 | AT221: 2.5 | AU221: 0.5 | AV221: 1.5
A222: =NETLVarProp(S2a.UP.C.CoalRailCon!$I$65,A$120) -> Steel Plate, BF (85% Recovery Rate) for a Unit Coal Train per kg Coal Coal Delivered to CBTL | B222: =NETLVarProp(S2a.UP.C.CoalRailCon!$I$65,B$120) -> Stl_Plt_BF85_Coal_kg | C222: =NETLVarProp(S2a.UP.C.CoalRailCon!$I$65,C$120) -> S2a.UP.C.CoalRailCon | D222: =NETLVarProp(S2a.UP.C.CoalRailCon!$I$65,D$120) -> $I$65 | E222: =NETLVarProp(S2a.UP.C.CoalRailCon!$I$65,E$120) ->  | F222: =NETLVarProp(S2a.UP.C.CoalRailCon!$I$65,F$120) -> kg/kg coal | H222: O | I222: =NETLVarProp(S2a.UP.C.CoalRailCon!$I$65,I$120) ->  | J222: =NETLVarProp(S2a.UP.C.CoalRailCon!$I$65,J$120) ->  | K222: =NETLVarProp(S2a.UP.C.CoalRailCon!$I$65,K$120) ->  | L222: =NETLVarProp(S2a.UP.C.CoalRailCon!$I$65,L$120) ->  | M222: =NETLVarProp(S2a.UP.C.CoalRailCon!$I$65,M$120) -> Triangular | N222: I | AJ222: Steel Plate, BF (85% Recovery Rate) for a Unit Coal Train per kg Coal Coal Delivered to CBTL | AK222: kg/kg coal | AP222: Triangular | AQ222: Assumes that material use is -10% to +50% of best estimate
A223: =NETLVarProp(S2a.UP.C.CoalRailCon!$I$66,A$120) -> Steel, 316 2B (80% Recycled) for a Unit Coal Train per kg Coal Delivered to CBTL | B223: =NETLVarProp(S2a.UP.C.CoalRailCon!$I$66,B$120) -> Stl_3162B_80_Coal_kg | C223: =NETLVarProp(S2a.UP.C.CoalRailCon!$I$66,C$120) -> S2a.UP.C.CoalRailCon | D223: =NETLVarProp(S2a.UP.C.CoalRailCon!$I$66,D$120) -> $I$66 | E223: =NETLVarProp(S2a.UP.C.CoalRailCon!$I$66,E$120) ->  | F223: =NETLVarProp(S2a.UP.C.CoalRailCon!$I$66,F$120) -> kg/kg coal | H223: O | I223: =NETLVarProp(S2a.UP.C.CoalRailCon!$I$66,I$120) ->  | J223: =NETLVarProp(S2a.UP.C.CoalRailCon!$I$66,J$120) ->  | K223: =NETLVarProp(S2a.UP.C.CoalRailCon!$I$66,K$120) ->  | L223: =NETLVarProp(S2a.UP.C.CoalRailCon!$I$66,L$120) ->  | M223: =NETLVarProp(S2a.UP.C.CoalRailCon!$I$66,M$120) -> Triangular | N223: I | AJ223: Steel, 316 2B (80% Recycled) for a Unit Coal Train per kg Coal Delivered to CBTL | AK223: kg/kg coal | AP223: Triangular | AQ223: Assumes that material use is -10% to +50% of best estimate
A224: =NETLVarProp(S2a.UP.C.CoalRailCon!$I$67,A$120) -> Aluminum Sheet for a Unit Coal Train per kg Coal Coal Delivered to CBTL | B224: =NETLVarProp(S2a.UP.C.CoalRailCon!$I$67,B$120) -> AlumSht1_Coal_kg | C224: =NETLVarProp(S2a.UP.C.CoalRailCon!$I$67,C$120) -> S2a.UP.C.CoalRailCon | D224: =NETLVarProp(S2a.UP.C.CoalRailCon!$I$67,D$120) -> $I$67 | E224: =NETLVarProp(S2a.UP.C.CoalRailCon!$I$67,E$120) ->  | F224: =NETLVarProp(S2a.UP.C.CoalRailCon!$I$67,F$120) -> kg/kg coal | H224: O | I224: =NETLVarProp(S2a.UP.C.CoalRailCon!$I$67,I$120) ->  | J224: =NETLVarProp(S2a.UP.C.CoalRailCon!$I$67,J$120) ->  | K224: =NETLVarProp(S2a.UP.C.CoalRailCon!$I$67,K$120) ->  | L224: =NETLVarProp(S2a.UP.C.CoalRailCon!$I$67,L$120) ->  | M224: =NETLVarProp(S2a.UP.C.CoalRailCon!$I$67,M$120) -> Triangular | N224: I | AJ224: Aluminum Sheet for a Unit Coal Train per kg Coal Coal Delivered to CBTL | AK224: kg/kg coal | AP224: Triangular | AQ224: Assumes that material use is -10% to +50% of best estimate
A225: =NETLVarProp(S2a.UP.C.CoalRailCon!$I$68,A$120) -> Steel, Hot Rolled for Railroad Track Segment per kg Coal Delivered to CBTL | B225: =NETLVarProp(S2a.UP.C.CoalRailCon!$I$68,B$120) -> Stl_Hroll_coal_kg | C225: =NETLVarProp(S2a.UP.C.CoalRailCon!$I$68,C$120) -> S2a.UP.C.CoalRailCon | D225: =NETLVarProp(S2a.UP.C.CoalRailCon!$I$68,D$120) -> $I$68 | E225: =NETLVarProp(S2a.UP.C.CoalRailCon!$I$68,E$120) ->  | F225: =NETLVarProp(S2a.UP.C.CoalRailCon!$I$68,F$120) -> kg/kg coal | H225: O | I225: =NETLVarProp(S2a.UP.C.CoalRailCon!$I$68,I$120) ->  | J225: =NETLVarProp(S2a.UP.C.CoalRailCon!$I$68,J$120) ->  | K225: =NETLVarProp(S2a.UP.C.CoalRailCon!$I$68,K$120) ->  | L225: =NETLVarProp(S2a.UP.C.CoalRailCon!$I$68,L$120) ->  | M225: =NETLVarProp(S2a.UP.C.CoalRailCon!$I$68,M$120) -> Triangular | N225: I | AJ225: Steel, Hot Rolled for Railroad Track Segment per kg Coal Delivered to CBTL | AK225: kg/kg coal | AP225: Triangular | AQ225: Assumes that material use is -10% to +50% of best estimate
... 209 more rows

Sheet Res Sens ex
A1: Sensitivity Analysis Results: Basic Data | C1: 1
A3: Output Variable Information
A4: Variable Name | B4: Coal Acquisition-Total CO2e Emiss. (IPCC 2007) per RF
A5: Variable Symbol | B5: CO2e2007CoalMineRF
A6: Sheet Location | B6: Summ.Rep.GHG
A7: Units | B7: g CO2e/kg coal
A9: Base Case Result | B9: 78.12 | C9: g CO2e/kg coal
A11: Results of Sensitivity Analysis
A12: Variable Name | B12: Variable Symbol | C12: Variable Worksheet | D12: Variable Unit | E12: Input Values | H12: Results for Output Variable
E13: Best Estimate | F13: Minimum | G13: Maximum | H13: Minimum | I13: Maximum | J13: Abs(Max-Min)
A14: Fraction of Coal Bed Methane Captured | B14: Frac_CH4_Cap | C14: S1a.UP.O.CoalMOp | D14: kg/kg | E14: 0.4 | F14: 0.2 | G14: 0.6 | H14: 92.15 | I14: 64.09 | J14: 28.05
A15: Coal Bed Methane Generated in scf per Ton of Useful Coal Produced | B15: CBM_ton | C15: S1a.UP.O.CoalMOp | D15: scf/ton | E15: 150 | F15: 120 | G15: 180 | H15: 67.97 | I15: 88.26 | J15: 20.29
A16: Electricity Used per kg of Useful Coal Produced | B16: Electricity_kg | C16: S1a.UP.O.CoalMOp | D16: kWh/kg coal | E16: 0.03306 | F16: 0.02975 | G16: 0.03636 | H16: 75.52 | I16: 80.72 | J16: 5.196
A17: Diesel Fuel Used per kg of Useful Coal Produced | B17: Diesel_kg | C17: S1a.UP.O.CoalMOp | D17: kg dies/kg coal | E17: 0.0002628 | F17: 0.0002365 | G17: 0.0003942 | H17: 78.01 | I17: 78.64 | J17: 0.6272
A18: Steel Plate, BF (85% Recovery Rate) for Underground Coal Mine | B18: Stl_Plt_BF85_Coal_kg | C18: S1a.UP.C.CoalMCon | D18: kg/kg coal | E18: 0.0002352 | F18: 0.0002117 | G18: 0.0003528 | H18: 78.09 | I18: 78.26 | J18: 0.1691
A19: Steel, 316 Stainless Cold Rolled for Underground Coal Mine | B19: Stl_CR316_Coal_kg | C19: S1a.UP.C.CoalMCon | D19: kg/kg coal | E19: 7.133e-06 | F19: 6.419e-06 | G19: 1.07e-05 | H19: 78.11 | I19: 78.14 | J19: 0.02321
A20: Asphalt for Underground Coal Mine | B20: Asphalt_Coal_kg | C20: S1a.UP.C.CoalMCon | D20: kg/kg coal | E20: 0.0009976 | F20: 0.0008978 | G20: 0.001496 | H20: 78.12 | I20: 78.13 | J20: 0.01191
A21: Diesel Fuel Used in Installation | B21: Dies_Used_In | C21: S1a.UP.C.CoalMCon | D21: kg | E21: 485400 | F21: 436800 | G21: 728000 | H21: 78.12 | I21: 78.12 | J21: 0.007061
A22: Concrete, Mixed 5-0 for Underground Coal Mine | B22: Concrete_5_0_Coal_kg | C22: S1a.UP.C.CoalMCon | D22: kg/kg coal | E22: 4.544e-05 | F22: 4.089e-05 | G22: 6.816e-05 | H22: 78.12 | I22: 78.12 | J22: 0.003781
A23: Steel, Cold Rolled for Underground Coal Mine | B23: Stl_CRoll_Coal_kg | C23: S1a.UP.C.CoalMCon | D23: kg/kg coal | E23: 1.461e-06 | F23: 1.315e-06 | G23: 2.192e-06 | H23: 78.12 | I23: 78.12 | J23: 0.002488
A24: Fraction of Installation Inputs and Outputs Assumed to Apply to De-Installation | B24: DeIn_Frac | C24: S1a.UP.C.CoalMCon | E24: 0.1 | F24: 0.05 | G24: 0.25 | H24: 78.12 | I24: 78.12 | J24: 0.002142
A25: Steel, 431 Stainless Cold Rolled for Underground Coal Mine | B25: Stl_CR431_Coal_kg | C25: S1a.UP.C.CoalMCon | D25: kg/kg coal | E25: 7.128e-07 | F25: 6.415e-07 | G25: 1.069e-06 | H25: 78.12 | I25: 78.12 | J25: 0.00204
A26: Fraction of Run-of-Mine Coal that is Usable Coal | B26: Frac_Coal | C26: UP Control1 | D26: kg/kg | E26: 0.5479 | F26: 0.5165 | G26: 0.5992 | H26: 78.12 | I26: 78.12 | J26: 0.001765
A27: Fraction of Capacity of Mine that is Actually Used | B27: Frac_Used | C27: UP Control1 | D27: kg/kg | E27: 0.5313 | F27: 0.5009 | G27: 0.5706 | H27: 78.12 | I27: 78.12 | J27: 0.001562
A28: Polyvinylchloride (PVC) Tubing | B28: PVC_Tube1_Coal_kg | C28: S1a.UP.C.CoalMCon | D28: kg/kg coal | E28: 1.296e-07 | F28: 1.166e-07 | G28: 1.944e-07 | H28: 78.12 | I28: 78.12 | J28: 0.0007459
A29: Steel, 316 2B (80% Recycled) for Underground Coal Mine | B29: Stl_3162B_80_Coal_kg | C29: S1a.UP.C.CoalMCon | D29: kg/kg coal | E29: 6.75e-08 | F29: 6.075e-08 | G29: 1.013e-07 | H29: 78.12 | I29: 78.12 | J29: 0.0002197
A30: Cast Iron Parts for Underground Coal Mine | B30: Cst_Iron_Pt1_Coal_kg | C30: S1a.UP.C.CoalMCon | D30: kg/kg coal | E30: 3.375e-07 | F30: 3.037e-07 | G30: 5.062e-07 | H30: 78.12 | I30: 78.12 | J30: 0.0002102
A31: Rubber, Natural Vulcanised for Underground Coal Mine | B31: Rub_NVulc_Coal_kg | C31: S1a.UP.C.CoalMCon | D31: kg/kg coal | E31: 4.439e-07 | F31: 3.995e-07 | G31: 6.659e-07 | H31: 78.12 | I31: 78.12 | J31: 0.0001923
A32: Coppersheet for Underground Coal Mine | B32: CopSht1_Coal_kg | C32: S1a.UP.C.CoalMCon | D32: kg/kg coal | E32: 8.091e-09 | F32: 7.282e-09 | G32: 1.214e-08 | H32: 78.12 | I32: 78.12 | J32: 3.299e-05
A33: Zinc for Underground Coal Mine | B33: Zinc1_Coal_kg | C33: S1a.UP.C.CoalMCon | D33: kg/kg coal | E33: 6.457e-09 | F33: 5.811e-09 | G33: 9.685e-09 | H33: 78.12 | I33: 78.12 | J33: 1.947e-05
A34: Rebar for Underground Coal Mine | B34: Rebar1_Coal_kg | C34: S1a.UP.C.CoalMCon | D34: kg/kg coal | E34: 1.965e-08 | F34: 1.768e-08 | G34: 2.947e-08 | H34: 78.12 | I34: 78.12 | J34: 1.057e-05
A35: Gasoline Used in Installation | B35: Gas_Used_In | C35: S1a.UP.C.CoalMCon | D35: kg | E35: 509.8 | F35: 458.8 | G35: 764.7 | H35: 78.12 | I35: 78.12 | J35: 7.55e-06
A36: Steel, Hot-dip Galvanized for Underground Coal Mine | B36: Stl_Galv_Coal_kg | C36: S1a.UP.C.CoalMCon | D36: kg/kg coal | E36: 1.448e-06 | F36: 1.304e-06 | G36: 2.173e-06 | H36: 78.12 | I36: 78.12 | J36: 0
A42: Sensitivity Analysis Results: Tornado Chart | C42: =C1 -> 1
A44: Sensitivity Analysis for | B44: Coal Acquisition-Total CO2e Emiss. (IPCC 2007) per RF
A45: Base Case Result | B45: 78.12 | C45: g CO2e/kg coal
A98: Results of Sensitivity Analysis
A99: Variable Name | B99: Variable Symbol | C99: Variable Unit | D99: Input Values | G99: Results for Output Variable
D100: Best Estimate | E100: Minimum | F100: Maximum | G100: Minimum | H100: Maximum | I100: Abs(Max-Min)
A101: Fraction of Coal Bed Methane Captured | B101: Frac_CH4_Cap | C101: kg/kg | D101: 0.4 | E101: 0.2 | F101: 0.6 | G101: 92.15 | H101: 64.09 | I101: 28.05
A102: Coal Bed Methane Generated in scf per Ton of Useful Coal Produced | B102: CBM_ton | C102: scf/ton | D102: 150 | E102: 120 | F102: 180 | G102: 67.97 | H102: 88.26 | I102: 20.29
A103: Electricity Used per kg of Useful Coal Produced | B103: Electricity_kg | C103: kWh/kg coal | D103: 0.03306 | E103: 0.02975 | F103: 0.03636 | G103: 75.52 | H103: 80.72 | I103: 5.196
A104: Diesel Fuel Used per kg of Useful Coal Produced | B104: Diesel_kg | C104: kg dies/kg coal | D104: 0.0002628 | E104: 0.0002365 | F104: 0.0003942 | G104: 78.01 | H104: 78.64 | I104: 0.6272
A105: Steel Plate, BF (85% Recovery Rate) for Underground Coal Mine | B105: Stl_Plt_BF85_Coal_kg | C105: kg/kg coal | D105: 0.0002352 | E105: 0.0002117 | F105: 0.0003528 | G105: 78.09 | H105: 78.26 | I105: 0.1691
A106: Steel, 316 Stainless Cold Rolled for Underground Coal Mine | B106: Stl_CR316_Coal_kg | C106: kg/kg coal | D106: 7.133e-06 | E106: 6.419e-06 | F106: 1.07e-05 | G106: 78.11 | H106: 78.14 | I106: 0.02321
A107: Asphalt for Underground Coal Mine | B107: Asphalt_Coal_kg | C107: kg/kg coal | D107: 0.0009976 | E107: 0.0008978 | F107: 0.001496 | G107: 78.12 | H107: 78.13 | I107: 0.01191
A108: Diesel Fuel Used in Installation | B108: Dies_Used_In | C108: kg | D108: 485400 | E108: 436800 | F108: 728000 | G108: 78.12 | H108: 78.12 | I108: 0.007061
A109: Concrete, Mixed 5-0 for Underground Coal Mine | B109: Concrete_5_0_Coal_kg | C109: kg/kg coal | D109: 4.544e-05 | E109: 4.089e-05 | F109: 6.816e-05 | G109: 78.12 | H109: 78.12 | I109: 0.003781
A110: Steel, Cold Rolled for Underground Coal Mine | B110: Stl_CRoll_Coal_kg | C110: kg/kg coal | D110: 1.461e-06 | E110: 1.315e-06 | F110: 2.192e-06 | G110: 78.12 | H110: 78.12 | I110: 0.002488
A111: Fraction of Installation Inputs and Outputs Assumed to Apply to De-Installation | B111: DeIn_Frac | D111: 0.1 | E111: 0.05 | F111: 0.25 | G111: 78.12 | H111: 78.12 | I111: 0.002142
A112: Steel, 431 Stainless Cold Rolled for Underground Coal Mine | B112: Stl_CR431_Coal_kg | C112: kg/kg coal | D112: 7.128e-07 | E112: 6.415e-07 | F112: 1.069e-06 | G112: 78.12 | H112: 78.12 | I112: 0.00204
A113: Fraction of Run-of-Mine Coal that is Usable Coal | B113: Frac_Coal | C113: kg/kg | D113: 0.5479 | E113: 0.5165 | F113: 0.5992 | G113: 78.12 | H113: 78.12 | I113: 0.001765
A114: Fraction of Capacity of Mine that is Actually Used | B114: Frac_Used | C114: kg/kg | D114: 0.5313 | E114: 0.5009 | F114: 0.5706 | G114: 78.12 | H114: 78.12 | I114: 0.001562
A115: Polyvinylchloride (PVC) Tubing | B115: PVC_Tube1_Coal_kg | C115: kg/kg coal | D115: 1.296e-07 | E115: 1.166e-07 | F115: 1.944e-07 | G115: 78.12 | H115: 78.12 | I115: 0.0007459
A116: Steel, 316 2B (80% Recycled) for Underground Coal Mine | B116: Stl_3162B_80_Coal_kg | C116: kg/kg coal | D116: 6.75e-08 | E116: 6.075e-08 | F116: 1.013e-07 | G116: 78.12 | H116: 78.12 | I116: 0.0002197
A117: Cast Iron Parts for Underground Coal Mine | B117: Cst_Iron_Pt1_Coal_kg | C117: kg/kg coal | D117: 3.375e-07 | E117: 3.037e-07 | F117: 5.062e-07 | G117: 78.12 | H117: 78.12 | I117: 0.0002102
A118: Rubber, Natural Vulcanised for Underground Coal Mine | B118: Rub_NVulc_Coal_kg | C118: kg/kg coal | D118: 4.439e-07 | E118: 3.995e-07 | F118: 6.659e-07 | G118: 78.12 | H118: 78.12 | I118: 0.0001923
A119: Coppersheet for Underground Coal Mine | B119: CopSht1_Coal_kg | C119: kg/kg coal | D119: 8.091e-09 | E119: 7.282e-09 | F119: 1.214e-08 | G119: 78.12 | H119: 78.12 | I119: 3.299e-05
A120: Zinc for Underground Coal Mine | B120: Zinc1_Coal_kg | C120: kg/kg coal | D120: 6.457e-09 | E120: 5.811e-09 | F120: 9.685e-09 | G120: 78.12 | H120: 78.12 | I120: 1.947e-05
A121: Rebar for Underground Coal Mine | B121: Rebar1_Coal_kg | C121: kg/kg coal | D121: 1.965e-08 | E121: 1.768e-08 | F121: 2.947e-08 | G121: 78.12 | H121: 78.12 | I121: 1.057e-05
A122: Gasoline Used in Installation | B122: Gas_Used_In | C122: kg | D122: 509.8 | E122: 458.8 | F122: 764.7 | G122: 78.12 | H122: 78.12 | I122: 7.55e-06
A123: Steel, Hot-dip Galvanized for Underground Coal Mine | B123: Stl_Galv_Coal_kg | C123: kg/kg coal | D123: 1.448e-06 | E123: 1.304e-06 | F123: 2.173e-06 | G123: 78.12 | H123: 78.12 | I123: 0

Sheet Res ProbS ex
A3: Summary of Results of Probabilistic Analysis
A5: Variable Name | B5: Variable Symbol | C5: Units | D5: Minimum | E5: Median | F5: Maximum | G5: Mean | H5: Mode (Approx) | I5: Stand. Dev. | J5: ln Stand. Dev. | K5: Skewness | L5: Minimum | M5: 0.05 | N5: 0.1 | O5: 0.25 | P5: Median (50%) | Q5: 0.75 | R5: 0.9 | S5: 0.95 | T5: Maximum
A6: Stage 1a-Coal Acquisition
A7: Input Parameters-Coal Mine Operation
A8: Input Parameters-Coal Mine Construction
A9: Output-CO2e Emissions-Coal Mine
A10: Coal Acquisition-Total CO2e Emiss. (IPCC 2007) per RF | B10: CO2e2007CoalMineRF | C10: g CO2e/kg coal | D10: 54.7 | E10: 77.6 | F10: 106 | G10: 78.5 | H10: 73.9 | I10: 10.1 | J10: 0.129 | K10: 0.263 | L10: 54.7 | M10: 62.9 | N10: 65.5 | O10: 70.8 | P10: 77.6 | Q10: 85.3 | R10: 92.9 | S10: 96.6 | T10: 106
A12: Number of Significant figures | B12: 2
A14: Stage 1a
A15: Variable Name | B15: Total CO2e Emissions (IPCC 2007) per kg Coal Ready for Trasnport
A16: Units | B16: =C10 -> g CO2e/kg coal
A17: Minimum | B17: =sigfig(L10,$B12) -> 55
A18: 0.1 | B18: =sigfig(N10,$B12) -> 66
A19: 0.25 | B19: =sigfig(O10,$B12) -> 71
A20: Median (50%) | B20: =sigfig(P10,$B12) -> 78
A21: 0.75 | B21: =sigfig(Q10,$B12) -> 85
A22: 0.9 | B22: =sigfig(R10,$B12) -> 93
A23: Maximum | B23: =sigfig(T10,$B12) -> 110
A24: Mean | B24: =sigfig(G10,$B12) -> 79
A25: Mode | B25: =sigfig(H10,$B12) -> 74
A26: Stand. Dev. | B26: =sigfig(I10,$B12) -> 10

Sheet Res ProbD ex
A1: Probabilistic Results
A3: Variable Information
A4: Variable Name | B4: Coal Acquisition-Total CO2e Emiss. (IPCC 2007) per RF
A5: Variable Symbol | B5: CO2e2007CoalMineRF
A6: Sheet Location | B6: Summ.Rep.GHG
A7: Units | B7: g CO2e/kg coal
A9: Summary Statistics
A10: Iterations | B10: 2000
A11: Minimum | B11: 54.7
A12: Median | B12: 77.6
A13: Maximum | B13: 106
A14: Mean | B14: 78.5
A15: Mode (Approx.) | B15: 73.9
A16: Standard Deviation | B16: 10.1
A17: Ln Standard Deviation | B17: 0.129
A18: Skewness | B18: 0.263
A20: Cumulative Distribution
A21: Probability | B21: Variable Value
A22: 0 | B22: 54.7
A23: 0.05 | B23: 62.9
A24: 0.1 | B24: 65.5
A25: 0.15 | B25: 67.5
A26: 0.2 | B26: 69
A27: 0.25 | B27: 70.8
A28: 0.3 | B28: 72.6
A29: 0.35 | B29: 73.7
A30: 0.4 | B30: 75
A31: 0.45 | B31: 76.3
A32: 0.5 | B32: 77.6
A33: 0.55 | B33: 79.2
A34: 0.6 | B34: 80.6
A35: 0.65 | B35: 82
A36: 0.7 | B36: 83.8
A37: 0.75 | B37: 85.3
A38: 0.8 | B38: 87.5
A39: 0.85 | B39: 89.9
A40: 0.9 | B40: 92.9
A41: 0.95 | B41: 96.6
A42: 1 | B42: 106
A44: Tails of Cumulative Distribution
A45: Probability | B45: Variable Value
A46: 0 | B46: 54.7
A47: 0.0001 | B47: 54.8
A48: 0.001 | B48: 56.9
A49: 0.01 | B49: 59.3
A50: 0.05 | B50: 62.9
A51: 0.95 | B51: 96.6
A52: 0.99 | B52: 101
A53: 0.999 | B53: 105
A54: 0.9999 | B54: 106
A55: 1 | B55: 106
A57: Variable Information
A58: Variable Name | B58: Coal Acquisition-Total CO2e Emiss. (IPCC 2007) per RF
A59: Variable Symbol | B59: CO2e2007CoalMineRF
A60: Sheet Location | B60: Summ.Rep.GHG
A61: Units | B61: g CO2e/kg coal
A63: Histogram Values
A64: Upper Value of Bin | B64: Bin Label | C64: Fraction of Total in Bin | D64: Cumulative Fraction
A65: 54 | B65: 54 | C65: 0 | D65: 0
A66: 56.7 | B66: 55.3 | C66: 0.001 | D66: 0.001
A67: 59.3 | B67: 58 | C67: 0.009 | D67: 0.01
A68: 62 | B68: 60.6 | C68: 0.027 | D68: 0.037
A69: 64.6 | B69: 63.3 | C69: 0.0445 | D69: 0.0815
A70: 67.3 | B70: 65.9 | C70: 0.0605 | D70: 0.142
A71: 69.9 | B71: 68.6 | C71: 0.0845 | D71: 0.227
A72: 72.6 | B72: 71.2 | C72: 0.073 | D72: 0.3
A73: 75.2 | B73: 73.9 | C73: 0.108 | D73: 0.408
A74: 77.9 | B74: 76.5 | C74: 0.099 | D74: 0.507
A75: 80.5 | B75: 79.2 | C75: 0.0885 | D75: 0.595
A76: 83.2 | B76: 81.8 | C76: 0.09 | D76: 0.685
A77: 85.8 | B77: 84.5 | C77: 0.0765 | D77: 0.762
A78: 88.5 | B78: 87.1 | C78: 0.059 | D78: 0.821
A79: 91.1 | B79: 89.8 | C79: 0.054 | D79: 0.875
A80: 93.8 | B80: 92.4 | C80: 0.039 | D80: 0.914
A81: 96.4 | B81: 95.1 | C81: 0.032 | D81: 0.946
A82: 99.1 | B82: 97.7 | C82: 0.0275 | D82: 0.973
A83: 102 | B83: 100 | C83: 0.019 | D83: 0.992
A84: 104 | B84: 103 | C84: 0.0055 | D84: 0.998
A85: 107 | B85: 106 | C85: 0.0025 | D85: 1
A87: Figures
A89: Variable Information
A90: Variable Name | B90: Coal Acquisition-Total CO2e Emiss. (IPCC 2007) per RF
A91: Variable Symbol | B91: CO2e2007CoalMineRF
A92: Sheet Location | B92: Summ.Rep.GHG
A93: Units | B93: g CO2e/kg coal
A128: Probability density values on left vertical axis | C128: Cumulative distribution values on right vertical axis
A132: Results for Each Iteration
A134: Variable Information
A135: Variable Name | B135: Coal Acquisition-Total CO2e Emiss. (IPCC 2007) per RF
A136: Variable Symbol | B136: CO2e2007CoalMineRF
A137: Sheet Location | B137: Summ.Rep.GHG
A138: Units | B138: g CO2e/kg coal
A140: Iteration Number | B140: Iteration Result
A141: 1 | B141: 91.77649394
A142: 2 | B142: 69.81624176
A143: 3 | B143: 73.74264988
A144: 4 | B144: 96.93845581
A145: 5 | B145: 72.67802811
A146: 6 | B146: 73.91056539
A147: 7 | B147: 83.26037901
A148: 8 | B148: 76.16063044
A149: 9 | B149: 73.47079867
A150: 10 | B150: 98.14291538
A151: 11 | B151: 71.87002822
A152: 12 | B152: 76.65632523
A153: 13 | B153: 74.56685328
A154: 14 | B154: 67.69276247
A155: 15 | B155: 70.97376519
A156: 16 | B156: 78.3496292
A157: 17 | B157: 72.21694754
A158: 18 | B158: 69.07245117
A159: 19 | B159: 64.29305488
A160: 20 | B160: 88.32892344
A161: 21 | B161: 70.18510386
A162: 22 | B162: 65.27078997
A163: 23 | B163: 78.28366567
A164: 24 | B164: 66.30739974
A165: 25 | B165: 77.13700284
A166: 26 | B166: 76.93097991
A167: 27 | B167: 78.83065741
A168: 28 | B168: 69.2447186
A169: 29 | B169: 90.30640848
A170: 30 | B170: 94.37526411
A171: 31 | B171: 66.72864851
A172: 32 | B172: 79.45676196
A173: 33 | B173: 61.78408797
A174: 34 | B174: 61.94288745
A175: 35 | B175: 63.377384
A176: 36 | B176: 65.00333201
A177: 37 | B177: 90.16489252
A178: 38 | B178: 84.09803639
A179: 39 | B179: 61.35588485
A180: 40 | B180: 73.41792212
A181: 41 | B181: 69.40514074
A182: 42 | B182: 65.62255492
A183: 43 | B183: 90.36414732
A184: 44 | B184: 85.01678114
A185: 45 | B185: 88.59875648
A186: 46 | B186: 92.96248056
A187: 47 | B187: 78.12169101
A188: 48 | B188: 83.7960228
A189: 49 | B189: 72.5668287
A190: 50 | B190: 76.20446806
A191: 51 | B191: 69.51815661
A192: 52 | B192: 75.42523899
A193: 53 | B193: 69.02921334
A194: 54 | B194: 88.35090306
A195: 55 | B195: 97.9848517
A196: 56 | B196: 76.89440188
A197: 57 | B197: 69.36390186
A198: 58 | B198: 93.94280025
A199: 59 | B199: 63.46850098
A200: 60 | B200: 71.66919801
A201: 61 | B201: 72.4756352
A202: 62 | B202: 96.74698887
A203: 63 | B203: 81.35044158
A204: 64 | B204: 67.17000508
A205: 65 | B205: 59.0100423
A206: 66 | B206: 98.72093091
A207: 67 | B207: 92.07879673
A208: 68 | B208: 88.44125266
A209: 69 | B209: 93.57534306
A210: 70 | B210: 67.46601901
A211: 71 | B211: 74.55560398
A212: 72 | B212: 62.81719329
A213: 73 | B213: 95.10258988
A214: 74 | B214: 78.90026212
A215: 75 | B215: 79.94010106
A216: 76 | B216: 60.85577022
A217: 77 | B217: 59.76374483
A218: 78 | B218: 84.36766771
A219: 79 | B219: 68.91541143
A220: 80 | B220: 68.83227064
A221: 81 | B221: 78.11353914
A222: 82 | B222: 64.47316796
A223: 83 | B223: 87.45551233
A224: 84 | B224: 75.3044595
A225: 85 | B225: 79.34000346
A226: 86 | B226: 97.82056937
A227: 87 | B227: 82.34798044
A228: 88 | B228: 78.33688005
A229: 89 | B229: 88.4053909
A230: 90 | B230: 70.43611175
A231: 91 | B231: 69.01834451
A232: 92 | B232: 62.60543646
A233: 93 | B233: 87.3375903
A234: 94 | B234: 86.21533008
A235: 95 | B235: 74.92093312
A236: 96 | B236: 81.3228156
A237: 97 | B237: 59.33490424
A238: 98 | B238: 73.16185703
A239: 99 | B239: 75.71768587
A240: 100 | B240: 76.47959979
A241: 101 | B241: 77.77593187
A242: 102 | B242: 74.19940424
A243: 103 | B243: 70.01593006
A244: 104 | B244: 87.91668184
A245: 105 | B245: 80.97623682
A246: 106 | B246: 66.35507131
A247: 107 | B247: 75.73344355
... 1893 more rows

Sheet Res ProbS Blnk (hidden)
A3: Summary of Results of Probabilistic Analysis
A5: Variable Name | B5: Variable Symbol | C5: Units | D5: Minimum | E5: Median | F5: Maximum | G5: Mean | H5: Mode (Approx) | I5: Stand. Dev. | J5: ln Stand. Dev. | K5: Skewness | L5: Minimum | M5: 0.05 | N5: 0.1 | O5: 0.25 | P5: Median (50%) | Q5: 0.75 | R5: 0.9 | S5: 0.95 | T5: Maximum

Sheet Res ProbD Blnk (hidden)
A1: Probabilistic Results
A3: Variable Information
A4: Variable Name
A5: Variable Symbol
A6: Sheet Location
A7: Units
A9: Summary Statistics
A10: Iterations
A11: Minimum
A12: Median
A13: Maximum
A14: Mean
A15: Mode (Approx.)
A16: Standard Deviation
A17: Ln Standard Deviation
A18: Skewness
A20: Cumulative Distribution
A21: Probability | B21: Variable Value
A22: 0
A23: 0.05
A24: 0.1
A25: 0.15
A26: 0.2
A27: 0.25
A28: 0.3
A29: 0.35
A30: 0.4
A31: 0.45
A32: 0.5
A33: 0.55
A34: 0.6
A35: 0.65
A36: 0.7
A37: 0.75
A38: 0.8
A39: 0.85
A40: 0.9
A41: 0.95
A42: 1
A44: Tails of Cumulative Distribution
A45: Probability | B45: Variable Value
A46: 0
A47: 0.0001
A48: 0.001
A49: 0.01
A50: 0.05
A51: 0.95
A52: 0.99
A53: 0.999
A54: 0.9999
A55: 1
A57: Variable Information
A58: Variable Name
A59: Variable Symbol
A60: Sheet Location
A61: Units
A63: Histogram Values
A64: Upper Value of Bin | B64: Bin Label | C64: Fraction of Total in Bin | D64: Cumulative Fraction
A87: Figures
A89: Variable Information
A90: Variable Name
A91: Variable Symbol
A92: Sheet Location
A93: Units
A128: Probability density values on left vertical axis | C128: Cumulative distribution values on right vertical axis
A132: Results for Each Iteration
A134: Variable Information
A135: Variable Name
A136: Variable Symbol
A137: Sheet Location
A138: Units
A140: Iteration Number | B140: Iteration Result

Sheet Res Sens Blnk (hidden)
A1: Sensitivity Analysis Results: Basic Data | C1: 1 | K1: Sensitivity Analysis Results: Basic Data | M1: 2 | U1: Sensitivity Analysis Results: Basic Data | W1: 3 | AE1: Sensitivity Analysis Results: Basic Data | AG1: 4 | AO1: Sensitivity Analysis Results: Basic Data | AQ1: 5 | AY1: Sensitivity Analysis Results: Basic Data | BA1: 6 | BI1: Sensitivity Analysis Results: Basic Data | BK1: 7 | BS1: Sensitivity Analysis Results: Basic Data | BU1: 8 | CC1: Sensitivity Analysis Results: Basic Data | CE1: 9 | CM1: Sensitivity Analysis Results: Basic Data | CO1: 10 | CW1: Sensitivity Analysis Results: Basic Data | CY1: 11 | DG1: Sensitivity Analysis Results: Basic Data | DI1: 12 | DQ1: Sensitivity Analysis Results: Basic Data | DS1: 13 | EA1: Sensitivity Analysis Results: Basic Data | EC1: 14 | EK1: Sensitivity Analysis Results: Basic Data | EM1: 15 | EU1: Sensitivity Analysis Results: Basic Data | EW1: 16 | FE1: Sensitivity Analysis Results: Basic Data | FG1: 17 | FO1: Sensitivity Analysis Results: Basic Data | FQ1: 18 | FY1: Sensitivity Analysis Results: Basic Data | GA1: 19 | GI1: Sensitivity Analysis Results: Basic Data | GK1: 20
A3: Output Variable Information | K3: Output Variable Information | U3: Output Variable Information | AE3: Output Variable Information | AO3: Output Variable Information | AY3: Output Variable Information | BI3: Output Variable Information | BS3: Output Variable Information | CC3: Output Variable Information | CM3: Output Variable Information | CW3: Output Variable Information | DG3: Output Variable Information | DQ3: Output Variable Information | EA3: Output Variable Information | EK3: Output Variable Information | EU3: Output Variable Information | FE3: Output Variable Information | FO3: Output Variable Information | FY3: Output Variable Information | GI3: Output Variable Information
A4: Variable Name | B4: Output Variable | K4: Variable Name | L4: Output Variable | U4: Variable Name | V4: Output Variable | AE4: Variable Name | AF4: Output Variable | AO4: Variable Name | AP4: Output Variable | AY4: Variable Name | AZ4: Output Variable | BI4: Variable Name | BJ4: Output Variable | BS4: Variable Name | BT4: Output Variable | CC4: Variable Name | CD4: Output Variable | CM4: Variable Name | CN4: Output Variable | CW4: Variable Name | CX4: Output Variable | DG4: Variable Name | DH4: Output Variable | DQ4: Variable Name | DR4: Output Variable | EA4: Variable Name | EB4: Output Variable | EK4: Variable Name | EL4: Output Variable | EU4: Variable Name | EV4: Output Variable | FE4: Variable Name | FF4: Output Variable | FO4: Variable Name | FP4: Output Variable | FY4: Variable Name | FZ4: Output Variable | GI4: Variable Name | GJ4: Output Variable
A5: Variable Symbol | K5: Variable Symbol | U5: Variable Symbol | AE5: Variable Symbol | AO5: Variable Symbol | AY5: Variable Symbol | BI5: Variable Symbol | BS5: Variable Symbol | CC5: Variable Symbol | CM5: Variable Symbol | CW5: Variable Symbol | DG5: Variable Symbol | DQ5: Variable Symbol | EA5: Variable Symbol | EK5: Variable Symbol | EU5: Variable Symbol | FE5: Variable Symbol | FO5: Variable Symbol | FY5: Variable Symbol | GI5: Variable Symbol
A6: Sheet Location | K6: Sheet Location | U6: Sheet Location | AE6: Sheet Location | AO6: Sheet Location | AY6: Sheet Location | BI6: Sheet Location | BS6: Sheet Location | CC6: Sheet Location | CM6: Sheet Location | CW6: Sheet Location | DG6: Sheet Location | DQ6: Sheet Location | EA6: Sheet Location | EK6: Sheet Location | EU6: Sheet Location | FE6: Sheet Location | FO6: Sheet Location | FY6: Sheet Location | GI6: Sheet Location
A7: Units | K7: Units | U7: Units | AE7: Units | AO7: Units | AY7: Units | BI7: Units | BS7: Units | CC7: Units | CM7: Units | CW7: Units | DG7: Units | DQ7: Units | EA7: Units | EK7: Units | EU7: Units | FE7: Units | FO7: Units | FY7: Units | GI7: Units
A9: Base Case Result | B9: 100 | C9: L | K9: Base Case Result | L9: 100 | M9: L | U9: Base Case Result | V9: 100 | W9: L | AE9: Base Case Result | AF9: 100 | AG9: L | AO9: Base Case Result | AP9: 100 | AQ9: L | AY9: Base Case Result | AZ9: 100 | BA9: L | BI9: Base Case Result | BJ9: 100 | BK9: L | BS9: Base Case Result | BT9: 100 | BU9: L | CC9: Base Case Result | CD9: 100 | CE9: L | CM9: Base Case Result | CN9: 100 | CO9: L | CW9: Base Case Result | CX9: 100 | CY9: L | DG9: Base Case Result | DH9: 100 | DI9: L | DQ9: Base Case Result | DR9: 100 | DS9: L | EA9: Base Case Result | EB9: 100 | EC9: L | EK9: Base Case Result | EL9: 100 | EM9: L | EU9: Base Case Result | EV9: 100 | EW9: L | FE9: Base Case Result | FF9: 100 | FG9: L | FO9: Base Case Result | FP9: 100 | FQ9: L | FY9: Base Case Result | FZ9: 100 | GA9: L | GI9: Base Case Result | GJ9: 100 | GK9: L
A11: Results of Sensitivity Analysis | K11: Results of Sensitivity Analysis | U11: Results of Sensitivity Analysis | AE11: Results of Sensitivity Analysis | AO11: Results of Sensitivity Analysis | AY11: Results of Sensitivity Analysis | BI11: Results of Sensitivity Analysis | BS11: Results of Sensitivity Analysis | CC11: Results of Sensitivity Analysis | CM11: Results of Sensitivity Analysis | CW11: Results of Sensitivity Analysis | DG11: Results of Sensitivity Analysis | DQ11: Results of Sensitivity Analysis | EA11: Results of Sensitivity Analysis | EK11: Results of Sensitivity Analysis | EU11: Results of Sensitivity Analysis | FE11: Results of Sensitivity Analysis | FO11: Results of Sensitivity Analysis | FY11: Results of Sensitivity Analysis | GI11: Results of Sensitivity Analysis
A12: Variable Name | B12: Variable Symbol | C12: Variable Worksheet | D12: Variable Unit | E12: Input Values | H12: Results for Output Variable | K12: Variable Name | L12: Variable Symbol | M12: Variable Worksheet | N12: Variable Unit | O12: Input Values | R12: Results for Output Variable | U12: Variable Name | V12: Variable Symbol | W12: Variable Worksheet | X12: Variable Unit | Y12: Input Values | AB12: Results for Output Variable | AE12: Variable Name | AF12: Variable Symbol | AG12: Variable Worksheet | AH12: Variable Unit | AI12: Input Values | AL12: Results for Output Variable | AO12: Variable Name | AP12: Variable Symbol | AQ12: Variable Worksheet | AR12: Variable Unit | AS12: Input Values | AV12: Results for Output Variable | AY12: Variable Name | AZ12: Variable Symbol | BA12: Variable Worksheet | BB12: Variable Unit | BC12: Input Values | BF12: Results for Output Variable | BI12: Variable Name | BJ12: Variable Symbol | BK12: Variable Worksheet | BL12: Variable Unit | BM12: Input Values | BP12: Results for Output Variable | BS12: Variable Name | BT12: Variable Symbol | BU12: Variable Worksheet | BV12: Variable Unit | BW12: Input Values | BZ12: Results for Output Variable | CC12: Variable Name | CD12: Variable Symbol | CE12: Variable Worksheet | CF12: Variable Unit | CG12: Input Values | CJ12: Results for Output Variable | CM12: Variable Name | CN12: Variable Symbol | CO12: Variable Worksheet | CP12: Variable Unit | CQ12: Input Values | CT12: Results for Output Variable | CW12: Variable Name | CX12: Variable Symbol | CY12: Variable Worksheet | CZ12: Variable Unit | DA12: Input Values | DD12: Results for Output Variable | DG12: Variable Name | DH12: Variable Symbol | DI12: Variable Worksheet | DJ12: Variable Unit | DK12: Input Values | DN12: Results for Output Variable | DQ12: Variable Name | DR12: Variable Symbol | DS12: Variable Worksheet | DT12: Variable Unit | DU12: Input Values | DX12: Results for Output Variable | EA12: Variable Name | EB12: Variable Symbol | EC12: Variable Worksheet | ED12: Variable Unit | EE12: Input Values | EH12: Results for Output Variable | EK12: Variable Name | EL12: Variable Symbol | EM12: Variable Worksheet | EN12: Variable Unit | EO12: Input Values | ER12: Results for Output Variable | EU12: Variable Name | EV12: Variable Symbol | EW12: Variable Worksheet | EX12: Variable Unit | EY12: Input Values | FB12: Results for Output Variable | FE12: Variable Name | FF12: Variable Symbol | FG12: Variable Worksheet | FH12: Variable Unit | FI12: Input Values | FL12: Results for Output Variable | FO12: Variable Name | FP12: Variable Symbol | FQ12: Variable Worksheet | FR12: Variable Unit | FS12: Input Values | FV12: Results for Output Variable | FY12: Variable Name | FZ12: Variable Symbol | GA12: Variable Worksheet | GB12: Variable Unit | GC12: Input Values | GF12: Results for Output Variable | GI12: Variable Name | GJ12: Variable Symbol | GK12: Variable Worksheet | GL12: Variable Unit | GM12: Input Values | GP12: Results for Output Variable
E13: Best Estimate | F13: Minimum | G13: Maximum | H13: Minimum | I13: Maximum | J13: Abs(Max-Min) | O13: Best Estimate | P13: Minimum | Q13: Maximum | R13: Minimum | S13: Maximum | T13: Abs(Max-Min) | Y13: Best Estimate | Z13: Minimum | AA13: Maximum | AB13: Minimum | AC13: Maximum | AD13: Abs(Max-Min) | AI13: Best Estimate | AJ13: Minimum | AK13: Maximum | AL13: Minimum | AM13: Maximum | AN13: Abs(Max-Min) | AS13: Best Estimate | AT13: Minimum | AU13: Maximum | AV13: Minimum | AW13: Maximum | AX13: Abs(Max-Min) | BC13: Best Estimate | BD13: Minimum | BE13: Maximum | BF13: Minimum | BG13: Maximum | BH13: Abs(Max-Min) | BM13: Best Estimate | BN13: Minimum | BO13: Maximum | BP13: Minimum | BQ13: Maximum | BR13: Abs(Max-Min) | BW13: Best Estimate | BX13: Minimum | BY13: Maximum | BZ13: Minimum | CA13: Maximum | CB13: Abs(Max-Min) | CG13: Best Estimate | CH13: Minimum | CI13: Maximum | CJ13: Minimum | CK13: Maximum | CL13: Abs(Max-Min) | CQ13: Best Estimate | CR13: Minimum | CS13: Maximum | CT13: Minimum | CU13: Maximum | CV13: Abs(Max-Min) | DA13: Best Estimate | DB13: Minimum | DC13: Maximum | DD13: Minimum | DE13: Maximum | DF13: Abs(Max-Min) | DK13: Best Estimate | DL13: Minimum | DM13: Maximum | DN13: Minimum | DO13: Maximum | DP13: Abs(Max-Min) | DU13: Best Estimate | DV13: Minimum | DW13: Maximum | DX13: Minimum | DY13: Maximum | DZ13: Abs(Max-Min) | EE13: Best Estimate | EF13: Minimum | EG13: Maximum | EH13: Minimum | EI13: Maximum | EJ13: Abs(Max-Min) | EO13: Best Estimate | EP13: Minimum | EQ13: Maximum | ER13: Minimum | ES13: Maximum | ET13: Abs(Max-Min) | EY13: Best Estimate | EZ13: Minimum | FA13: Maximum | FB13: Minimum | FC13: Maximum | FD13: Abs(Max-Min) | FI13: Best Estimate | FJ13: Minimum | FK13: Maximum | FL13: Minimum | FM13: Maximum | FN13: Abs(Max-Min) | FS13: Best Estimate | FT13: Minimum | FU13: Maximum | FV13: Minimum | FW13: Maximum | FX13: Abs(Max-Min) | GC13: Best Estimate | GD13: Minimum | GE13: Maximum | GF13: Minimum | GG13: Maximum | GH13: Abs(Max-Min) | GM13: Best Estimate | GN13: Minimum | GO13: Maximum | GP13: Minimum | GQ13: Maximum | GR13: Abs(Max-Min)
A14: Variable Number 1 | B14: Var_1 | C14: Sheet_1 | H14: 50 | I14: 130 | J14: =ABS(I14-H14) -> 80 | K14: Variable Number 1 | L14: Var_1 | M14: Sheet_1 | R14: 50 | S14: 130 | T14: =ABS(S14-R14) -> 80 | U14: Variable Number 1 | V14: Var_1 | W14: Sheet_1 | AB14: 50 | AC14: 130 | AD14: =ABS(AC14-AB14) -> 80 | AE14: Variable Number 1 | AF14: Var_1 | AG14: Sheet_1 | AL14: 50 | AM14: 130 | AN14: =ABS(AM14-AL14) -> 80 | AO14: Variable Number 1 | AP14: Var_1 | AQ14: Sheet_1 | AV14: 50 | AW14: 130 | AX14: =ABS(AW14-AV14) -> 80 | AY14: Variable Number 1 | AZ14: Var_1 | BA14: Sheet_1 | BF14: 50 | BG14: 130 | BH14: =ABS(BG14-BF14) -> 80 | BI14: Variable Number 1 | BJ14: Var_1 | BK14: Sheet_1 | BP14: 50 | BQ14: 130 | BR14: =ABS(BQ14-BP14) -> 80 | BS14: Variable Number 1 | BT14: Var_1 | BU14: Sheet_1 | BZ14: 50 | CA14: 130 | CB14: =ABS(CA14-BZ14) -> 80 | CC14: Variable Number 1 | CD14: Var_1 | CE14: Sheet_1 | CJ14: 50 | CK14: 130 | CL14: =ABS(CK14-CJ14) -> 80 | CM14: Variable Number 1 | CN14: Var_1 | CO14: Sheet_1 | CT14: 50 | CU14: 130 | CV14: =ABS(CU14-CT14) -> 80 | CW14: Variable Number 1 | CX14: Var_1 | CY14: Sheet_1 | DD14: 50 | DE14: 130 | DF14: =ABS(DE14-DD14) -> 80 | DG14: Variable Number 1 | DH14: Var_1 | DI14: Sheet_1 | DN14: 50 | DO14: 130 | DP14: =ABS(DO14-DN14) -> 80 | DQ14: Variable Number 1 | DR14: Var_1 | DS14: Sheet_1 | DX14: 50 | DY14: 130 | DZ14: =ABS(DY14-DX14) -> 80 | EA14: Variable Number 1 | EB14: Var_1 | EC14: Sheet_1 | EH14: 50 | EI14: 130 | EJ14: =ABS(EI14-EH14) -> 80 | EK14: Variable Number 1 | EL14: Var_1 | EM14: Sheet_1 | ER14: 50 | ES14: 130 | ET14: =ABS(ES14-ER14) -> 80 | EU14: Variable Number 1 | EV14: Var_1 | EW14: Sheet_1 | FB14: 50 | FC14: 130 | FD14: =ABS(FC14-FB14) -> 80 | FE14: Variable Number 1 | FF14: Var_1 | FG14: Sheet_1 | FL14: 50 | FM14: 130 | FN14: =ABS(FM14-FL14) -> 80 | FO14: Variable Number 1 | FP14: Var_1 | FQ14: Sheet_1 | FV14: 50 | FW14: 130 | FX14: =ABS(FW14-FV14) -> 80 | FY14: Variable Number 1 | FZ14: Var_1 | GA14: Sheet_1 | GF14: 50 | GG14: 130 | GH14: =ABS(GG14-GF14) -> 80 | GI14: Variable Number 1 | GJ14: Var_1 | GK14: Sheet_1 | GP14: 50 | GQ14: 130 | GR14: =ABS(GQ14-GP14) -> 80
A15: Variable Number 2 | B15: Var_2 | C15: Sheet_2 | H15: 80 | I15: 115 | J15: =ABS(I15-H15) -> 35 | K15: Variable Number 2 | L15: Var_2 | M15: Sheet_2 | R15: 80 | S15: 115 | T15: 35 | U15: Variable Number 2 | V15: Var_2 | W15: Sheet_2 | AB15: 80 | AC15: 115 | AD15: 35 | AE15: Variable Number 2 | AF15: Var_2 | AG15: Sheet_2 | AL15: 80 | AM15: 115 | AN15: 35 | AO15: Variable Number 2 | AP15: Var_2 | AQ15: Sheet_2 | AV15: 80 | AW15: 115 | AX15: 35 | AY15: Variable Number 2 | AZ15: Var_2 | BA15: Sheet_2 | BF15: 80 | BG15: 115 | BH15: 35 | BI15: Variable Number 2 | BJ15: Var_2 | BK15: Sheet_2 | BP15: 80 | BQ15: 115 | BR15: 35 | BS15: Variable Number 2 | BT15: Var_2 | BU15: Sheet_2 | BZ15: 80 | CA15: 115 | CB15: 35 | CC15: Variable Number 2 | CD15: Var_2 | CE15: Sheet_2 | CJ15: 80 | CK15: 115 | CL15: 35 | CM15: Variable Number 2 | CN15: Var_2 | CO15: Sheet_2 | CT15: 80 | CU15: 115 | CV15: 35 | CW15: Variable Number 2 | CX15: Var_2 | CY15: Sheet_2 | DD15: 80 | DE15: 115 | DF15: 35 | DG15: Variable Number 2 | DH15: Var_2 | DI15: Sheet_2 | DN15: 80 | DO15: 115 | DP15: 35 | DQ15: Variable Number 2 | DR15: Var_2 | DS15: Sheet_2 | DX15: 80 | DY15: 115 | DZ15: 35 | EA15: Variable Number 2 | EB15: Var_2 | EC15: Sheet_2 | EH15: 80 | EI15: 115 | EJ15: 35 | EK15: Variable Number 2 | EL15: Var_2 | EM15: Sheet_2 | ER15: 80 | ES15: 115 | ET15: 35 | EU15: Variable Number 2 | EV15: Var_2 | EW15: Sheet_2 | FB15: 80 | FC15: 115 | FD15: 35 | FE15: Variable Number 2 | FF15: Var_2 | FG15: Sheet_2 | FL15: 80 | FM15: 115 | FN15: 35 | FO15: Variable Number 2 | FP15: Var_2 | FQ15: Sheet_2 | FV15: 80 | FW15: 115 | FX15: 35 | FY15: Variable Number 2 | FZ15: Var_2 | GA15: Sheet_2 | GF15: 80 | GG15: 115 | GH15: 35 | GI15: Variable Number 2 | GJ15: Var_2 | GK15: Sheet_2 | GP15: 80 | GQ15: 115 | GR15: 35
A16: Variable Number 3 | B16: Var_3 | C16: Sheet_3 | H16: 85 | I16: 110 | J16: 25 | K16: Variable Number 3 | L16: Var_3 | M16: Sheet_3 | R16: 85 | S16: 110 | T16: 25 | U16: Variable Number 3 | V16: Var_3 | W16: Sheet_3 | AB16: 85 | AC16: 110 | AD16: 25 | AE16: Variable Number 3 | AF16: Var_3 | AG16: Sheet_3 | AL16: 85 | AM16: 110 | AN16: 25 | AO16: Variable Number 3 | AP16: Var_3 | AQ16: Sheet_3 | AV16: 85 | AW16: 110 | AX16: 25 | AY16: Variable Number 3 | AZ16: Var_3 | BA16: Sheet_3 | BF16: 85 | BG16: 110 | BH16: 25 | BI16: Variable Number 3 | BJ16: Var_3 | BK16: Sheet_3 | BP16: 85 | BQ16: 110 | BR16: 25 | BS16: Variable Number 3 | BT16: Var_3 | BU16: Sheet_3 | BZ16: 85 | CA16: 110 | CB16: 25 | CC16: Variable Number 3 | CD16: Var_3 | CE16: Sheet_3 | CJ16: 85 | CK16: 110 | CL16: 25 | CM16: Variable Number 3 | CN16: Var_3 | CO16: Sheet_3 | CT16: 85 | CU16: 110 | CV16: 25 | CW16: Variable Number 3 | CX16: Var_3 | CY16: Sheet_3 | DD16: 85 | DE16: 110 | DF16: 25 | DG16: Variable Number 3 | DH16: Var_3 | DI16: Sheet_3 | DN16: 85 | DO16: 110 | DP16: 25 | DQ16: Variable Number 3 | DR16: Var_3 | DS16: Sheet_3 | DX16: 85 | DY16: 110 | DZ16: 25 | EA16: Variable Number 3 | EB16: Var_3 | EC16: Sheet_3 | EH16: 85 | EI16: 110 | EJ16: 25 | EK16: Variable Number 3 | EL16: Var_3 | EM16: Sheet_3 | ER16: 85 | ES16: 110 | ET16: 25 | EU16: Variable Number 3 | EV16: Var_3 | EW16: Sheet_3 | FB16: 85 | FC16: 110 | FD16: 25 | FE16: Variable Number 3 | FF16: Var_3 | FG16: Sheet_3 | FL16: 85 | FM16: 110 | FN16: 25 | FO16: Variable Number 3 | FP16: Var_3 | FQ16: Sheet_3 | FV16: 85 | FW16: 110 | FX16: 25 | FY16: Variable Number 3 | FZ16: Var_3 | GA16: Sheet_3 | GF16: 85 | GG16: 110 | GH16: 25 | GI16: Variable Number 3 | GJ16: Var_3 | GK16: Sheet_3 | GP16: 85 | GQ16: 110 | GR16: 25
A17: Variable Number 4 | B17: Var_4 | C17: Sheet_4 | H17: 85 | I17: 109 | J17: 24 | K17: Variable Number 4 | L17: Var_4 | M17: Sheet_4 | R17: 85 | S17: 109 | T17: 24 | U17: Variable Number 4 | V17: Var_4 | W17: Sheet_4 | AB17: 85 | AC17: 109 | AD17: 24 | AE17: Variable Number 4 | AF17: Var_4 | AG17: Sheet_4 | AL17: 85 | AM17: 109 | AN17: 24 | AO17: Variable Number 4 | AP17: Var_4 | AQ17: Sheet_4 | AV17: 85 | AW17: 109 | AX17: 24 | AY17: Variable Number 4 | AZ17: Var_4 | BA17: Sheet_4 | BF17: 85 | BG17: 109 | BH17: 24 | BI17: Variable Number 4 | BJ17: Var_4 | BK17: Sheet_4 | BP17: 85 | BQ17: 109 | BR17: 24 | BS17: Variable Number 4 | BT17: Var_4 | BU17: Sheet_4 | BZ17: 85 | CA17: 109 | CB17: 24 | CC17: Variable Number 4 | CD17: Var_4 | CE17: Sheet_4 | CJ17: 85 | CK17: 109 | CL17: 24 | CM17: Variable Number 4 | CN17: Var_4 | CO17: Sheet_4 | CT17: 85 | CU17: 109 | CV17: 24 | CW17: Variable Number 4 | CX17: Var_4 | CY17: Sheet_4 | DD17: 85 | DE17: 109 | DF17: 24 | DG17: Variable Number 4 | DH17: Var_4 | DI17: Sheet_4 | DN17: 85 | DO17: 109 | DP17: 24 | DQ17: Variable Number 4 | DR17: Var_4 | DS17: Sheet_4 | DX17: 85 | DY17: 109 | DZ17: 24 | EA17: Variable Number 4 | EB17: Var_4 | EC17: Sheet_4 | EH17: 85 | EI17: 109 | EJ17: 24 | EK17: Variable Number 4 | EL17: Var_4 | EM17: Sheet_4 | ER17: 85 | ES17: 109 | ET17: 24 | EU17: Variable Number 4 | EV17: Var_4 | EW17: Sheet_4 | FB17: 85 | FC17: 109 | FD17: 24 | FE17: Variable Number 4 | FF17: Var_4 | FG17: Sheet_4 | FL17: 85 | FM17: 109 | FN17: 24 | FO17: Variable Number 4 | FP17: Var_4 | FQ17: Sheet_4 | FV17: 85 | FW17: 109 | FX17: 24 | FY17: Variable Number 4 | FZ17: Var_4 | GA17: Sheet_4 | GF17: 85 | GG17: 109 | GH17: 24 | GI17: Variable Number 4 | GJ17: Var_4 | GK17: Sheet_4 | GP17: 85 | GQ17: 109 | GR17: 24
A18: Variable Number 5 | B18: Var_5 | C18: Sheet_5 | H18: 86 | I18: 109 | J18: 23 | K18: Variable Number 5 | L18: Var_5 | M18: Sheet_5 | R18: 86 | S18: 109 | T18: 23 | U18: Variable Number 5 | V18: Var_5 | W18: Sheet_5 | AB18: 86 | AC18: 109 | AD18: 23 | AE18: Variable Number 5 | AF18: Var_5 | AG18: Sheet_5 | AL18: 86 | AM18: 109 | AN18: 23 | AO18: Variable Number 5 | AP18: Var_5 | AQ18: Sheet_5 | AV18: 86 | AW18: 109 | AX18: 23 | AY18: Variable Number 5 | AZ18: Var_5 | BA18: Sheet_5 | BF18: 86 | BG18: 109 | BH18: 23 | BI18: Variable Number 5 | BJ18: Var_5 | BK18: Sheet_5 | BP18: 86 | BQ18: 109 | BR18: 23 | BS18: Variable Number 5 | BT18: Var_5 | BU18: Sheet_5 | BZ18: 86 | CA18: 109 | CB18: 23 | CC18: Variable Number 5 | CD18: Var_5 | CE18: Sheet_5 | CJ18: 86 | CK18: 109 | CL18: 23 | CM18: Variable Number 5 | CN18: Var_5 | CO18: Sheet_5 | CT18: 86 | CU18: 109 | CV18: 23 | CW18: Variable Number 5 | CX18: Var_5 | CY18: Sheet_5 | DD18: 86 | DE18: 109 | DF18: 23 | DG18: Variable Number 5 | DH18: Var_5 | DI18: Sheet_5 | DN18: 86 | DO18: 109 | DP18: 23 | DQ18: Variable Number 5 | DR18: Var_5 | DS18: Sheet_5 | DX18: 86 | DY18: 109 | DZ18: 23 | EA18: Variable Number 5 | EB18: Var_5 | EC18: Sheet_5 | EH18: 86 | EI18: 109 | EJ18: 23 | EK18: Variable Number 5 | EL18: Var_5 | EM18: Sheet_5 | ER18: 86 | ES18: 109 | ET18: 23 | EU18: Variable Number 5 | EV18: Var_5 | EW18: Sheet_5 | FB18: 86 | FC18: 109 | FD18: 23 | FE18: Variable Number 5 | FF18: Var_5 | FG18: Sheet_5 | FL18: 86 | FM18: 109 | FN18: 23 | FO18: Variable Number 5 | FP18: Var_5 | FQ18: Sheet_5 | FV18: 86 | FW18: 109 | FX18: 23 | FY18: Variable Number 5 | FZ18: Var_5 | GA18: Sheet_5 | GF18: 86 | GG18: 109 | GH18: 23 | GI18: Variable Number 5 | GJ18: Var_5 | GK18: Sheet_5 | GP18: 86 | GQ18: 109 | GR18: 23
A19: Variable Number 6 | B19: Var_6 | C19: Sheet_6 | H19: 108 | I19: 86 | J19: 22 | K19: Variable Number 6 | L19: Var_6 | M19: Sheet_6 | R19: 108 | S19: 86 | T19: 22 | U19: Variable Number 6 | V19: Var_6 | W19: Sheet_6 | AB19: 108 | AC19: 86 | AD19: 22 | AE19: Variable Number 6 | AF19: Var_6 | AG19: Sheet_6 | AL19: 108 | AM19: 86 | AN19: 22 | AO19: Variable Number 6 | AP19: Var_6 | AQ19: Sheet_6 | AV19: 108 | AW19: 86 | AX19: 22 | AY19: Variable Number 6 | AZ19: Var_6 | BA19: Sheet_6 | BF19: 108 | BG19: 86 | BH19: 22 | BI19: Variable Number 6 | BJ19: Var_6 | BK19: Sheet_6 | BP19: 108 | BQ19: 86 | BR19: 22 | BS19: Variable Number 6 | BT19: Var_6 | BU19: Sheet_6 | BZ19: 108 | CA19: 86 | CB19: 22 | CC19: Variable Number 6 | CD19: Var_6 | CE19: Sheet_6 | CJ19: 108 | CK19: 86 | CL19: 22 | CM19: Variable Number 6 | CN19: Var_6 | CO19: Sheet_6 | CT19: 108 | CU19: 86 | CV19: 22 | CW19: Variable Number 6 | CX19: Var_6 | CY19: Sheet_6 | DD19: 108 | DE19: 86 | DF19: 22 | DG19: Variable Number 6 | DH19: Var_6 | DI19: Sheet_6 | DN19: 108 | DO19: 86 | DP19: 22 | DQ19: Variable Number 6 | DR19: Var_6 | DS19: Sheet_6 | DX19: 108 | DY19: 86 | DZ19: 22 | EA19: Variable Number 6 | EB19: Var_6 | EC19: Sheet_6 | EH19: 108 | EI19: 86 | EJ19: 22 | EK19: Variable Number 6 | EL19: Var_6 | EM19: Sheet_6 | ER19: 108 | ES19: 86 | ET19: 22 | EU19: Variable Number 6 | EV19: Var_6 | EW19: Sheet_6 | FB19: 108 | FC19: 86 | FD19: 22 | FE19: Variable Number 6 | FF19: Var_6 | FG19: Sheet_6 | FL19: 108 | FM19: 86 | FN19: 22 | FO19: Variable Number 6 | FP19: Var_6 | FQ19: Sheet_6 | FV19: 108 | FW19: 86 | FX19: 22 | FY19: Variable Number 6 | FZ19: Var_6 | GA19: Sheet_6 | GF19: 108 | GG19: 86 | GH19: 22 | GI19: Variable Number 6 | GJ19: Var_6 | GK19: Sheet_6 | GP19: 108 | GQ19: 86 | GR19: 22
A20: Variable Number 7 | B20: Var_7 | C20: Sheet_7 | H20: 87 | I20: 108 | J20: 21 | K20: Variable Number 7 | L20: Var_7 | M20: Sheet_7 | R20: 87 | S20: 108 | T20: 21 | U20: Variable Number 7 | V20: Var_7 | W20: Sheet_7 | AB20: 87 | AC20: 108 | AD20: 21 | AE20: Variable Number 7 | AF20: Var_7 | AG20: Sheet_7 | AL20: 87 | AM20: 108 | AN20: 21 | AO20: Variable Number 7 | AP20: Var_7 | AQ20: Sheet_7 | AV20: 87 | AW20: 108 | AX20: 21 | AY20: Variable Number 7 | AZ20: Var_7 | BA20: Sheet_7 | BF20: 87 | BG20: 108 | BH20: 21 | BI20: Variable Number 7 | BJ20: Var_7 | BK20: Sheet_7 | BP20: 87 | BQ20: 108 | BR20: 21 | BS20: Variable Number 7 | BT20: Var_7 | BU20: Sheet_7 | BZ20: 87 | CA20: 108 | CB20: 21 | CC20: Variable Number 7 | CD20: Var_7 | CE20: Sheet_7 | CJ20: 87 | CK20: 108 | CL20: 21 | CM20: Variable Number 7 | CN20: Var_7 | CO20: Sheet_7 | CT20: 87 | CU20: 108 | CV20: 21 | CW20: Variable Number 7 | CX20: Var_7 | CY20: Sheet_7 | DD20: 87 | DE20: 108 | DF20: 21 | DG20: Variable Number 7 | DH20: Var_7 | DI20: Sheet_7 | DN20: 87 | DO20: 108 | DP20: 21 | DQ20: Variable Number 7 | DR20: Var_7 | DS20: Sheet_7 | DX20: 87 | DY20: 108 | DZ20: 21 | EA20: Variable Number 7 | EB20: Var_7 | EC20: Sheet_7 | EH20: 87 | EI20: 108 | EJ20: 21 | EK20: Variable Number 7 | EL20: Var_7 | EM20: Sheet_7 | ER20: 87 | ES20: 108 | ET20: 21 | EU20: Variable Number 7 | EV20: Var_7 | EW20: Sheet_7 | FB20: 87 | FC20: 108 | FD20: 21 | FE20: Variable Number 7 | FF20: Var_7 | FG20: Sheet_7 | FL20: 87 | FM20: 108 | FN20: 21 | FO20: Variable Number 7 | FP20: Var_7 | FQ20: Sheet_7 | FV20: 87 | FW20: 108 | FX20: 21 | FY20: Variable Number 7 | FZ20: Var_7 | GA20: Sheet_7 | GF20: 87 | GG20: 108 | GH20: 21 | GI20: Variable Number 7 | GJ20: Var_7 | GK20: Sheet_7 | GP20: 87 | GQ20: 108 | GR20: 21
A21: Variable Number 8 | B21: Var_8 | C21: Sheet_8 | H21: 87 | I21: 107 | J21: 20 | K21: Variable Number 8 | L21: Var_8 | M21: Sheet_8 | R21: 87 | S21: 107 | T21: 20 | U21: Variable Number 8 | V21: Var_8 | W21: Sheet_8 | AB21: 87 | AC21: 107 | AD21: 20 | AE21: Variable Number 8 | AF21: Var_8 | AG21: Sheet_8 | AL21: 87 | AM21: 107 | AN21: 20 | AO21: Variable Number 8 | AP21: Var_8 | AQ21: Sheet_8 | AV21: 87 | AW21: 107 | AX21: 20 | AY21: Variable Number 8 | AZ21: Var_8 | BA21: Sheet_8 | BF21: 87 | BG21: 107 | BH21: 20 | BI21: Variable Number 8 | BJ21: Var_8 | BK21: Sheet_8 | BP21: 87 | BQ21: 107 | BR21: 20 | BS21: Variable Number 8 | BT21: Var_8 | BU21: Sheet_8 | BZ21: 87 | CA21: 107 | CB21: 20 | CC21: Variable Number 8 | CD21: Var_8 | CE21: Sheet_8 | CJ21: 87 | CK21: 107 | CL21: 20 | CM21: Variable Number 8 | CN21: Var_8 | CO21: Sheet_8 | CT21: 87 | CU21: 107 | CV21: 20 | CW21: Variable Number 8 | CX21: Var_8 | CY21: Sheet_8 | DD21: 87 | DE21: 107 | DF21: 20 | DG21: Variable Number 8 | DH21: Var_8 | DI21: Sheet_8 | DN21: 87 | DO21: 107 | DP21: 20 | DQ21: Variable Number 8 | DR21: Var_8 | DS21: Sheet_8 | DX21: 87 | DY21: 107 | DZ21: 20 | EA21: Variable Number 8 | EB21: Var_8 | EC21: Sheet_8 | EH21: 87 | EI21: 107 | EJ21: 20 | EK21: Variable Number 8 | EL21: Var_8 | EM21: Sheet_8 | ER21: 87 | ES21: 107 | ET21: 20 | EU21: Variable Number 8 | EV21: Var_8 | EW21: Sheet_8 | FB21: 87 | FC21: 107 | FD21: 20 | FE21: Variable Number 8 | FF21: Var_8 | FG21: Sheet_8 | FL21: 87 | FM21: 107 | FN21: 20 | FO21: Variable Number 8 | FP21: Var_8 | FQ21: Sheet_8 | FV21: 87 | FW21: 107 | FX21: 20 | FY21: Variable Number 8 | FZ21: Var_8 | GA21: Sheet_8 | GF21: 87 | GG21: 107 | GH21: 20 | GI21: Variable Number 8 | GJ21: Var_8 | GK21: Sheet_8 | GP21: 87 | GQ21: 107 | GR21: 20
A22: Variable Number 9 | B22: Var_9 | C22: Sheet_9 | H22: 88 | I22: 107 | J22: 19 | K22: Variable Number 9 | L22: Var_9 | M22: Sheet_9 | R22: 88 | S22: 107 | T22: 19 | U22: Variable Number 9 | V22: Var_9 | W22: Sheet_9 | AB22: 88 | AC22: 107 | AD22: 19 | AE22: Variable Number 9 | AF22: Var_9 | AG22: Sheet_9 | AL22: 88 | AM22: 107 | AN22: 19 | AO22: Variable Number 9 | AP22: Var_9 | AQ22: Sheet_9 | AV22: 88 | AW22: 107 | AX22: 19 | AY22: Variable Number 9 | AZ22: Var_9 | BA22: Sheet_9 | BF22: 88 | BG22: 107 | BH22: 19 | BI22: Variable Number 9 | BJ22: Var_9 | BK22: Sheet_9 | BP22: 88 | BQ22: 107 | BR22: 19 | BS22: Variable Number 9 | BT22: Var_9 | BU22: Sheet_9 | BZ22: 88 | CA22: 107 | CB22: 19 | CC22: Variable Number 9 | CD22: Var_9 | CE22: Sheet_9 | CJ22: 88 | CK22: 107 | CL22: 19 | CM22: Variable Number 9 | CN22: Var_9 | CO22: Sheet_9 | CT22: 88 | CU22: 107 | CV22: 19 | CW22: Variable Number 9 | CX22: Var_9 | CY22: Sheet_9 | DD22: 88 | DE22: 107 | DF22: 19 | DG22: Variable Number 9 | DH22: Var_9 | DI22: Sheet_9 | DN22: 88 | DO22: 107 | DP22: 19 | DQ22: Variable Number 9 | DR22: Var_9 | DS22: Sheet_9 | DX22: 88 | DY22: 107 | DZ22: 19 | EA22: Variable Number 9 | EB22: Var_9 | EC22: Sheet_9 | EH22: 88 | EI22: 107 | EJ22: 19 | EK22: Variable Number 9 | EL22: Var_9 | EM22: Sheet_9 | ER22: 88 | ES22: 107 | ET22: 19 | EU22: Variable Number 9 | EV22: Var_9 | EW22: Sheet_9 | FB22: 88 | FC22: 107 | FD22: 19 | FE22: Variable Number 9 | FF22: Var_9 | FG22: Sheet_9 | FL22: 88 | FM22: 107 | FN22: 19 | FO22: Variable Number 9 | FP22: Var_9 | FQ22: Sheet_9 | FV22: 88 | FW22: 107 | FX22: 19 | FY22: Variable Number 9 | FZ22: Var_9 | GA22: Sheet_9 | GF22: 88 | GG22: 107 | GH22: 19 | GI22: Variable Number 9 | GJ22: Var_9 | GK22: Sheet_9 | GP22: 88 | GQ22: 107 | GR22: 19
A23: Variable Number 10 | B23: Var_10 | C23: Sheet_10 | H23: 88 | I23: 106 | J23: 18 | K23: Variable Number 10 | L23: Var_10 | M23: Sheet_10 | R23: 88 | S23: 106 | T23: 18 | U23: Variable Number 10 | V23: Var_10 | W23: Sheet_10 | AB23: 88 | AC23: 106 | AD23: 18 | AE23: Variable Number 10 | AF23: Var_10 | AG23: Sheet_10 | AL23: 88 | AM23: 106 | AN23: 18 | AO23: Variable Number 10 | AP23: Var_10 | AQ23: Sheet_10 | AV23: 88 | AW23: 106 | AX23: 18 | AY23: Variable Number 10 | AZ23: Var_10 | BA23: Sheet_10 | BF23: 88 | BG23: 106 | BH23: 18 | BI23: Variable Number 10 | BJ23: Var_10 | BK23: Sheet_10 | BP23: 88 | BQ23: 106 | BR23: 18 | BS23: Variable Number 10 | BT23: Var_10 | BU23: Sheet_10 | BZ23: 88 | CA23: 106 | CB23: 18 | CC23: Variable Number 10 | CD23: Var_10 | CE23: Sheet_10 | CJ23: 88 | CK23: 106 | CL23: 18 | CM23: Variable Number 10 | CN23: Var_10 | CO23: Sheet_10 | CT23: 88 | CU23: 106 | CV23: 18 | CW23: Variable Number 10 | CX23: Var_10 | CY23: Sheet_10 | DD23: 88 | DE23: 106 | DF23: 18 | DG23: Variable Number 10 | DH23: Var_10 | DI23: Sheet_10 | DN23: 88 | DO23: 106 | DP23: 18 | DQ23: Variable Number 10 | DR23: Var_10 | DS23: Sheet_10 | DX23: 88 | DY23: 106 | DZ23: 18 | EA23: Variable Number 10 | EB23: Var_10 | EC23: Sheet_10 | EH23: 88 | EI23: 106 | EJ23: 18 | EK23: Variable Number 10 | EL23: Var_10 | EM23: Sheet_10 | ER23: 88 | ES23: 106 | ET23: 18 | EU23: Variable Number 10 | EV23: Var_10 | EW23: Sheet_10 | FB23: 88 | FC23: 106 | FD23: 18 | FE23: Variable Number 10 | FF23: Var_10 | FG23: Sheet_10 | FL23: 88 | FM23: 106 | FN23: 18 | FO23: Variable Number 10 | FP23: Var_10 | FQ23: Sheet_10 | FV23: 88 | FW23: 106 | FX23: 18 | FY23: Variable Number 10 | FZ23: Var_10 | GA23: Sheet_10 | GF23: 88 | GG23: 106 | GH23: 18 | GI23: Variable Number 10 | GJ23: Var_10 | GK23: Sheet_10 | GP23: 88 | GQ23: 106 | GR23: 18
A24: Variable Number 11 | B24: Var_11 | C24: Sheet_11 | H24: 89 | I24: 106 | J24: 17 | K24: Variable Number 11 | L24: Var_11 | M24: Sheet_11 | R24: 89 | S24: 106 | T24: 17 | U24: Variable Number 11 | V24: Var_11 | W24: Sheet_11 | AB24: 89 | AC24: 106 | AD24: 17 | AE24: Variable Number 11 | AF24: Var_11 | AG24: Sheet_11 | AL24: 89 | AM24: 106 | AN24: 17 | AO24: Variable Number 11 | AP24: Var_11 | AQ24: Sheet_11 | AV24: 89 | AW24: 106 | AX24: 17 | AY24: Variable Number 11 | AZ24: Var_11 | BA24: Sheet_11 | BF24: 89 | BG24: 106 | BH24: 17 | BI24: Variable Number 11 | BJ24: Var_11 | BK24: Sheet_11 | BP24: 89 | BQ24: 106 | BR24: 17 | BS24: Variable Number 11 | BT24: Var_11 | BU24: Sheet_11 | BZ24: 89 | CA24: 106 | CB24: 17 | CC24: Variable Number 11 | CD24: Var_11 | CE24: Sheet_11 | CJ24: 89 | CK24: 106 | CL24: 17 | CM24: Variable Number 11 | CN24: Var_11 | CO24: Sheet_11 | CT24: 89 | CU24: 106 | CV24: 17 | CW24: Variable Number 11 | CX24: Var_11 | CY24: Sheet_11 | DD24: 89 | DE24: 106 | DF24: 17 | DG24: Variable Number 11 | DH24: Var_11 | DI24: Sheet_11 | DN24: 89 | DO24: 106 | DP24: 17 | DQ24: Variable Number 11 | DR24: Var_11 | DS24: Sheet_11 | DX24: 89 | DY24: 106 | DZ24: 17 | EA24: Variable Number 11 | EB24: Var_11 | EC24: Sheet_11 | EH24: 89 | EI24: 106 | EJ24: 17 | EK24: Variable Number 11 | EL24: Var_11 | EM24: Sheet_11 | ER24: 89 | ES24: 106 | ET24: 17 | EU24: Variable Number 11 | EV24: Var_11 | EW24: Sheet_11 | FB24: 89 | FC24: 106 | FD24: 17 | FE24: Variable Number 11 | FF24: Var_11 | FG24: Sheet_11 | FL24: 89 | FM24: 106 | FN24: 17 | FO24: Variable Number 11 | FP24: Var_11 | FQ24: Sheet_11 | FV24: 89 | FW24: 106 | FX24: 17 | FY24: Variable Number 11 | FZ24: Var_11 | GA24: Sheet_11 | GF24: 89 | GG24: 106 | GH24: 17 | GI24: Variable Number 11 | GJ24: Var_11 | GK24: Sheet_11 | GP24: 89 | GQ24: 106 | GR24: 17
A25: Variable Number 12 | B25: Var_12 | C25: Sheet_12 | H25: 89 | I25: 105 | J25: 16 | K25: Variable Number 12 | L25: Var_12 | M25: Sheet_12 | R25: 89 | S25: 105 | T25: 16 | U25: Variable Number 12 | V25: Var_12 | W25: Sheet_12 | AB25: 89 | AC25: 105 | AD25: 16 | AE25: Variable Number 12 | AF25: Var_12 | AG25: Sheet_12 | AL25: 89 | AM25: 105 | AN25: 16 | AO25: Variable Number 12 | AP25: Var_12 | AQ25: Sheet_12 | AV25: 89 | AW25: 105 | AX25: 16 | AY25: Variable Number 12 | AZ25: Var_12 | BA25: Sheet_12 | BF25: 89 | BG25: 105 | BH25: 16 | BI25: Variable Number 12 | BJ25: Var_12 | BK25: Sheet_12 | BP25: 89 | BQ25: 105 | BR25: 16 | BS25: Variable Number 12 | BT25: Var_12 | BU25: Sheet_12 | BZ25: 89 | CA25: 105 | CB25: 16 | CC25: Variable Number 12 | CD25: Var_12 | CE25: Sheet_12 | CJ25: 89 | CK25: 105 | CL25: 16 | CM25: Variable Number 12 | CN25: Var_12 | CO25: Sheet_12 | CT25: 89 | CU25: 105 | CV25: 16 | CW25: Variable Number 12 | CX25: Var_12 | CY25: Sheet_12 | DD25: 89 | DE25: 105 | DF25: 16 | DG25: Variable Number 12 | DH25: Var_12 | DI25: Sheet_12 | DN25: 89 | DO25: 105 | DP25: 16 | DQ25: Variable Number 12 | DR25: Var_12 | DS25: Sheet_12 | DX25: 89 | DY25: 105 | DZ25: 16 | EA25: Variable Number 12 | EB25: Var_12 | EC25: Sheet_12 | EH25: 89 | EI25: 105 | EJ25: 16 | EK25: Variable Number 12 | EL25: Var_12 | EM25: Sheet_12 | ER25: 89 | ES25: 105 | ET25: 16 | EU25: Variable Number 12 | EV25: Var_12 | EW25: Sheet_12 | FB25: 89 | FC25: 105 | FD25: 16 | FE25: Variable Number 12 | FF25: Var_12 | FG25: Sheet_12 | FL25: 89 | FM25: 105 | FN25: 16 | FO25: Variable Number 12 | FP25: Var_12 | FQ25: Sheet_12 | FV25: 89 | FW25: 105 | FX25: 16 | FY25: Variable Number 12 | FZ25: Var_12 | GA25: Sheet_12 | GF25: 89 | GG25: 105 | GH25: 16 | GI25: Variable Number 12 | GJ25: Var_12 | GK25: Sheet_12 | GP25: 89 | GQ25: 105 | GR25: 16
A26: Variable Number 13 | B26: Var_13 | C26: Sheet_13 | H26: 90 | I26: 105 | J26: 15 | K26: Variable Number 13 | L26: Var_13 | M26: Sheet_13 | R26: 90 | S26: 105 | T26: 15 | U26: Variable Number 13 | V26: Var_13 | W26: Sheet_13 | AB26: 90 | AC26: 105 | AD26: 15 | AE26: Variable Number 13 | AF26: Var_13 | AG26: Sheet_13 | AL26: 90 | AM26: 105 | AN26: 15 | AO26: Variable Number 13 | AP26: Var_13 | AQ26: Sheet_13 | AV26: 90 | AW26: 105 | AX26: 15 | AY26: Variable Number 13 | AZ26: Var_13 | BA26: Sheet_13 | BF26: 90 | BG26: 105 | BH26: 15 | BI26: Variable Number 13 | BJ26: Var_13 | BK26: Sheet_13 | BP26: 90 | BQ26: 105 | BR26: 15 | BS26: Variable Number 13 | BT26: Var_13 | BU26: Sheet_13 | BZ26: 90 | CA26: 105 | CB26: 15 | CC26: Variable Number 13 | CD26: Var_13 | CE26: Sheet_13 | CJ26: 90 | CK26: 105 | CL26: 15 | CM26: Variable Number 13 | CN26: Var_13 | CO26: Sheet_13 | CT26: 90 | CU26: 105 | CV26: 15 | CW26: Variable Number 13 | CX26: Var_13 | CY26: Sheet_13 | DD26: 90 | DE26: 105 | DF26: 15 | DG26: Variable Number 13 | DH26: Var_13 | DI26: Sheet_13 | DN26: 90 | DO26: 105 | DP26: 15 | DQ26: Variable Number 13 | DR26: Var_13 | DS26: Sheet_13 | DX26: 90 | DY26: 105 | DZ26: 15 | EA26: Variable Number 13 | EB26: Var_13 | EC26: Sheet_13 | EH26: 90 | EI26: 105 | EJ26: 15 | EK26: Variable Number 13 | EL26: Var_13 | EM26: Sheet_13 | ER26: 90 | ES26: 105 | ET26: 15 | EU26: Variable Number 13 | EV26: Var_13 | EW26: Sheet_13 | FB26: 90 | FC26: 105 | FD26: 15 | FE26: Variable Number 13 | FF26: Var_13 | FG26: Sheet_13 | FL26: 90 | FM26: 105 | FN26: 15 | FO26: Variable Number 13 | FP26: Var_13 | FQ26: Sheet_13 | FV26: 90 | FW26: 105 | FX26: 15 | FY26: Variable Number 13 | FZ26: Var_13 | GA26: Sheet_13 | GF26: 90 | GG26: 105 | GH26: 15 | GI26: Variable Number 13 | GJ26: Var_13 | GK26: Sheet_13 | GP26: 90 | GQ26: 105 | GR26: 15
A27: Variable Number 14 | B27: Var_14 | C27: Sheet_14 | H27: 90 | I27: 104 | J27: 14 | K27: Variable Number 14 | L27: Var_14 | M27: Sheet_14 | R27: 90 | S27: 104 | T27: 14 | U27: Variable Number 14 | V27: Var_14 | W27: Sheet_14 | AB27: 90 | AC27: 104 | AD27: 14 | AE27: Variable Number 14 | AF27: Var_14 | AG27: Sheet_14 | AL27: 90 | AM27: 104 | AN27: 14 | AO27: Variable Number 14 | AP27: Var_14 | AQ27: Sheet_14 | AV27: 90 | AW27: 104 | AX27: 14 | AY27: Variable Number 14 | AZ27: Var_14 | BA27: Sheet_14 | BF27: 90 | BG27: 104 | BH27: 14 | BI27: Variable Number 14 | BJ27: Var_14 | BK27: Sheet_14 | BP27: 90 | BQ27: 104 | BR27: 14 | BS27: Variable Number 14 | BT27: Var_14 | BU27: Sheet_14 | BZ27: 90 | CA27: 104 | CB27: 14 | CC27: Variable Number 14 | CD27: Var_14 | CE27: Sheet_14 | CJ27: 90 | CK27: 104 | CL27: 14 | CM27: Variable Number 14 | CN27: Var_14 | CO27: Sheet_14 | CT27: 90 | CU27: 104 | CV27: 14 | CW27: Variable Number 14 | CX27: Var_14 | CY27: Sheet_14 | DD27: 90 | DE27: 104 | DF27: 14 | DG27: Variable Number 14 | DH27: Var_14 | DI27: Sheet_14 | DN27: 90 | DO27: 104 | DP27: 14 | DQ27: Variable Number 14 | DR27: Var_14 | DS27: Sheet_14 | DX27: 90 | DY27: 104 | DZ27: 14 | EA27: Variable Number 14 | EB27: Var_14 | EC27: Sheet_14 | EH27: 90 | EI27: 104 | EJ27: 14 | EK27: Variable Number 14 | EL27: Var_14 | EM27: Sheet_14 | ER27: 90 | ES27: 104 | ET27: 14 | EU27: Variable Number 14 | EV27: Var_14 | EW27: Sheet_14 | FB27: 90 | FC27: 104 | FD27: 14 | FE27: Variable Number 14 | FF27: Var_14 | FG27: Sheet_14 | FL27: 90 | FM27: 104 | FN27: 14 | FO27: Variable Number 14 | FP27: Var_14 | FQ27: Sheet_14 | FV27: 90 | FW27: 104 | FX27: 14 | FY27: Variable Number 14 | FZ27: Var_14 | GA27: Sheet_14 | GF27: 90 | GG27: 104 | GH27: 14 | GI27: Variable Number 14 | GJ27: Var_14 | GK27: Sheet_14 | GP27: 90 | GQ27: 104 | GR27: 14
A28: Variable Number 15 | B28: Var_15 | C28: Sheet_15 | H28: 91 | I28: 104 | J28: 13 | K28: Variable Number 15 | L28: Var_15 | M28: Sheet_15 | R28: 91 | S28: 104 | T28: 13 | U28: Variable Number 15 | V28: Var_15 | W28: Sheet_15 | AB28: 91 | AC28: 104 | AD28: 13 | AE28: Variable Number 15 | AF28: Var_15 | AG28: Sheet_15 | AL28: 91 | AM28: 104 | AN28: 13 | AO28: Variable Number 15 | AP28: Var_15 | AQ28: Sheet_15 | AV28: 91 | AW28: 104 | AX28: 13 | AY28: Variable Number 15 | AZ28: Var_15 | BA28: Sheet_15 | BF28: 91 | BG28: 104 | BH28: 13 | BI28: Variable Number 15 | BJ28: Var_15 | BK28: Sheet_15 | BP28: 91 | BQ28: 104 | BR28: 13 | BS28: Variable Number 15 | BT28: Var_15 | BU28: Sheet_15 | BZ28: 91 | CA28: 104 | CB28: 13 | CC28: Variable Number 15 | CD28: Var_15 | CE28: Sheet_15 | CJ28: 91 | CK28: 104 | CL28: 13 | CM28: Variable Number 15 | CN28: Var_15 | CO28: Sheet_15 | CT28: 91 | CU28: 104 | CV28: 13 | CW28: Variable Number 15 | CX28: Var_15 | CY28: Sheet_15 | DD28: 91 | DE28: 104 | DF28: 13 | DG28: Variable Number 15 | DH28: Var_15 | DI28: Sheet_15 | DN28: 91 | DO28: 104 | DP28: 13 | DQ28: Variable Number 15 | DR28: Var_15 | DS28: Sheet_15 | DX28: 91 | DY28: 104 | DZ28: 13 | EA28: Variable Number 15 | EB28: Var_15 | EC28: Sheet_15 | EH28: 91 | EI28: 104 | EJ28: 13 | EK28: Variable Number 15 | EL28: Var_15 | EM28: Sheet_15 | ER28: 91 | ES28: 104 | ET28: 13 | EU28: Variable Number 15 | EV28: Var_15 | EW28: Sheet_15 | FB28: 91 | FC28: 104 | FD28: 13 | FE28: Variable Number 15 | FF28: Var_15 | FG28: Sheet_15 | FL28: 91 | FM28: 104 | FN28: 13 | FO28: Variable Number 15 | FP28: Var_15 | FQ28: Sheet_15 | FV28: 91 | FW28: 104 | FX28: 13 | FY28: Variable Number 15 | FZ28: Var_15 | GA28: Sheet_15 | GF28: 91 | GG28: 104 | GH28: 13 | GI28: Variable Number 15 | GJ28: Var_15 | GK28: Sheet_15 | GP28: 91 | GQ28: 104 | GR28: 13
A29: Variable Number 16 | B29: Var_16 | C29: Sheet_16 | H29: 103 | I29: 91 | J29: 12 | K29: Variable Number 16 | L29: Var_16 | M29: Sheet_16 | R29: 103 | S29: 91 | T29: 12 | U29: Variable Number 16 | V29: Var_16 | W29: Sheet_16 | AB29: 103 | AC29: 91 | AD29: 12 | AE29: Variable Number 16 | AF29: Var_16 | AG29: Sheet_16 | AL29: 103 | AM29: 91 | AN29: 12 | AO29: Variable Number 16 | AP29: Var_16 | AQ29: Sheet_16 | AV29: 103 | AW29: 91 | AX29: 12 | AY29: Variable Number 16 | AZ29: Var_16 | BA29: Sheet_16 | BF29: 103 | BG29: 91 | BH29: 12 | BI29: Variable Number 16 | BJ29: Var_16 | BK29: Sheet_16 | BP29: 103 | BQ29: 91 | BR29: 12 | BS29: Variable Number 16 | BT29: Var_16 | BU29: Sheet_16 | BZ29: 103 | CA29: 91 | CB29: 12 | CC29: Variable Number 16 | CD29: Var_16 | CE29: Sheet_16 | CJ29: 103 | CK29: 91 | CL29: 12 | CM29: Variable Number 16 | CN29: Var_16 | CO29: Sheet_16 | CT29: 103 | CU29: 91 | CV29: 12 | CW29: Variable Number 16 | CX29: Var_16 | CY29: Sheet_16 | DD29: 103 | DE29: 91 | DF29: 12 | DG29: Variable Number 16 | DH29: Var_16 | DI29: Sheet_16 | DN29: 103 | DO29: 91 | DP29: 12 | DQ29: Variable Number 16 | DR29: Var_16 | DS29: Sheet_16 | DX29: 103 | DY29: 91 | DZ29: 12 | EA29: Variable Number 16 | EB29: Var_16 | EC29: Sheet_16 | EH29: 103 | EI29: 91 | EJ29: 12 | EK29: Variable Number 16 | EL29: Var_16 | EM29: Sheet_16 | ER29: 103 | ES29: 91 | ET29: 12 | EU29: Variable Number 16 | EV29: Var_16 | EW29: Sheet_16 | FB29: 103 | FC29: 91 | FD29: 12 | FE29: Variable Number 16 | FF29: Var_16 | FG29: Sheet_16 | FL29: 103 | FM29: 91 | FN29: 12 | FO29: Variable Number 16 | FP29: Var_16 | FQ29: Sheet_16 | FV29: 103 | FW29: 91 | FX29: 12 | FY29: Variable Number 16 | FZ29: Var_16 | GA29: Sheet_16 | GF29: 103 | GG29: 91 | GH29: 12 | GI29: Variable Number 16 | GJ29: Var_16 | GK29: Sheet_16 | GP29: 103 | GQ29: 91 | GR29: 12
A30: Variable Number 17 | B30: Var_17 | C30: Sheet_17 | H30: 92 | I30: 103 | J30: 11 | K30: Variable Number 17 | L30: Var_17 | M30: Sheet_17 | R30: 92 | S30: 103 | T30: 11 | U30: Variable Number 17 | V30: Var_17 | W30: Sheet_17 | AB30: 92 | AC30: 103 | AD30: 11 | AE30: Variable Number 17 | AF30: Var_17 | AG30: Sheet_17 | AL30: 92 | AM30: 103 | AN30: 11 | AO30: Variable Number 17 | AP30: Var_17 | AQ30: Sheet_17 | AV30: 92 | AW30: 103 | AX30: 11 | AY30: Variable Number 17 | AZ30: Var_17 | BA30: Sheet_17 | BF30: 92 | BG30: 103 | BH30: 11 | BI30: Variable Number 17 | BJ30: Var_17 | BK30: Sheet_17 | BP30: 92 | BQ30: 103 | BR30: 11 | BS30: Variable Number 17 | BT30: Var_17 | BU30: Sheet_17 | BZ30: 92 | CA30: 103 | CB30: 11 | CC30: Variable Number 17 | CD30: Var_17 | CE30: Sheet_17 | CJ30: 92 | CK30: 103 | CL30: 11 | CM30: Variable Number 17 | CN30: Var_17 | CO30: Sheet_17 | CT30: 92 | CU30: 103 | CV30: 11 | CW30: Variable Number 17 | CX30: Var_17 | CY30: Sheet_17 | DD30: 92 | DE30: 103 | DF30: 11 | DG30: Variable Number 17 | DH30: Var_17 | DI30: Sheet_17 | DN30: 92 | DO30: 103 | DP30: 11 | DQ30: Variable Number 17 | DR30: Var_17 | DS30: Sheet_17 | DX30: 92 | DY30: 103 | DZ30: 11 | EA30: Variable Number 17 | EB30: Var_17 | EC30: Sheet_17 | EH30: 92 | EI30: 103 | EJ30: 11 | EK30: Variable Number 17 | EL30: Var_17 | EM30: Sheet_17 | ER30: 92 | ES30: 103 | ET30: 11 | EU30: Variable Number 17 | EV30: Var_17 | EW30: Sheet_17 | FB30: 92 | FC30: 103 | FD30: 11 | FE30: Variable Number 17 | FF30: Var_17 | FG30: Sheet_17 | FL30: 92 | FM30: 103 | FN30: 11 | FO30: Variable Number 17 | FP30: Var_17 | FQ30: Sheet_17 | FV30: 92 | FW30: 103 | FX30: 11 | FY30: Variable Number 17 | FZ30: Var_17 | GA30: Sheet_17 | GF30: 92 | GG30: 103 | GH30: 11 | GI30: Variable Number 17 | GJ30: Var_17 | GK30: Sheet_17 | GP30: 92 | GQ30: 103 | GR30: 11
A31: Variable Number 18 | B31: Var_18 | C31: Sheet_18 | H31: 92 | I31: 102 | J31: 10 | K31: Variable Number 18 | L31: Var_18 | M31: Sheet_18 | R31: 92 | S31: 102 | T31: 10 | U31: Variable Number 18 | V31: Var_18 | W31: Sheet_18 | AB31: 92 | AC31: 102 | AD31: 10 | AE31: Variable Number 18 | AF31: Var_18 | AG31: Sheet_18 | AL31: 92 | AM31: 102 | AN31: 10 | AO31: Variable Number 18 | AP31: Var_18 | AQ31: Sheet_18 | AV31: 92 | AW31: 102 | AX31: 10 | AY31: Variable Number 18 | AZ31: Var_18 | BA31: Sheet_18 | BF31: 92 | BG31: 102 | BH31: 10 | BI31: Variable Number 18 | BJ31: Var_18 | BK31: Sheet_18 | BP31: 92 | BQ31: 102 | BR31: 10 | BS31: Variable Number 18 | BT31: Var_18 | BU31: Sheet_18 | BZ31: 92 | CA31: 102 | CB31: 10 | CC31: Variable Number 18 | CD31: Var_18 | CE31: Sheet_18 | CJ31: 92 | CK31: 102 | CL31: 10 | CM31: Variable Number 18 | CN31: Var_18 | CO31: Sheet_18 | CT31: 92 | CU31: 102 | CV31: 10 | CW31: Variable Number 18 | CX31: Var_18 | CY31: Sheet_18 | DD31: 92 | DE31: 102 | DF31: 10 | DG31: Variable Number 18 | DH31: Var_18 | DI31: Sheet_18 | DN31: 92 | DO31: 102 | DP31: 10 | DQ31: Variable Number 18 | DR31: Var_18 | DS31: Sheet_18 | DX31: 92 | DY31: 102 | DZ31: 10 | EA31: Variable Number 18 | EB31: Var_18 | EC31: Sheet_18 | EH31: 92 | EI31: 102 | EJ31: 10 | EK31: Variable Number 18 | EL31: Var_18 | EM31: Sheet_18 | ER31: 92 | ES31: 102 | ET31: 10 | EU31: Variable Number 18 | EV31: Var_18 | EW31: Sheet_18 | FB31: 92 | FC31: 102 | FD31: 10 | FE31: Variable Number 18 | FF31: Var_18 | FG31: Sheet_18 | FL31: 92 | FM31: 102 | FN31: 10 | FO31: Variable Number 18 | FP31: Var_18 | FQ31: Sheet_18 | FV31: 92 | FW31: 102 | FX31: 10 | FY31: Variable Number 18 | FZ31: Var_18 | GA31: Sheet_18 | GF31: 92 | GG31: 102 | GH31: 10 | GI31: Variable Number 18 | GJ31: Var_18 | GK31: Sheet_18 | GP31: 92 | GQ31: 102 | GR31: 10
A32: Variable Number 19 | B32: Var_19 | C32: Sheet_19 | H32: 93 | I32: 102 | J32: 9 | K32: Variable Number 19 | L32: Var_19 | M32: Sheet_19 | R32: 93 | S32: 102 | T32: 9 | U32: Variable Number 19 | V32: Var_19 | W32: Sheet_19 | AB32: 93 | AC32: 102 | AD32: 9 | AE32: Variable Number 19 | AF32: Var_19 | AG32: Sheet_19 | AL32: 93 | AM32: 102 | AN32: 9 | AO32: Variable Number 19 | AP32: Var_19 | AQ32: Sheet_19 | AV32: 93 | AW32: 102 | AX32: 9 | AY32: Variable Number 19 | AZ32: Var_19 | BA32: Sheet_19 | BF32: 93 | BG32: 102 | BH32: 9 | BI32: Variable Number 19 | BJ32: Var_19 | BK32: Sheet_19 | BP32: 93 | BQ32: 102 | BR32: 9 | BS32: Variable Number 19 | BT32: Var_19 | BU32: Sheet_19 | BZ32: 93 | CA32: 102 | CB32: 9 | CC32: Variable Number 19 | CD32: Var_19 | CE32: Sheet_19 | CJ32: 93 | CK32: 102 | CL32: 9 | CM32: Variable Number 19 | CN32: Var_19 | CO32: Sheet_19 | CT32: 93 | CU32: 102 | CV32: 9 | CW32: Variable Number 19 | CX32: Var_19 | CY32: Sheet_19 | DD32: 93 | DE32: 102 | DF32: 9 | DG32: Variable Number 19 | DH32: Var_19 | DI32: Sheet_19 | DN32: 93 | DO32: 102 | DP32: 9 | DQ32: Variable Number 19 | DR32: Var_19 | DS32: Sheet_19 | DX32: 93 | DY32: 102 | DZ32: 9 | EA32: Variable Number 19 | EB32: Var_19 | EC32: Sheet_19 | EH32: 93 | EI32: 102 | EJ32: 9 | EK32: Variable Number 19 | EL32: Var_19 | EM32: Sheet_19 | ER32: 93 | ES32: 102 | ET32: 9 | EU32: Variable Number 19 | EV32: Var_19 | EW32: Sheet_19 | FB32: 93 | FC32: 102 | FD32: 9 | FE32: Variable Number 19 | FF32: Var_19 | FG32: Sheet_19 | FL32: 93 | FM32: 102 | FN32: 9 | FO32: Variable Number 19 | FP32: Var_19 | FQ32: Sheet_19 | FV32: 93 | FW32: 102 | FX32: 9 | FY32: Variable Number 19 | FZ32: Var_19 | GA32: Sheet_19 | GF32: 93 | GG32: 102 | GH32: 9 | GI32: Variable Number 19 | GJ32: Var_19 | GK32: Sheet_19 | GP32: 93 | GQ32: 102 | GR32: 9
A33: Variable Number 20 | B33: Var_20 | C33: Sheet_20 | H33: 93 | I33: 101 | J33: 8 | K33: Variable Number 20 | L33: Var_20 | M33: Sheet_20 | R33: 93 | S33: 101 | T33: 8 | U33: Variable Number 20 | V33: Var_20 | W33: Sheet_20 | AB33: 93 | AC33: 101 | AD33: 8 | AE33: Variable Number 20 | AF33: Var_20 | AG33: Sheet_20 | AL33: 93 | AM33: 101 | AN33: 8 | AO33: Variable Number 20 | AP33: Var_20 | AQ33: Sheet_20 | AV33: 93 | AW33: 101 | AX33: 8 | AY33: Variable Number 20 | AZ33: Var_20 | BA33: Sheet_20 | BF33: 93 | BG33: 101 | BH33: 8 | BI33: Variable Number 20 | BJ33: Var_20 | BK33: Sheet_20 | BP33: 93 | BQ33: 101 | BR33: 8 | BS33: Variable Number 20 | BT33: Var_20 | BU33: Sheet_20 | BZ33: 93 | CA33: 101 | CB33: 8 | CC33: Variable Number 20 | CD33: Var_20 | CE33: Sheet_20 | CJ33: 93 | CK33: 101 | CL33: 8 | CM33: Variable Number 20 | CN33: Var_20 | CO33: Sheet_20 | CT33: 93 | CU33: 101 | CV33: 8 | CW33: Variable Number 20 | CX33: Var_20 | CY33: Sheet_20 | DD33: 93 | DE33: 101 | DF33: 8 | DG33: Variable Number 20 | DH33: Var_20 | DI33: Sheet_20 | DN33: 93 | DO33: 101 | DP33: 8 | DQ33: Variable Number 20 | DR33: Var_20 | DS33: Sheet_20 | DX33: 93 | DY33: 101 | DZ33: 8 | EA33: Variable Number 20 | EB33: Var_20 | EC33: Sheet_20 | EH33: 93 | EI33: 101 | EJ33: 8 | EK33: Variable Number 20 | EL33: Var_20 | EM33: Sheet_20 | ER33: 93 | ES33: 101 | ET33: 8 | EU33: Variable Number 20 | EV33: Var_20 | EW33: Sheet_20 | FB33: 93 | FC33: 101 | FD33: 8 | FE33: Variable Number 20 | FF33: Var_20 | FG33: Sheet_20 | FL33: 93 | FM33: 101 | FN33: 8 | FO33: Variable Number 20 | FP33: Var_20 | FQ33: Sheet_20 | FV33: 93 | FW33: 101 | FX33: 8 | FY33: Variable Number 20 | FZ33: Var_20 | GA33: Sheet_20 | GF33: 93 | GG33: 101 | GH33: 8 | GI33: Variable Number 20 | GJ33: Var_20 | GK33: Sheet_20 | GP33: 93 | GQ33: 101 | GR33: 8
A34: Variable Number 21 | B34: Var_21 | C34: Sheet_21 | H34: 94 | I34: 101 | J34: 7 | K34: Variable Number 21 | L34: Var_21 | M34: Sheet_21 | R34: 94 | S34: 101 | T34: 7 | U34: Variable Number 21 | V34: Var_21 | W34: Sheet_21 | AB34: 94 | AC34: 101 | AD34: 7 | AE34: Variable Number 21 | AF34: Var_21 | AG34: Sheet_21 | AL34: 94 | AM34: 101 | AN34: 7 | AO34: Variable Number 21 | AP34: Var_21 | AQ34: Sheet_21 | AV34: 94 | AW34: 101 | AX34: 7 | AY34: Variable Number 21 | AZ34: Var_21 | BA34: Sheet_21 | BF34: 94 | BG34: 101 | BH34: 7 | BI34: Variable Number 21 | BJ34: Var_21 | BK34: Sheet_21 | BP34: 94 | BQ34: 101 | BR34: 7 | BS34: Variable Number 21 | BT34: Var_21 | BU34: Sheet_21 | BZ34: 94 | CA34: 101 | CB34: 7 | CC34: Variable Number 21 | CD34: Var_21 | CE34: Sheet_21 | CJ34: 94 | CK34: 101 | CL34: 7 | CM34: Variable Number 21 | CN34: Var_21 | CO34: Sheet_21 | CT34: 94 | CU34: 101 | CV34: 7 | CW34: Variable Number 21 | CX34: Var_21 | CY34: Sheet_21 | DD34: 94 | DE34: 101 | DF34: 7 | DG34: Variable Number 21 | DH34: Var_21 | DI34: Sheet_21 | DN34: 94 | DO34: 101 | DP34: 7 | DQ34: Variable Number 21 | DR34: Var_21 | DS34: Sheet_21 | DX34: 94 | DY34: 101 | DZ34: 7 | EA34: Variable Number 21 | EB34: Var_21 | EC34: Sheet_21 | EH34: 94 | EI34: 101 | EJ34: 7 | EK34: Variable Number 21 | EL34: Var_21 | EM34: Sheet_21 | ER34: 94 | ES34: 101 | ET34: 7 | EU34: Variable Number 21 | EV34: Var_21 | EW34: Sheet_21 | FB34: 94 | FC34: 101 | FD34: 7 | FE34: Variable Number 21 | FF34: Var_21 | FG34: Sheet_21 | FL34: 94 | FM34: 101 | FN34: 7 | FO34: Variable Number 21 | FP34: Var_21 | FQ34: Sheet_21 | FV34: 94 | FW34: 101 | FX34: 7 | FY34: Variable Number 21 | FZ34: Var_21 | GA34: Sheet_21 | GF34: 94 | GG34: 101 | GH34: 7 | GI34: Variable Number 21 | GJ34: Var_21 | GK34: Sheet_21 | GP34: 94 | GQ34: 101 | GR34: 7
A35: Variable Number 22 | B35: Var_22 | C35: Sheet_22 | H35: 95 | I35: 101 | J35: 6 | K35: Variable Number 22 | L35: Var_22 | M35: Sheet_22 | R35: 95 | S35: 101 | T35: 6 | U35: Variable Number 22 | V35: Var_22 | W35: Sheet_22 | AB35: 95 | AC35: 101 | AD35: 6 | AE35: Variable Number 22 | AF35: Var_22 | AG35: Sheet_22 | AL35: 95 | AM35: 101 | AN35: 6 | AO35: Variable Number 22 | AP35: Var_22 | AQ35: Sheet_22 | AV35: 95 | AW35: 101 | AX35: 6 | AY35: Variable Number 22 | AZ35: Var_22 | BA35: Sheet_22 | BF35: 95 | BG35: 101 | BH35: 6 | BI35: Variable Number 22 | BJ35: Var_22 | BK35: Sheet_22 | BP35: 95 | BQ35: 101 | BR35: 6 | BS35: Variable Number 22 | BT35: Var_22 | BU35: Sheet_22 | BZ35: 95 | CA35: 101 | CB35: 6 | CC35: Variable Number 22 | CD35: Var_22 | CE35: Sheet_22 | CJ35: 95 | CK35: 101 | CL35: 6 | CM35: Variable Number 22 | CN35: Var_22 | CO35: Sheet_22 | CT35: 95 | CU35: 101 | CV35: 6 | CW35: Variable Number 22 | CX35: Var_22 | CY35: Sheet_22 | DD35: 95 | DE35: 101 | DF35: 6 | DG35: Variable Number 22 | DH35: Var_22 | DI35: Sheet_22 | DN35: 95 | DO35: 101 | DP35: 6 | DQ35: Variable Number 22 | DR35: Var_22 | DS35: Sheet_22 | DX35: 95 | DY35: 101 | DZ35: 6 | EA35: Variable Number 22 | EB35: Var_22 | EC35: Sheet_22 | EH35: 95 | EI35: 101 | EJ35: 6 | EK35: Variable Number 22 | EL35: Var_22 | EM35: Sheet_22 | ER35: 95 | ES35: 101 | ET35: 6 | EU35: Variable Number 22 | EV35: Var_22 | EW35: Sheet_22 | FB35: 95 | FC35: 101 | FD35: 6 | FE35: Variable Number 22 | FF35: Var_22 | FG35: Sheet_22 | FL35: 95 | FM35: 101 | FN35: 6 | FO35: Variable Number 22 | FP35: Var_22 | FQ35: Sheet_22 | FV35: 95 | FW35: 101 | FX35: 6 | FY35: Variable Number 22 | FZ35: Var_22 | GA35: Sheet_22 | GF35: 95 | GG35: 101 | GH35: 6 | GI35: Variable Number 22 | GJ35: Var_22 | GK35: Sheet_22 | GP35: 95 | GQ35: 101 | GR35: 6
A36: Variable Number 23 | B36: Var_23 | C36: Sheet_23 | H36: 96 | I36: 101 | J36: 5 | K36: Variable Number 23 | L36: Var_23 | M36: Sheet_23 | R36: 96 | S36: 101 | T36: 5 | U36: Variable Number 23 | V36: Var_23 | W36: Sheet_23 | AB36: 96 | AC36: 101 | AD36: 5 | AE36: Variable Number 23 | AF36: Var_23 | AG36: Sheet_23 | AL36: 96 | AM36: 101 | AN36: 5 | AO36: Variable Number 23 | AP36: Var_23 | AQ36: Sheet_23 | AV36: 96 | AW36: 101 | AX36: 5 | AY36: Variable Number 23 | AZ36: Var_23 | BA36: Sheet_23 | BF36: 96 | BG36: 101 | BH36: 5 | BI36: Variable Number 23 | BJ36: Var_23 | BK36: Sheet_23 | BP36: 96 | BQ36: 101 | BR36: 5 | BS36: Variable Number 23 | BT36: Var_23 | BU36: Sheet_23 | BZ36: 96 | CA36: 101 | CB36: 5 | CC36: Variable Number 23 | CD36: Var_23 | CE36: Sheet_23 | CJ36: 96 | CK36: 101 | CL36: 5 | CM36: Variable Number 23 | CN36: Var_23 | CO36: Sheet_23 | CT36: 96 | CU36: 101 | CV36: 5 | CW36: Variable Number 23 | CX36: Var_23 | CY36: Sheet_23 | DD36: 96 | DE36: 101 | DF36: 5 | DG36: Variable Number 23 | DH36: Var_23 | DI36: Sheet_23 | DN36: 96 | DO36: 101 | DP36: 5 | DQ36: Variable Number 23 | DR36: Var_23 | DS36: Sheet_23 | DX36: 96 | DY36: 101 | DZ36: 5 | EA36: Variable Number 23 | EB36: Var_23 | EC36: Sheet_23 | EH36: 96 | EI36: 101 | EJ36: 5 | EK36: Variable Number 23 | EL36: Var_23 | EM36: Sheet_23 | ER36: 96 | ES36: 101 | ET36: 5 | EU36: Variable Number 23 | EV36: Var_23 | EW36: Sheet_23 | FB36: 96 | FC36: 101 | FD36: 5 | FE36: Variable Number 23 | FF36: Var_23 | FG36: Sheet_23 | FL36: 96 | FM36: 101 | FN36: 5 | FO36: Variable Number 23 | FP36: Var_23 | FQ36: Sheet_23 | FV36: 96 | FW36: 101 | FX36: 5 | FY36: Variable Number 23 | FZ36: Var_23 | GA36: Sheet_23 | GF36: 96 | GG36: 101 | GH36: 5 | GI36: Variable Number 23 | GJ36: Var_23 | GK36: Sheet_23 | GP36: 96 | GQ36: 101 | GR36: 5
A37: Variable Number 24 | B37: Var_24 | C37: Sheet_24 | H37: 97 | I37: 101 | J37: 4 | K37: Variable Number 24 | L37: Var_24 | M37: Sheet_24 | R37: 97 | S37: 101 | T37: 4 | U37: Variable Number 24 | V37: Var_24 | W37: Sheet_24 | AB37: 97 | AC37: 101 | AD37: 4 | AE37: Variable Number 24 | AF37: Var_24 | AG37: Sheet_24 | AL37: 97 | AM37: 101 | AN37: 4 | AO37: Variable Number 24 | AP37: Var_24 | AQ37: Sheet_24 | AV37: 97 | AW37: 101 | AX37: 4 | AY37: Variable Number 24 | AZ37: Var_24 | BA37: Sheet_24 | BF37: 97 | BG37: 101 | BH37: 4 | BI37: Variable Number 24 | BJ37: Var_24 | BK37: Sheet_24 | BP37: 97 | BQ37: 101 | BR37: 4 | BS37: Variable Number 24 | BT37: Var_24 | BU37: Sheet_24 | BZ37: 97 | CA37: 101 | CB37: 4 | CC37: Variable Number 24 | CD37: Var_24 | CE37: Sheet_24 | CJ37: 97 | CK37: 101 | CL37: 4 | CM37: Variable Number 24 | CN37: Var_24 | CO37: Sheet_24 | CT37: 97 | CU37: 101 | CV37: 4 | CW37: Variable Number 24 | CX37: Var_24 | CY37: Sheet_24 | DD37: 97 | DE37: 101 | DF37: 4 | DG37: Variable Number 24 | DH37: Var_24 | DI37: Sheet_24 | DN37: 97 | DO37: 101 | DP37: 4 | DQ37: Variable Number 24 | DR37: Var_24 | DS37: Sheet_24 | DX37: 97 | DY37: 101 | DZ37: 4 | EA37: Variable Number 24 | EB37: Var_24 | EC37: Sheet_24 | EH37: 97 | EI37: 101 | EJ37: 4 | EK37: Variable Number 24 | EL37: Var_24 | EM37: Sheet_24 | ER37: 97 | ES37: 101 | ET37: 4 | EU37: Variable Number 24 | EV37: Var_24 | EW37: Sheet_24 | FB37: 97 | FC37: 101 | FD37: 4 | FE37: Variable Number 24 | FF37: Var_24 | FG37: Sheet_24 | FL37: 97 | FM37: 101 | FN37: 4 | FO37: Variable Number 24 | FP37: Var_24 | FQ37: Sheet_24 | FV37: 97 | FW37: 101 | FX37: 4 | FY37: Variable Number 24 | FZ37: Var_24 | GA37: Sheet_24 | GF37: 97 | GG37: 101 | GH37: 4 | GI37: Variable Number 24 | GJ37: Var_24 | GK37: Sheet_24 | GP37: 97 | GQ37: 101 | GR37: 4
A38: Variable Number 25 | B38: Var_25 | C38: Sheet_25 | H38: 98 | I38: 101 | J38: 3 | K38: Variable Number 25 | L38: Var_25 | M38: Sheet_25 | R38: 98 | S38: 101 | T38: 3 | U38: Variable Number 25 | V38: Var_25 | W38: Sheet_25 | AB38: 98 | AC38: 101 | AD38: 3 | AE38: Variable Number 25 | AF38: Var_25 | AG38: Sheet_25 | AL38: 98 | AM38: 101 | AN38: 3 | AO38: Variable Number 25 | AP38: Var_25 | AQ38: Sheet_25 | AV38: 98 | AW38: 101 | AX38: 3 | AY38: Variable Number 25 | AZ38: Var_25 | BA38: Sheet_25 | BF38: 98 | BG38: 101 | BH38: 3 | BI38: Variable Number 25 | BJ38: Var_25 | BK38: Sheet_25 | BP38: 98 | BQ38: 101 | BR38: 3 | BS38: Variable Number 25 | BT38: Var_25 | BU38: Sheet_25 | BZ38: 98 | CA38: 101 | CB38: 3 | CC38: Variable Number 25 | CD38: Var_25 | CE38: Sheet_25 | CJ38: 98 | CK38: 101 | CL38: 3 | CM38: Variable Number 25 | CN38: Var_25 | CO38: Sheet_25 | CT38: 98 | CU38: 101 | CV38: 3 | CW38: Variable Number 25 | CX38: Var_25 | CY38: Sheet_25 | DD38: 98 | DE38: 101 | DF38: 3 | DG38: Variable Number 25 | DH38: Var_25 | DI38: Sheet_25 | DN38: 98 | DO38: 101 | DP38: 3 | DQ38: Variable Number 25 | DR38: Var_25 | DS38: Sheet_25 | DX38: 98 | DY38: 101 | DZ38: 3 | EA38: Variable Number 25 | EB38: Var_25 | EC38: Sheet_25 | EH38: 98 | EI38: 101 | EJ38: 3 | EK38: Variable Number 25 | EL38: Var_25 | EM38: Sheet_25 | ER38: 98 | ES38: 101 | ET38: 3 | EU38: Variable Number 25 | EV38: Var_25 | EW38: Sheet_25 | FB38: 98 | FC38: 101 | FD38: 3 | FE38: Variable Number 25 | FF38: Var_25 | FG38: Sheet_25 | FL38: 98 | FM38: 101 | FN38: 3 | FO38: Variable Number 25 | FP38: Var_25 | FQ38: Sheet_25 | FV38: 98 | FW38: 101 | FX38: 3 | FY38: Variable Number 25 | FZ38: Var_25 | GA38: Sheet_25 | GF38: 98 | GG38: 101 | GH38: 3 | GI38: Variable Number 25 | GJ38: Var_25 | GK38: Sheet_25 | GP38: 98 | GQ38: 101 | GR38: 3
A42: Sensitivity Analysis Results: Tornado Chart | C42: =C1 -> 1 | K42: Sensitivity Analysis Results: Tornado Chart | M42: =M1 -> 2 | U42: Sensitivity Analysis Results: Tornado Chart | W42: =W1 -> 3 | AE42: Sensitivity Analysis Results: Tornado Chart | AG42: =AG1 -> 4 | AO42: Sensitivity Analysis Results: Tornado Chart | AQ42: =AQ1 -> 5 | AY42: Sensitivity Analysis Results: Tornado Chart | BA42: =BA1 -> 6 | BI42: Sensitivity Analysis Results: Tornado Chart | BK42: =BK1 -> 7 | BS42: Sensitivity Analysis Results: Tornado Chart | BU42: =BU1 -> 8 | CC42: Sensitivity Analysis Results: Tornado Chart | CE42: =CE1 -> 9 | CM42: Sensitivity Analysis Results: Tornado Chart | CO42: =CO1 -> 10 | CW42: Sensitivity Analysis Results: Tornado Chart | CY42: =CY1 -> 11 | DG42: Sensitivity Analysis Results: Tornado Chart | DI42: =DI1 -> 12 | DQ42: Sensitivity Analysis Results: Tornado Chart | DS42: =DS1 -> 13 | EA42: Sensitivity Analysis Results: Tornado Chart | EC42: =EC1 -> 14 | EK42: Sensitivity Analysis Results: Tornado Chart | EM42: =EM1 -> 15 | EU42: Sensitivity Analysis Results: Tornado Chart | EW42: =EW1 -> 16 | FE42: Sensitivity Analysis Results: Tornado Chart | FG42: =FG1 -> 17 | FO42: Sensitivity Analysis Results: Tornado Chart | FQ42: =FQ1 -> 18 | FY42: Sensitivity Analysis Results: Tornado Chart | GA42: =GA1 -> 19 | GI42: Sensitivity Analysis Results: Tornado Chart | GK42: =GK1 -> 20
A44: Sensitivity Analysis for | K44: Sensitivity Analysis for | U44: Sensitivity Analysis for | AE44: Sensitivity Analysis for | AO44: Sensitivity Analysis for | AY44: Sensitivity Analysis for | BI44: Sensitivity Analysis for | BS44: Sensitivity Analysis for | CC44: Sensitivity Analysis for | CM44: Sensitivity Analysis for | CW44: Sensitivity Analysis for | DG44: Sensitivity Analysis for | DQ44: Sensitivity Analysis for | EA44: Sensitivity Analysis for | EK44: Sensitivity Analysis for | EU44: Sensitivity Analysis for | FE44: Sensitivity Analysis for | FO44: Sensitivity Analysis for | FY44: Sensitivity Analysis for | GI44: Sensitivity Analysis for
A45: Base Case Result | C45: L | K45: Base Case Result | M45: L | U45: Base Case Result | W45: L | AE45: Base Case Result | AG45: L | AO45: Base Case Result | AQ45: L | AY45: Base Case Result | BA45: L | BI45: Base Case Result | BK45: L | BS45: Base Case Result | BU45: L | CC45: Base Case Result | CE45: L | CM45: Base Case Result | CO45: L | CW45: Base Case Result | CY45: L | DG45: Base Case Result | DI45: L | DQ45: Base Case Result | DS45: L | EA45: Base Case Result | EC45: L | EK45: Base Case Result | EM45: L | EU45: Base Case Result | EW45: L | FE45: Base Case Result | FG45: L | FO45: Base Case Result | FQ45: L | FY45: Base Case Result | GA45: L | GI45: Base Case Result | GK45: L

Sheet Scen.Control
A1: First 5 rows reserved.
A2: Return to Workbook Contents sheet
A7: Sheet for Controlling Scenario Selection
A9: Scenario Description | B9: Scenario Key | G9: Scenario Selected
A10: Main Scenarios
A11: Scenario for Operation of CBTL | B11: 1 = 0% biomass by weight (bio), iron catalyst (Fe) 2 = 16% bio, Fe (baseline scenario) 3 = 31% bio, Fe 4 = 14% bio cobalt catalyst (Co) 5 = 14% bio, Co, maximize F-T jet fuel, minimize diesel | G11: 1
A12: Scenario for Managing Super Critical CO2 | B12: 1 = use super critical CO2 in enhanced oil recovery (EOR) in west Texas 2 = permanently store super critical CO2 in brine aquifer | G12: 1
A13: Secondary Scenarios
A14: Scenario for Packaging (Baling) and Covering Harvested Switchgrass (P&C Scenario) | B14: 1 = rectangular bales covered 2 = round bales covered 3 = round bales uncovered | G14: 1
A15: Scenario for Configuration of Jet Fuel Transportation System | B15: 1 = transport of jet fuel from CBTL to O'Hare airport by pipeline 2 = transport of jet fuel from CBTL to i) OHare airport by pipeline and ii) regional airports by tanker trailer trucks | G15: 1
A16: Scenario for Methane Capture System | B16: 1 = methane capture system operational 2 = no methane capture system | G16: 1

Sheet Stg Conv & Alloc
A1: First 5 rows reserved.
A2: Return to Workbook Contents sheet
A6: Conversions of Reference Flows Between Stages and to Functional Unit
A8: Stage | C8: Reference Flow | F8: Quantity Needed for Next Relevant Stage (NRS) | M8: Quantity Needed for Functional Unit | S8: Quantity (in kg) Needed for Functional Unit
F9: NRS
A10: Coal Acquisition | B10: 1a | C10: 1 | D10: kg | E10: coal ready for transport | F10: 2a | G10: =S2a.UP.O.CoalRailOp!I81 ->  | H10: kg | I10: coal ready for transport | J10: per | K10: kg | L10: coal delivered to CBTL | M10: =G10*M11 ->  | N10: kg | O10: coal ready for transport | P10: per | Q10: MJ | R10: blended jet fuel combusted | S10: =M10 ->  | T10: kg | U10: coal ready for transport | V10: per | W10: MJ | X10: blended jet fuel combusted
A11: Coal Transport | B11: 2a | C11: 1 | D11: kg | E11: coal delivered to CBTL | F11: 3a | G11: =S3a.UP.O.CBTLOp!I278 -> 6.067 | H11: kg | I11: coal delivered to CBTL | J11: per | K11: kg | L11: F-T jet fuel ready for transport | M11: =G11*M14 ->  | N11: kg | O11: coal delivered to CBTL | P11: per | Q11: MJ | R11: blended jet fuel combusted | S11: =M11 ->  | T11: kg | U11: coal delivered to CBTL | V11: per | W11: MJ | X11: blended jet fuel combusted
A12: Biomass Acquisition | B12: 1b | C12: 1 | D12: tonne | E12: switchgrass (dry) ready for transport | F12: 2b | G12: =S2b.UP.O.BioTranOp!I109/1000 -> 0 | H12: tonne | I12: switchgrass (dry) ready for transport | J12: per | K12: tonne | L12: switchgrass (dry) delivered to CBTL | M12: =G12*M13 ->  | N12: tonne | O12: switchgrass (dry) ready for transport | P12: per | Q12: MJ | R12: blended jet fuel combusted | S12: =M12*1000 ->  | T12: kg | U12: switchgrass (dry) ready for transport | V12: per | W12: MJ | X12: blended jet fuel combusted
A13: Biomass Transport | B13: 2b | C13: 1 | D13: tonne | E13: switchgrass (dry) delivered to CBTL | F13: 3a | G13: =S3a.UP.O.CBTLOp!I279/1000 -> 0 | H13: tonne | I13: switchgrass (dry) delivered to CBTL | J13: per | K13: kg | L13: F-T jet fuel ready for transport | M13: =G13*M14 ->  | N13: tonne | O13: switchgrass (dry) delivered to CBTL | P13: per | Q13: MJ | R13: blended jet fuel combusted | S13: =M13*1000 ->  | T13: kg | U13: switchgrass (dry) delivered to CBTL | V13: per | W13: MJ | X13: blended jet fuel combusted
A14: CBTL | B14: 3a | C14: 1 | D14: kg | E14: F-T jet fuel ready for transport | F14: 4 | G14: =S4.UP.O.JFTranOp!I252 ->  | H14: kg | I14: F-T jet fuel ready for transport | J14: per | K14: kg | L14: blended jet fuel delivered to aircraft | M14: =G14*M17 ->  | N14: kg | O14: F-T jet fuel ready for transport | P14: per | Q14: MJ | R14: blended jet fuel combusted | S14: =M14 ->  | T14: kg | U14: F-T jet fuel ready for transport | V14: per | W14: MJ | X14: blended jet fuel combusted
A15: CO2 Transport by Pipe | B15: 3b | C15: 1 | D15: tonne | E15: CO2 delivered to EOR or Seq. Site | F15: 3a | G15: =(1/S3b.UP.O.PipeOp!I118)*S3a.UP.O.CBTLOp!I293 ->  | H15: tonne | I15: CO2 delivered to EOR or Seq. Site | J15: per | K15: kg | L15: F-T jet fuel ready for transport | M15: =G15*M14 ->  | N15: tonne | O15: CO2 delivered to EOR or Seq. Site | P15: per | Q15: MJ | R15: blended jet fuel combusted | S15: =M15*1000 ->  | T15: kg | U15: CO2 delivered to EOR or Seq. Site | V15: per | W15: MJ | X15: blended jet fuel combusted
A16: EOR | B16: 3c | C16: 1 | D16: bbl | E16: crude oil produced | F16: 3b | G16: =IF(L211=2,0,1000/S3c.UP.O.EOROp!I117) ->  | H16: bbl | I16: crude oil produced | J16: per | K16: tonne | L16: CO2 delivered to EOR | M16: =G16*M15 ->  | N16: bbl | O16: crude oil produced | P16: per | Q16: MJ | R16: blended jet fuel combusted | S16: =M16*F35 ->  | T16: kg | U16: crude oil produced | V16: per | W16: MJ | X16: blended jet fuel combusted
A17: Jet Fuel Transport | B17: 4 | C17: 1 | D17: kg | E17: blended jet fuel delivered to aircraft | F17: 5 | G17: =S5.UP.O.FTJFUseOp!I67 -> 1 | H17: kg | I17: blended jet fuel delivered to aircraft | J17: per | K17: kg | L17: blended jet fuel combusted | M17: =G17*M18 -> 0.0227666346 | N17: kg | O17: blended jet fuel delivered to aircraft | P17: per | Q17: MJ | R17: blended jet fuel combusted | S17: =M17 -> 0.0227666346 | T17: kg | U17: blended jet fuel delivered to aircraft | V17: per | W17: MJ | X17: blended jet fuel combusted
A18: Jet Fuel Use | B18: 5 | C18: 1 | D18: kg | E18: blended jet fuel combusted | M18: =1/F21 -> 0.0227666346 | N18: kg | O18: blended jet fuel combusted | P18: per | Q18: MJ | R18: blended jet fuel combusted | S18: =M18 -> 0.0227666346 | T18: kg | U18: blended jet fuel combusted | V18: per | W18: MJ | X18: blended jet fuel combusted
A20: Energy Density
A21: Blended Jet Fuel | C21: 1 | D21: kg | E21: equals | F21: =S5.UP.O.FTJFUseOp!I55 -> 43.92392716 | G21: MJ | H21: LHV combusted
A22: Conv. Jet Fuel | C22: 1 | D22: kg | E22: equals | F22: ='UP Control1'!I25 -> 43.2 | G22: MJ | H22: LHV combusted
A23: F-T Jet Fuel | C23: 1 | D23: kg | E23: equals | F23: =S3a.UP.O.CBTLOp!I63 -> 44.7 | G23: MJ | H23: LHV combusted
A24: F-T Diesel | C24: 1 | D24: kg | E24: equals | F24: =S3a.UP.O.CBTLOp!I64 -> 44.3 | G24: MJ | H24: LHV combusted
A25: F-T Naphtha | C25: 1 | D25: kg | E25: equals | F25: =S3a.UP.O.CBTLOp!I65 -> 44.7 | G25: MJ | H25: LHV combusted
A26: Crude Oil | C26: 1 | D26: kg | E26: equals | F26: =S3c.UP.O.EOROp!E192 -> 44.07835919 | G26: MJ | H26: LHV combusted
A27: Natural Gas | C27: 1 | D27: kg | E27: equals | F27: =S3c.UP.O.EOROp!E190 -> 47.1 | G27: MJ | H27: LHV combusted
A28: Natural Gas Liquids | C28: 1 | D28: kg | E28: equals | F28: =S3c.UP.O.EOROp!E191 -> 48.80607155 | G28: MJ | H28: LHV combusted
A29: Density
A30: Blended Jet Fuel | C30: 1 | D30: L | E30: equals | F30: =S4.UP.O.JFTranOp!I76 -> 0.7780478897 | G30: kg | H30: blended jet fuel
A31: Conv. Jet Fuel | C31: 1 | D31: L | E31: equals | F31: ='UP Control1'!C106 -> 0.8050957795 | G31: kg | H31: conv. jet fuel
A32: F-T Jet Fuel | C32: 1 | D32: L | E32: equals | F32: =S3a.UP.O.CBTLOp!I260 -> 0.751 | G32: kg | H32: F-T jet fuel
A33: F-T Diesel | C33: 1 | D33: L | E33: equals | F33: =S3a.UP.O.CBTLOp!I261 -> 0.784 | G33: kg | H33: F-T diesel
A34: F-T Naphtha | C34: 1 | D34: L | E34: equals | F34: =S3a.UP.O.CBTLOp!I262 -> 0.676 | G34: kg | H34: F-T naphtha
A35: Crude Oil | C35: 1 | D35: bbl | E35: equals | F35: =S3c.UP.O.EOROp!E182 -> 138.79827 | G35: kg | H35: Texas crude
C36: 1 | D36: L | E36: equals | F36: =S3c.UP.O.EOROp!D182*0.001 -> 0.873 | G36: kg | H36: Texas crude
A37: Natural Gas Liquids | C37: 1 | D37: L | E37: equals | F37: 0.65 | G37: kg | H37: nat. gas liquids | I37: reportedly between 0.5 and 0.8 kg/L
A39: Crude Oil to Jet Fuel
A40: Crude Oil | C40: 1 | D40: L | E40: produces | F40: ='Pet Base JF GHG'!D46 -> 1.007939189 | G40: L | H40: refined products | I40: excluding refinery fuel
A41: Crude Oil | C41: 1 | D41: L | E41: produces | F41: =F40*F31/F36 -> 0.929539046 | G41: kg | H41: jet fuel | I41: assumes all refined products are jet fuel
A43: Crude Oil | C43: 1 | D43: L | E43: produces | F43: ='Pet Base JF GHG'!C54 -> 0.09206081081 | G43: L | H43: jet fuel
A44: Crude Oil | C44: 1 | D44: kg | E44: produces | F44: =F43*F31/F36 -> 0.08490008046 | G44: kg | H44: jet fuel
A45: All Refined Products (w/o refin fuel) | C45: 1 | D45: L | E45: produces | F45: ='Pet Base JF GHG'!C56 -> 0.09133567957 | G45: L | H45: jet fuel | I45: excluding refinery fuel
A47: Inputs and Outputs for Stage 3
A49: Inputs
A50: Coal | B50: =S3a.UP.O.CBTLOp!G278 -> 6.067 | C50: kg | D50: coal delivered to CBTL | E50: per | F50: kg | G50: F-T jet fuel ready for transport
A51: Switchgrass | B51: =S3a.UP.O.CBTLOp!G279 -> 0 | C51: kg | D51: switchgrass (dry) delivered to CBTL | E51: per | F51: kg | G51: F-T jet fuel ready for transport
A52: Hydrogen | B52: =S3a.UP.O.CBTLOp!G281 -> 0 | C52: kg | D52: hydrogen delivered to CBTL | E52: per | F52: kg | G52: F-T jet fuel ready for transport
A53: Outputs
A54: Outputs from CBTL
A55: F-T Jet Fuel | B55: 1 | C55: kg | D55: F-T jet fuel ready for transport | E55: per | F55: kg | G55: F-T jet fuel ready for transport
A56: F-T Diesel | B56: =S3a.UP.O.CBTLOp!I291 -> 0.7053 | C56: kg | D56: F-T diesel ready for transport | E56: per | F56: kg | G56: F-T jet fuel ready for transport
A57: F-T Naphtha | B57: =S3a.UP.O.CBTLOp!I292 -> 0.1859 | C57: kg | D57: F-T naphtha ready for transport | E57: per | F57: kg | G57: F-T jet fuel ready for transport
A58: CO2 for EOR/ Seq. | B58: =S3a.UP.O.CBTLOp!I293 ->  | C58: kg | D58: F-T CO2 ready for transport | E58: per | F58: kg | G58: F-T jet fuel ready for transport
A59: Outputs from EOR
A60: EOR Crude oil | B60: =S3c.UP.O.EOROp!G124*$G$16*$G$15 ->  | C60: kg | D60: crude oil ready for transport to refinery | E60: per | F60: kg | G60: F-T jet fuel ready for transport
A61: EOR Natural Gas (net) | B61: =(S3c.UP.O.EOROp!I125-S3c.UP.O.EOROp!I116)*$G$16*$G$15 ->  | C61: kg | D61: natural gas ready for transport | E61: per | F61: kg | G61: F-T jet fuel ready for transport
A62: EOR Natural Gas Liquids | B62: =S3c.UP.O.EOROp!G126*$G$16*$G$15 ->  | C62: kg | D62: natural gas liquids ready for transport | E62: per | F62: kg | G62: F-T jet fuel ready for transport
A63: CO2 Sequestered | B63: =S3c.UP.O.EOROp!G128*$G$16*$G$15 ->  | C63: kg | D63: F-T CO2 ready for transport | E63: per | F63: kg | G63: F-T jet fuel ready for transport
A65: Data for Mass, Energy, and Volume Allocation
A66: Fuel | B66: Mass (kg/kg F-T jet fuel) | C66: Mass Fraction (w/crude) | D66: Mass Fraction (w/o crude) | E66: Energy Density (MJ LHV/kg) | F66: Energy (MJ LHV/kg) | G66: Energy Fraction (w/crude) | H66: Energy Fraction (w/o crude) | I66: Density (kg/L) | J66: Volume (L/kg F-T jet fuel) | K66: Volume Fraction (w/crude) | L66: Volume Fraction (w/o crude)
A67: Outputs from CBTL
A68: F-T Jet Fuel | B68: =IF(B55>0,B55,0) -> 1 | C68: =B68/B$75 ->  | D68: =B68/(SUM($B$68:$B$70,$B$73:$B$74)) ->  | E68: =F23 -> 44.7 | F68: =IF(B68>0,B68*E68,0) -> 44.7 | G68: =F68/F$75 ->  | H68: =F68/SUM($F$68:$F$70,$F$73:$F$74) ->  | I68: =F32 -> 0.751 | J68: =IF(B68=0,0,B68/I68) -> 1.331557923 | K68: =J68/$J$75 ->  | L68: =J68/SUM($J$68:$J$70,$J$73:$J$74) -> 
A69: F-T Diesel | B69: =IF(B56>0,B56,0) -> 0.7053 | C69: =B69/B$75 ->  | D69: =B69/(SUM($B$68:$B$70,$B$73:$B$74)) ->  | E69: =F24 -> 44.3 | F69: =IF(B69>0,B69*E69,0) -> 31.24479 | G69: =F69/F$75 ->  | H69: =F69/SUM($F$68:$F$70,$F$73:$F$74) ->  | I69: =F33 -> 0.784 | J69: =IF(B69=0,0,B69/I69) -> 0.8996173469 | K69: =J69/$J$75 ->  | L69: =J69/SUM($J$68:$J$70,$J$73:$J$74) -> 
A70: F-T Naphtha | B70: =IF(B57>0,B57,0) -> 0.1859 | E70: 44.7 | F70: =IF(B70>0,B70*E70,0) -> 8.30973 | G70: =F70/F$75 ->  | H70: =F70/SUM($F$68:$F$70,$F$73:$F$74) ->  | I70: 0.676 | J70: 0.275
A71: Outputs from EOR
A72: EOR Crude oil | B72: =IF(B60>0,B60,0) ->  | C72: =B72/B$75 ->  | E72: =F26 -> 44.07835919 | F72: =IF(B72>0,B72*E72,0) ->  | G72: =F72/F$75 ->  | I72: =F36 -> 0.873 | J72: =IF(B72=0,0,B72/I72) ->  | K72: =J72/$J$75 -> 
A73: EOR Natural Gas (net) | B73: =IF(B61>0,B61,0) ->  | D73: =B73/(SUM($B$68:$B$70,$B$73:$B$74)) ->  | E73: =F27 -> 47.1 | F73: =IF(B73>0,B73*E73,0) ->  | G73: =F73/F$75 ->  | H73: =F73/SUM($F$68:$F$70,$F$73:$F$74) ->  | J73: =IF(B73=0,0,B73/I73) ->  | L73: =J73/SUM($J$68:$J$70,$J$73:$J$74) -> 
A74: EOR Natural Gas Liquids | B74: =IF(B62>0,B62,0) ->  | E74: =F28 -> 48.80607155 | F74: =IF(B74>0,B74*E74,0) ->  | G74: =F74/F$75 ->  | H74: =F74/SUM($F$68:$F$70,$F$73:$F$74) ->  | I74: =F37 -> 0.65 | J74: =IF(B74=0,0,B74/I74) -> 
A75: Total | B75: =SUM(B68:B74) ->  | D75: =SUM(D68:D74) ->  | F75: =SUM(F68:F74) ->  | G75: =F75/F$75 ->  | H75: =SUM(H68:H74) ->  | J75: =SUM(J68:J74) ->  | K75: =SUM(K68:K74) ->  | L75: =SUM(L68:L74) -> 
A77: GHG Emission Data from Petroleum Baseline Report for Petroleum Counterparts of F-T Products and Products from EOR
A78: For Use in Displacement Allocations
A79: Fuel | B79: Mass (kg/MJ LHV) | C79: Unit Process Emissions (kg CO2e/kg) IPCC 1996 | D79: Emissions (g CO2e/MJ LHV) IPCC 1996 | E79: Unit Process Emissions (kg CO2e/kg) IPCC 2001 | F79: Emissions (g CO2e/MJ LHV) IPCC 2001 | G79: Unit Process Emissions (kg CO2e/kg) IPCC 2007 | H79: Emissions (g CO2e/MJ LHV) IPCC 2007
A80: Outputs from CBTL (Stages 1-3 from Petroleum Baseline Report)
A81: F-T Jet Fuel | B81: =B55*M$14 -> 
A82: F-T Diesel | B82: =B56*M$14 ->  | C82: 0.806 | D82: =IF($B82>0,$B82*C82*1000,0) ->  | E82: 0.814 | F82: =IF($B82>0,$B82*E82*1000,0) ->  | G82: 0.822 | H82: =IF($B82>0,$B82*G82*1000,0) -> 
A83: F-T Naphtha | B83: =B57*M$14 ->  | C83: 0.57 | D83: =IF($B83>0,$B83*C83*1000,0) ->  | E83: 0.577 | F83: =IF($B83>0,$B83*E83*1000,0) ->  | G83: 0.584 | H83: =IF($B83>0,$B83*G83*1000,0) -> 
A84: Outputs from EOR (Stage 1 from Petroleum Baseline Report or Other NETL Sources)
A85: EOR Crude Oil | B85: =B60*M$14 ->  | C85: 0.276 | D85: =IF($B85>0,$B85*C85*1000,0) ->  | E85: 0.282 | F85: =IF($B85>0,$B85*E85*1000,0) ->  | G85: 0.289 | H85: =IF($B85>0,$B85*G85*1000,0) -> 
A86: EOR Natural Gas (net) | B86: =B61*M$14 ->  | C86: 0.126 | D86: =IF($B86>0,$B86*C86*1000,0) ->  | E86: 0.124 | F86: =IF($B86>0,$B86*E86*1000,0) ->  | G86: 0.124
A87: EOR Natural Gas Liquids | B87: =B62*M$14 ->  | C87: 0.126 | E87: 0.124 | F87: =IF($B87>0,$B87*E87*1000,0) ->  | G87: 0.124
A89: Calculations for Baseline System Boundary
A90: Calculations for Energy, Volume and Mass Allocation in Baseline Boundary System
E91: All Products | F91: F-T Fuels
A92: Ratio of energy of F-T jet fuel to energy of all products | E92: =F68/SUM(F68:F74) ->  | F92: =G68/SUM(G68:G70) -> 
A93: Ratio of volume of F-T jet fuel to volume of all products | E93: =J68/SUM(J68:J74) ->  | F93: =K68/SUM(K68:K70) -> 
A94: Ratio of mass of F-T jet fuel to mass of all products | E94: =B68/SUM(B68:B74) ->  | F94: =C68/SUM(C68:C70) -> 
A96: Calculations for Displacement Allocation in Baseline Boundary System
A97: Fuel | D97: Emissions (g CO2e/MJ LHV) IPCC 1996 | F97: Emissions (g CO2e/MJ LHV) IPCC 2001 | H97: Emissions (g CO2e/MJ LHV) IPCC 2007
A98: Sum of F-T Dies., F-T Naph., Crude, Nat. Gas & NGL
A99: Total (g CO2e/MJ LHV blended JF) | D99: =SUM(D82:D87) ->  | F99: =SUM(F82:F87) ->  | H99: =SUM(H82:H87) -> 
A100: Sum of F-T Dies. & F-T Naph.
A101: Total (g CO2e/MJ LHV blended JF) | D101: =SUM(D82:D83) ->  | F101: =SUM(F82:F83) ->  | H101: =SUM(H82:H83) -> 
A103: Estimating GHG Emissions for Extracting and Transporting Geologic CO2 for EOR
A104: CO2 extracted from reservoir, lost in various ways and delivered to EOR
A105: Length of pipeline | E105: Pipe_Len_km | F105: 800 | G105: km | I105: estimate
A106: CO2 delivered to EOR | E106: CO2_EOR | F106: =S3b.UP.O.PipeOp!I77 ->  | G106: tonne/study period | I106: See sheet S3b.UP.O.PipeOp
F107: =F106/(365*30) ->  | G107: tonnes/day | I107: assumes 30 years at 365 days/yr
A108: Fugitive emissions per km of pipeline | E108: Fug_Emis_km | F108: =S3b.UP.O.PipeOp!I62 ->  | G108: tonne/tonne-km | I108: See sheet S3b.UP.O.PipeOp
A109: CO2 entering pipeline excluding pigging losses | E109: CO2_pipe_nopig | F109: =F106/(1-F105*F108) ->  | G109: tonne/study period | I109: = CO2_EOR / (1 - Pipe_Len_km * Fug_Emis_km)
A110: CO2 losses from fugitive emsissions from pipe | E110: CO2_pipe_emis_fug | F110: =F109*F108*F105 ->  | G110: tonne/study period | I110: = CO2_pipe_nopig * Pipe_Len_km * Fug_Emis_km
A111: Number of pigging events | E111: No_pig_event | F111: =S3b.UP.O.PipeOp!I67 ->  | I111: See sheet S3b.UP.O.PipeOp
A112: CO2 density at venting pressure | E112: CO2_den1_kg_m3 | F112: =S3b.UP.O.PipeOp!I69 -> 819.2 | G112: kg/m3 | I112: See sheet S3b.UP.O.PipeOp
A113: Rounded inner pipe diameter in meters | E113: Pipe_dia_m | F113: =S3b.UP.O.PipeOp!I70 ->  | G113: m | I113: See sheet S3b.UP.O.PipeOp
A114: Volume of pipeline | E114: Pipe_vol_m3 | F114: =F105*1000*F113*F113*PI()/4 ->  | G114: m3 | I114: = Pipe_Len_km *1000 m/km * Pipe_dia_m^2 * pi()/4
A115: CO2 vented each pigging event | E115: CO2_emis_pig | F115: =F114*F112*0.001 ->  | G115: tonne/study period | I115: = Pipe_vol_m3 * CO2_den1_kg_m3 * 1e-3 tonne/kg
A116: CO2 vented during all pigging events | E116: CO2_emis_pig_tot | F116: =F115*F111 ->  | G116: tonne/study period | I116: = CO2_emis_pig * No_pig_event
A117: CO2 entering pipeline including pigging losses | E117: CO2_pipe_start | F117: =F109+F116 ->  | G117: tonne/study period | I117: = CO2_pipe_nopig + CO2_emis_pig_tot
A118: Fugitive emissions during extraction as fraction of extracted CO2 | E118: Fug_Emis_res | F118: 0.015 | I118: estimate from Dilmore (2011)
A119: CO2 extracted from reservoir | E119: CO2_res | F119: =F117/(1-F118) ->  | G119: tonne/study period | I119: = CO2_pipe_start / (1 - Fug_Emis_res)
A120: CO2 lost during extraction from reservoir | E120: CO2_emis_res | F120: =F119*F118 ->  | G120: tonne/study period | I120: = CO2_res * Fug_Emis_res
A121: Total CO2 lost | E121: CO2_emis_tot | F121: =F110+F116+F120 ->  | G121: tonne/study period | I121: = CO2_pipe_emis_fug + CO2_emis_pig_tot + CO2_emis_res
A122: Total CO2 lost per tonne CO2 delivered to EOR | E122: CO2_emis_EOR | F122: =1000*F121/F106 ->  | G122: kg/tonne | I122: = CO2_emis_tot / CO2_EOR
A123: CO2e emissions from electricity use
A124: Electricity used to extract CO2 from reservoir | E124: Elec_res | F124: =(39+77)/2 -> 58 | G124: kWh/tonne | I124: estimate from Dilmore (2011) (39-77 kWh/tonne)
A125: Electricity used to pump CO2 during transport | E125: Elec_pipe | F125: 7 | G125: kWh/tonne | I125: boost compression estimate (0 to 15.1 MPa)
A126: Upstream CO2e emissions per kWh (ERCOT) | E126: CO2e_kWh_1996 | F126: =Sec.UP.All!AW150 -> 0.776353264 | G126: kg CO2e/kWh | I126: See sheet Sec.UP.All, IPCC 1996 GWP
E127: CO2e_kWh_2001 | F127: =Sec.UP.All!AW151 -> 0.7782176488 | G127: kg CO2e/kWh | I127: See sheet Sec.UP.All, IPCC 2001 GWP
E128: CO2e_kWh_2007 | F128: =Sec.UP.All!AW152 -> 0.7802365717 | G128: kg CO2e/kWh | I128: See sheet Sec.UP.All, IPCC 2007 GWP
A129: CO2e emissions from electricity per tonne of CO2 delivered to EOR | E129: CO2e_elec_1996 | F129: =(F124+F125)*F126 -> 50.46296216 | G129: kg/tonne | I129: = (Elec_res + Elec_pipe) * CO2e_kWh_1996
E130: CO2e_elec_2001 | F130: =(F124+F125)*F127 -> 50.58414717 | G130: kg/tonne | I130: = (Elec_res + Elec_pipe) * CO2e_kWh_2001
E131: CO2e_elec_2007 | F131: =(F124+F125)*F128 -> 50.71537716 | G131: kg/tonne | I131: = (Elec_res + Elec_pipe) * CO2e_kWh_2007
A132: CO2e emissions from electricity use and fugitive emissions
A133: CO2e emissions total per tonne of CO2 delivered to EOR | E133: CO2e_tot_1996 | F133: =F129+F122 ->  | G133: kg/tonne | I133: = CO2_emis_EOR + CO2e_elec_1996
E134: CO2e_tot_2001 | F134: =F130+F122 ->  | G134: kg/tonne | I134: = CO2_emis_EOR + CO2e_elec_2001
E135: CO2e_tot_2007 | F135: =F122+F131 ->  | G135: kg/tonne | I135: = CO2_emis_EOR + CO2e_elec_2007
A136: Tonnes of CO2 delivered to EOR per MJ blend. JF combusted | E136: CO2_MJ _JF | F136: =M15 ->  | G136: tonne/MJ LHV | I136: See cell M15
A137: CO2e emissions total per MJ blended jet fuel combusted | E137: CO2e_MJ_1996 | F137: =F133*F$136*1000 ->  | G137: g CO2e/MJ | I137: = CO2e_tot_1996 * CO2_MJ_JF * 1000 kg/tonne
E138: CO2e_MJ_2001 | F138: =F134*F$136*1000 ->  | G138: g CO2e/MJ | I138: = CO2e_tot_2001 * CO2_MJ_JF * 1000 kg/tonne
E139: CO2e_MJ_2007 | G139: g CO2e/MJ | I139: = CO2e_tot_2007 * CO2_MJ_JF * 1000 kg/tonne
A142: Flows
G143: Mass Relative to Functional Unit | H143: Daily Flow | I143: Mass Relative to Functional Unit (Infinite Sig Figs)
A144: Flow Number | B144: Flow | G144: g/MJ LHV blended JF combusted | H144: tonne/day | I144: g/MJ LHV blended JF combusted
B145: Acquisition of Inputs for CBTL
A146: 1 | B146: Coal (wet) Ready for Transport | G146: =sigfig(I146,F$176) ->  | H146: =sigfig(I146*0.000001*F$181,F$176) ->  | I146: =M10*1000 ->  | U146: Coal delivered to CBTL | V146: =M11*1000 ->  | W146: g coal (wet)/ MJ LHV blended jet fuel combusted
A147: =A146+1 -> 2 | B147: Coal (dry) Ready for Transport | G147: =sigfig(I147,F$176) ->  | H147: =sigfig(I147*0.000001*F$181,F$176) ->  | I147: =I146*(1-F174) -> 
A148: =A147+1 -> 3 | B148: Switchgrass (wet) Ready for Transport | G148: =sigfig(I148,F$176) ->  | H148: =sigfig(I148*0.000001*F$181,F$176) ->  | I148: =I149/(1-F175) -> 
A149: 4 | B149: Switchgrass (dry) Ready for Transport | G149: =sigfig(I149,F$176) ->  | H149: =sigfig(I149*0.000001*F$181,F$176) ->  | I149: =1000000*M12 ->  | U149: Switchgrass delivered to CBTL | V149: =M12/(1-F175)*1000000 ->  | W149: g switchgrass (wet)/ MJ LHV blended jet fuel combusted
B150: Transport of Inputs to CBTL
A151: =A149+1 -> 5 | B151: Coal (wet) Delivered to CBTL | G151: =sigfig(I151,F$176) ->  | H151: =sigfig(I151*0.000001*F$181,F$176) ->  | I151: =M11*1000 ->  | U151: Total coal and switchgrass | V151: =SUM(V146:V149) ->  | W151: g/MJ LHV
A152: 6 | B152: Coal (dry) Delivered to CBTL | G152: =sigfig(I152,F$176) ->  | H152: =sigfig(I152*0.000001*F$181,F$176) ->  | I152: =I151*(1-F174) -> 
A153: 7 | B153: Switchgrass (wet) Delivered to CBTL | G153: =sigfig(I153,F$176) ->  | H153: =sigfig(I153*0.000001*F$181,F$176) ->  | I153: =I154/(1-F175) -> 
A154: 8 | B154: Switchgrass (dry) Delivered to CBTL | G154: =sigfig(I154,F$176) ->  | H154: =sigfig(I154*0.000001*F$181,F$176) ->  | I154: =M13*1000000 ->  | N154: Energy Density | U154: Percent coal | V154: =V146/V151 -> 
B155: Outputs from CBTL | N155: MJ/kg
A156: =A154+1 -> 9 | B156: F-T Jet Fuel Ready for Transport | G156: =sigfig(I156,F$176) ->  | H156: =sigfig(I156*0.000001*F$181,F$176) ->  | I156: =M14*1000 ->  | N156: =F23 -> 44.7 | O156: =N156*I156*0.001 ->  | P156: =O156/$O$167 -> 
A157: =A156+1 -> 10 | B157: F-T Diesel Ready for Transport | G157: =sigfig(I157,F$176) ->  | H157: =sigfig(I157*0.000001*F$181,F$176) ->  | I157: =B82*1000 ->  | N157: =F24 -> 44.3 | O157: =N157*I157*0.001 ->  | P157: =O157/$O$167 ->  | U157: Percent switchgrass | V157: =V149/V151 -> 
A158: =A157+1 -> 11 | B158: F-T Naphtha Ready for Transport | G158: =sigfig(I158,F$176) ->  | H158: =sigfig(I158*0.000001*F$181,F$176) ->  | I158: =B83*1000 ->  | N158: =F25 -> 44.7
A159: 12 | B159: Supercritical CO2 Ready for Transport | G159: =sigfig(I159,F$176) ->  | H159: =sigfig(I159*0.000001*F$181,F$176) ->  | I159: =B58*M14*1000 -> 
B160: CO2 for Sequestration
A161: =A159+1 -> 13 | B161: Supercritical CO2 Delivered for Sequestration | G161: =sigfig(I161,F$176) -> 0 | H161: =sigfig(I161*0.000001*F$181,F$176) ->  | I161: =IF(L211=1,0,M15*1000000) -> 0
B162: Input to EOR
A163: =A161+1 -> 14 | B163: Supercritical CO2 Delivered to EOR | G163: =sigfig(I163,F$176) ->  | H163: =sigfig(I163*0.000001*F$181,F$176) ->  | I163: =IF(L211=1,M15*1000000,0) -> 
B164: Outputs from EOR
A165: =A163+1 -> 15 | B165: Crude Oil Ready for Transport | G165: =sigfig(I165,F$176) ->  | H165: =sigfig(I165*0.000001*F$181,F$176) ->  | I165: =B85*1000 ->  | N165: =F26 -> 44.07835919 | O165: =N165*I165*0.001 ->  | P165: =O165/$O$167 -> 
A166: 16 | B166: Natural Gas Liquids Ready for Transport | G166: =sigfig(I166,F$176) ->  | H166: =sigfig(I166*0.000001*F$181,F$176) ->  | I166: =B87*1000 ->  | N166: =F28 -> 48.80607155
B167: Inputs for Jet Fuel Blending | N167: Total | O167: =SUM(O156:O166) -> 
A168: =A166+1 -> 17 | B168: F-T Jet Fuel for Blending | G168: =sigfig(I168,F$176) ->  | H168: =sigfig(I168*0.000001*F$181,F$176) ->  | I168: =F225*M17*1000 -> 
A169: 18 | B169: Conventional Jet Fuel for Blending | G169: =sigfig(I169,F$176) ->  | H169: =sigfig(I169*0.000001*F$181,F$176) ->  | I169: =F226*M17*1000 -> 
B170: Output from Jet Fuel Blending
A171: =A169+1 -> 19 | B171: Blended Jet Fuel Ready for Transport | G171: =sigfig(I171,F$176) ->  | H171: =sigfig(I171*0.000001*F$181,F$176) ->  | I171: =SUM(I168:I169) -> 
B172: Blended Jet Fuel Delivered to Aircraft Fuel Tank
A173: =A171+1 -> 20 | B173: Blended Jet Fuel Delivered to Aircraft | G173: =sigfig(I173,F$176) -> 22.8 | H173: =sigfig(I173*0.000001*F$181,F$176) ->  | I173: =M17*1000 -> 22.7666346
B174: Moisture content of coal | F174: =S3a.UP.O.CBTLOp!I54 -> 0.111
B175: Moisture content of biomass | F175: =S3a.UP.O.CBTLOp!I56 -> 0.15
B176: Significant figures | F176: 3
B177: kg of F-T JF ready for transport each day | F177: =S3a.UP.O.CBTLOp!I244 -> 1903146.56 | G177: kg F-T/day
B178: kg of blended JF delivered to aircraft per kg F-T JF ready for transport | F178: =1/G14 ->  | G178: kg blend/kg F-T
B179: kg of blended JF combusted per kg JF delivered to aircraft | F179: =1/G17 -> 1 | G179: kg blend com/kg blend aircr
B180: MJ LHV of blended JF per kg blended JF combusted | F180: =F21 -> 43.92392716 | G180: MJ LHV blend/kg blend
B181: MJ LHV of blended JF combusted each day | F181: =F177*F178*F179*F180 ->  | G181: MJ LHV/day
A183: Flows for Report
G184: Mass Relative to Functional Unit | H184: Daily Flow
A185: Flow Number | B185: Flow | G185: g/MJ LHV blended JF combusted | H185: tonne/day
A186: 1 | B186: Illinois No. 6 Coal (wet) | G186: =G146 -> 
A187: 1 | B187: Illinois No. 6 Coal (dry)
A188: 2 | B188: Switchgrass (wet)
A189: 2 | B189: Switchgrass (dry)
A190: 3 | B190: Illinois No. 6 Coal (wet) | G190: =G151 ->  | H190: =H151 -> 
A191: 3 | B191: Illinois No. 6 Coal (dry) | G191: =G152 -> 
A192: 4 | B192: Switchgrass (wet)
A193: 4 | B193: Switchgrass (dry)
A194: 5 | B194: F-T Diesel | G194: =G157 -> 
A195: 6 | B195: F-T Naphtha
A196: 7 | B196: Supercritical CO2
A197: 8 | B197: Supercritical CO2 (Seq) | G197: =G161 -> 0 | H197: =H161 -> 
A198: 8 | B198: Supercritical CO2 (EOR) | G198: =G163 ->  | H198: =H163 -> 
A199: 9 | B199: Crude Oil | G199: =G165 ->  | H199: =H165 -> 
A200: 10 | B200: Natural Gas Liquids | G200: =G166 ->  | H200: =H166 -> 
A201: 11 | B201: F-T Jet Fuel | G201: =G156 ->  | H201: =H156 -> 
A202: 12 | B202: F-T Jet Fuel | G202: =G168 ->  | H202: =H168 -> 
A203: 13 | B203: Conv. Jet Fuel | G203: =G169 ->  | H203: =H169 -> 
A204: 14 | B204: Blended Jet Fuel | G204: =G171 ->  | H204: =H171 -> 
A205: 15 | B205: Blended Jet Fuel | G205: =G173 -> 22.8 | H205: =H173 -> 
A207: Scenarios Selected
A208: Scenario Description | E208: Scenario Key | L208: Scenario Selected
A209: Main Scenarios
A210: =Scen.Control!A11 -> Scenario for Operation of CBTL | E210: =Scen.Control!B11 -> 1 = 0% biomass by weight (bio), iron catalyst (Fe) 2 = 16% bio, Fe (baseline scenario) 3 = 31% bio, Fe 4 = 14% bio cobalt catalyst (Co) 5 = 14% bio, Co, maximize F-T jet fuel, minimize diesel | L210: =Scen.Control!G11 -> 1
A211: =Scen.Control!A12 -> Scenario for Managing Super Critical CO2 | E211: =Scen.Control!B12 -> 1 = use super critical CO2 in enhanced oil recovery (EOR) in west Texas 2 = permanently store super critical CO2 in brine aquifer | L211: =Scen.Control!G12 -> 1
A212: Secondary Scenarios
A213: =Scen.Control!A14 -> Scenario for Packaging (Baling) and Covering Harvested Switchgrass (P&C Scenario) | E213: =Scen.Control!B14 -> 1 = rectangular bales covered 2 = round bales covered 3 = round bales uncovered | L213: =Scen.Control!G14 -> 1
A214: =Scen.Control!A15 -> Scenario for Configuration of Jet Fuel Transportation System | E214: =Scen.Control!B15 -> 1 = transport of jet fuel from CBTL to O'Hare airport by pipeline 2 = transport of jet fuel from CBTL to i) OHare airport by pipeline and ii) regional airports by tanker trailer trucks | L214: =Scen.Control!G15 -> 1
A218: zz --- NOT USED: Misc. Material
A219: Calculations for Expanded System Boundary
A220: Conversion of Mass of Crude Oil to Equivalent Mass of Conventional Jet Fuel and Conversion of This Jet Fuel, F-T Jet Fuel and Conventional Jet Fuel Used to Blend with F-T Jet Fuel to Mass per kg F-T Jet Fuel
A221: Crude Oil to Jet Fuel per kg F-T Jet Fuel at CBTL
... 61 more rows

Sheet Summ.GHG
A1: First column and first 30 rows reserved. | BS1: End
A2: Return to Workbook Contents sheet
B3: Overview of Worksheet Presenting Allocated Greenhouse Gas Emissions
B4: Inter-Agency Workgroup for the Coal and Biomass to Liquid (Jet Fuel) Case Study
B6: This worksheet presents the greenhouse gas (GHG) emissions for the entire lifecycle associated with the production and use of F-T jet fuels derived from a coal and biomass to liquids (CBTL) process. The worksheet includes the unallocated GHG emissions for all stages in the lifecycle and the GHG emissions allocated according to energy, volume, mass and displacement for two different system boundaries, the baseline system boundary and an expanded system boundary. In the baseline system boundary, only the emissions for F-T jet fuel (and the conventional jet fuel used to create the blended jet fuel) are carried to its end use. The emissions associated with the other co-products generated in Stage 3 (F-T diesel, F-T naphtha, crude oil from EOR and natural gas liquids from EOR) are not considered beyond Stage 3. In the expanded system boundary, the crude oil produced by EOR in Stage 3 is assumed to be refined into conventional jet fuel and all the GHG emissions for this conventional jet fuel as well as the blended jet fuel up to and including end use are considered. In the expanded system boundary, the emissions associated with the other co-products generated in Stage 3 (F-T diesel, F-T naphtha and natural gas liquids from EOR) are not considered beyond Stage 3.The worksheet also presents the GHG emissions for conventional jet fuel for comparison. The worksheet is organized as one large table with seven parts.
B7: Part A: This part defines the scenarios selected for the GHG emissions presented in this worksheet.
B8: Part B: This part summarizes the unallocated GHG emissions for the blended jet fuel, the allocated GHG emissions for the various allocation methods and two system boundaries discussed above and the allocated GHG emissions for conventional jet fuel from petroleum from the petroleum baseline report. All GHG emissions are CO2e emissions calculated using the IPCC 2007 GWP.
B9: Part C: This part summarizes the unallocated GHG emissions for the blended jet fuel, the allocated GHG emissions for the various allocation methods and two system boundaries discussed above and the allocated GHG emissions for conventional jet fuel from petroleum from the petroleum baseline report. The GHG emissions are CO2e emissions calculated using the IPCC 1996, 2001 and 2007 GWP.
B10: Part D: This part presents the unallocated GHG emissions for the blended jet fuel. The CO2, CH4 and N2O emissions are presented along with the CO2e emissions calculated using the IPCC 1996, 2001 and 2007 GWP.
B11: Part E: This part presents the GHG emissions for the blended jet fuel allocated by energy using the baseline system boundary. The GHG emissions are CO2e emissions calculated using the IPCC 1996, 2001 and 2007 GWP.
B12: Part F: This part presents the GHG emissions for the blended jet fuel allocated by volume using the baseline system boundary. The GHG emissions are CO2e emissions calculated using the IPCC 1996, 2001 and 2007 GWP.
B13: Part G: This part presents the GHG emissions for the blended jet fuel allocated by mass using the baseline system boundary. The GHG emissions are CO2e emissions calculated using the IPCC 1996, 2001 and 2007 GWP.
B14: Part H: This part presents the GHG emissions for the blended jet fuel allocated by displacement using the baseline system boundary. The GHG emissions are CO2e emissions calculated using the IPCC 1996, 2001 and 2007 GWP.
B15: Part I: This part presents the GHG emissions for all jet fuel (blended and conventional from EOR crude oil) allocated by energy using the expanded system boundary. The GHG emissions are CO2e emissions calculated using the IPCC 1996, 2001 and 2007 GWP.
B16: Part J: This part presents the GHG emissions for all jet fuel (blended and conventional from EOR crude oil) allocated by volume using the expanded system boundary. The GHG emissions are CO2e emissions calculated using the IPCC 1996, 2001 and 2007 GWP.
B17: Part K: This part presents the GHG emissions for all jet fuel (blended and conventional from EOR crude oil) allocated by mass using the expanded system boundary. The GHG emissions are CO2e emissions calculated using the IPCC 1996, 2001 and 2007 GWP.
B18: Part L: This part presents the GHG emissions for all jet fuel (blended and conventional from EOR crude oil) allocated by displacement using the expanded system boundary. The GHG emissions are CO2e emissions calculated using the IPCC 1996, 2001 and 2007 GWP.
B19: Part M: This part presents the allocated GHG emissions for conventional jet fuel using petroleum (from the Petroleum Baseline Report). The GHG emissions are CO2e emissions calculated using the IPCC 1996, 2001 and 2007 GWP.
B20: There are additional tables and bar charts graphically illustrating the GHG emissions after Part M.
B22: Calculations for generating combined allocated result | F22: Base SB Ener | G22: Base SB Disp
B23: Uniform random variable | C23: =RAND() -> 0.4321302697 | F23: =E82 ->  | G23: =E100 -> 
B24: Combined allocated GHG emissions | C24: =IF(C23<0.5,F23,G23) ->  | D24: g CO2e/ MJ LHV
B31: Greenhouse Gas Emissions Relative to System Functional Unit
B32: A. Scenarios Defined and Selected
B33: Scenario Description | D33: Scenario Key | O33: Scenario Selected
B34: Main Scenarios
B35: =Scen.Control!A11 -> Scenario for Operation of CBTL | D35: =Scen.Control!B11 -> 1 = 0% biomass by weight (bio), iron catalyst (Fe) 2 = 16% bio, Fe (baseline scenario) 3 = 31% bio, Fe 4 = 14% bio cobalt catalyst (Co) 5 = 14% bio, Co, maximize F-T jet fuel, minimize diesel | O35: =Scen.Control!G11 -> 1
B36: =Scen.Control!A12 -> Scenario for Managing Super Critical CO2 | D36: =Scen.Control!B12 -> 1 = use super critical CO2 in enhanced oil recovery (EOR) in west Texas 2 = permanently store super critical CO2 in brine aquifer | O36: =Scen.Control!G12 -> 1
B37: Secondary Scenarios
B38: =Scen.Control!A14 -> Scenario for Packaging (Baling) and Covering Harvested Switchgrass (P&C Scenario) | D38: =Scen.Control!B14 -> 1 = rectangular bales covered 2 = round bales covered 3 = round bales uncovered | O38: =Scen.Control!G14 -> 1
B39: =Scen.Control!A15 -> Scenario for Configuration of Jet Fuel Transportation System | D39: =Scen.Control!B15 -> 1 = transport of jet fuel from CBTL to O'Hare airport by pipeline 2 = transport of jet fuel from CBTL to i) OHare airport by pipeline and ii) regional airports by tanker trailer trucks | O39: =Scen.Control!G15 -> 1
B41: =$B$31 -> Greenhouse Gas Emissions Relative to System Functional Unit
B42: B. Summary of Emissions of Blended Jet Fuel (Unallocated and Allocated) and Conventional Jet Fuel Using IPCC 2007 GWP
B43: ="Scenarios: CBTL="&$O$35&", CO2="&$O$36&", SG="&$O$38&", JF Tran="&$O$39 -> Scenarios: CBTL=1, CO2=1, SG=1, JF Tran=1
B44: Title | E44: Results for All Stages | P44: Results for All Stages | AE44: Stage 1a: Coal Acquisition | AH44: Stage 2a: Coal Transport to CBTL | AK44: Stage 1b: Switchgrass Acquisition | AN44: Stage 1c: Direct and Indirect Land Use | AQ44: Stage 2b: Switchgrass Transport to CBTL | AT44: Stage 3a: F-T Jet Fuel from CBTL | AW44: Stage 3b/3d: Transport of CO2 to EOR /Seq. | AZ44: Stage 3c: Extraction of Petrol. Prod. Using EOR | BC44: Stage 4a: F-T JF Transp. to Refin. & Blend. | BF44: Stage 4b: Conv. JF Used for Blending | BI44: Stage 4c: Blended JF Transport to Airport | BL44: Stage 5: Blended Jet Fuel Use | BP44: Stage 4: Blended Jet Fuel Transport to Airport
F45: Stgs. 1-4: | G45: Stage 1: | H45: Stage 2: | I45: Stage 3: | J45: Stage 4: | K45: Stage 5: | Q45: Stg. 1a: | R45: Stg. 2a: | S45: Stg. 1b: | T45: Stg. 1c: | U45: Stg. 1c: | V45: Stg. 2b: | W45: Stg. 3a: | X45: Stg. 3b: | Y45: Stg. 3c: | Z45: Stg. 3d: | AA45: Stg. 4: | AD45: Stg. 5:
B46: Stage or Process Evaluation Category | E46: Total | F46: Acq. to JF Trans. | G46: Raw Matl. Acq. | H46: Raw Matl. Trans. | I46: Prod./ CO2 Man. | J46: JF Trans. | K46: JF Use | L46: Operation | M46: Construc-tion | N46: Direct Land Use | O46: Indirect Land Use | P46: Total | Q46: Coal Acq. | R46: Coal Trans. | S46: Biom. Acq. | T46: Dir. Land U | U46: Indir. Land U | V46: Biom. Trans. | W46: CBTL | X46: CO2 to EOR | Y46: EOR | Z46: CO2 Seq. | AA46: F-T JF Trans. | AB46: Conv. JF | AC46: Bl JF Trans. | AD46: JF Use | AE46: Total | AF46: Opera-tion | AG46: Construc-tion | AH46: Total | AI46: Opera-tion | AJ46: Construc-tion | AK46: Total | AL46: Opera-tion | AM46: Construc-tion | AN46: Total | AO46: Opera-tion | AP46: Construc-tion | AQ46: Total | AR46: Opera-tion | AS46: Construc-tion | AT46: Total | AU46: Opera-tion | AV46: Construc-tion | AW46: Total | AX46: Opera-tion | AY46: Construc-tion | AZ46: Total | BA46: Opera-tion | BB46: Construc-tion | BC46: Total | BD46: Opera-tion | BE46: Construc-tion | BF46: Total | BG46: Opera-tion | BH46: Construc-tion | BI46: Total | BJ46: Opera-tion | BK46: Construc-tion | BL46: Total | BM46: Opera-tion | BN46: Construc-tion | BP46: Total | BQ46: Opera-tion | BR46: Construc-tion
B48: Total CO2e for Conventional Jet Fuel (Petroleum Baseline) | C48: CO2e2007 | D48: g CO2e/MJ LHV | E48: =E288 -> 87.446 | F48: =F288 -> 14.346 | G48: 6.4 | H48: 1.28 | I48: 5.72 | J48: 0.946 | K48: 73.1 | L48: 0 | M48: 0 | N48: 0 | O48: 0 | P48: 87.446 | Q48: 6.4 | R48: 1.28 | S48: 0 | T48: 0 | U48: 0 | V48: 0 | W48: 5.72 | X48: 0 | Y48: 0 | Z48: 0 | AA48: 0 | AB48: 0.946 | AC48: 0 | AD48: 73.1
B49: Total Unallocated CO2e Emissions | C49: CO2e2007 | D49: g CO2e/MJ LHV | E49: =E184 ->  | F49: =F184 ->  | K49: 71.43100745 | Z49: 0 | AD49: 71.43100745 | AE49: =AE184 ->  | BH49: 0 | BL49: 71.43100745 | BM49: 71.43100745 | BN49: 0 | BP49: =BP184 -> 
B50: Total CO2e for Baseline Sys. Bound. Alloc. by Energy | C50: CO2e2007 | D50: g CO2e/MJ LHV | E50: =E206 ->  | F50: =F206 ->  | K50: 71.43100745 | Z50: 0 | AD50: 71.43100745 | AE50: =AE206 ->  | BH50: 0 | BL50: 71.43100745 | BM50: 71.43100745 | BN50: 0 | BP50: =BP206 -> 
B51: Total CO2e for Baseline Sys. Bound. Alloc. by Disp. | C51: CO2e2007 | D51: g CO2e/MJ LHV | E51: =E278 ->  | F51: =F278 ->  | K51: 71.43100745 | Z51: 0 | AD51: 71.43100745 | AE51: =AE278 ->  | BH51: 0 | BL51: 71.43100745 | BM51: 71.43100745 | BN51: 0 | BP51: =BP278 -> 
B53: Total Unallocated CO2e Emissions | C53: CO2e2007 | D53: g CO2e/MJ LHV | E53: =E184 ->  | F53: =F184 ->  | K53: 71.43100745 | Z53: 0 | AD53: 71.43100745 | BH53: 0 | BL53: 71.43100745 | BM53: 71.43100745 | BN53: 0 | BP53: =BP184 -> 
B54: Total CO2e for Baseline Sys. Bound. Alloc. by Energy | C54: CO2e2007 | D54: g CO2e/MJ LHV | E54: =E206 ->  | F54: =F206 ->  | K54: 71.43100745 | Z54: 0 | AD54: 71.43100745 | BH54: 0 | BL54: 71.43100745 | BM54: 71.43100745 | BN54: 0 | BP54: =BP206 -> 
B55: Total CO2e for Baseline Sys. Bound. Alloc. by Volume | C55: CO2e2007 | D55: g CO2e/MJ LHV | E55: =E228 ->  | F55: =F228 ->  | K55: 71.43100745 | Z55: 0 | AD55: 71.43100745 | BH55: 0 | BL55: 71.43100745 | BM55: 71.43100745 | BN55: 0 | BP55: =BP228 -> 
B56: Total CO2e for Baseline Sys. Bound. Alloc. by Mass | C56: CO2e2007 | D56: g CO2e/MJ LHV | E56: =E250 ->  | F56: =F250 ->  | K56: 71.43100745 | Z56: 0 | AD56: 71.43100745 | BH56: 0 | BL56: 71.43100745 | BM56: 71.43100745 | BN56: 0 | BP56: =BP250 -> 
B57: Total CO2e for Baseline Sys. Bound. Alloc. by Disp. | C57: CO2e2007 | D57: g CO2e/MJ LHV | E57: =E278 ->  | F57: =F278 ->  | K57: 71.43100745 | Z57: 0 | AD57: 71.43100745 | BH57: 0 | BL57: 71.43100745 | BM57: 71.43100745 | BN57: 0 | BP57: =BP278 -> 
B58: Total CO2e for Conventional Jet Fuel (Petroleum Baseline) | C58: CO2e2007 | D58: g CO2e/MJ LHV | E58: =E288 -> 87.446 | F58: 14.346 | G58: 6.4 | H58: 1.28 | I58: 5.72 | J58: 0.946 | K58: 73.1 | L58: 0 | M58: 0 | N58: 0 | O58: 0 | P58: 87.446 | Q58: 6.4 | R58: 1.28 | S58: 0 | T58: 0 | U58: 0 | V58: 0 | W58: 5.72 | X58: 0 | Y58: 0 | Z58: 0 | AA58: 0 | AB58: 0.946 | AC58: 0 | AD58: 73.1
B60: Total CO2e for Mod. Baseln. Sys. Bound. Alloc. by Energy | C60: CO2e2007 | D60: g CO2e/MJ LHV | E60: =E319 ->  | F60: =F319 ->  | K60: 71.43100745 | Y60: 0 | Z60: 0 | AD60: 71.43100745 | AZ60: 0 | BA60: 0 | BB60: 0 | BH60: 0 | BL60: 71.43100745 | BM60: 71.43100745 | BN60: 0 | BP60: =BP319 -> 
B61: Total CO2e for Mod. Baseln. Sys. Bound. Alloc. by Volume | C61: CO2e2007 | D61: g CO2e/MJ LHV | E61: =E350 ->  | F61: =F350 ->  | K61: 71.43100745 | Y61: 0 | Z61: 0 | AD61: 71.43100745 | AZ61: 0 | BA61: 0 | BB61: 0 | BH61: 0 | BL61: 71.43100745 | BM61: 71.43100745 | BN61: 0 | BP61: =BP350 -> 
B62: Total CO2e for Mod. Baseln. Sys. Bound. Alloc. by Mass | C62: CO2e2007 | D62: g CO2e/MJ LHV | E62: =E381 ->  | F62: =F381 ->  | K62: 71.43100745 | Y62: 0 | Z62: 0 | AD62: 71.43100745 | AZ62: 0 | BA62: 0 | BB62: 0 | BH62: 0 | BL62: 71.43100745 | BM62: 71.43100745 | BN62: 0 | BP62: =BP381 -> 
B63: Total CO2e for Mod. Baseln. Sys. Bound. Alloc. by Disp. | C63: CO2e2007 | D63: g CO2e/MJ LHV | E63: =E412 ->  | F63: =F412 ->  | K63: 71.43100745 | Y63: 0 | Z63: 0 | AD63: 71.43100745 | AZ63: 0 | BA63: 0 | BB63: 0 | BH63: 0 | BL63: 71.43100745 | BM63: 71.43100745 | BN63: 0 | BP63: =BP412 -> 
B65: =$B$31 -> Greenhouse Gas Emissions Relative to System Functional Unit
B66: C. Summary of Emissions of Blended Jet Fuel (Unallocated and Allocated) and Conventional Jet Fuel Using IPCC 1996, 2001 and 2007 GWP
B67: ="Scenarios: CBTL="&$O$35&", CO2="&$O$36&", SG="&$O$38&", JF Tran="&$O$39 -> Scenarios: CBTL=1, CO2=1, SG=1, JF Tran=1
B68: Title | E68: Results for All Stages | P68: Results for All Stages | AE68: Stage 1a: Coal Acquisition | AH68: Stage 2a: Coal Transport to CBTL | AK68: Stage 1b: Switchgrass Acquisition | AN68: Stage 1c: Direct and Indirect Land Use | AQ68: Stage 2b: Switchgrass Transport to CBTL | AT68: Stage 3a: F-T Jet Fuel from CBTL | AW68: Stage 3b/3d: Transport of CO2 to EOR /Seq. | AZ68: Stage 3c: Extraction of Petrol. Prod. Using EOR | BC68: Stage 4a: F-T JF Transp. to Refin. & Blend. | BF68: Stage 4b: Conv. JF Used for Blending | BI68: Stage 4c: Blended JF Transport to Airport | BL68: Stage 5: Blended Jet Fuel Use | BP68: Stage 4: Blended Jet Fuel Transport to Airport
F69: Stgs. 1-4: | G69: Stage 1: | H69: Stage 2: | I69: Stage 3: | J69: Stage 4: | K69: Stage 5: | Q69: Stg. 1a: | R69: Stg. 2a: | S69: Stg. 1b: | T69: Stg. 1c: | U69: Stg. 1c: | V69: Stg. 2b: | W69: Stg. 3a: | X69: Stg. 3b: | Y69: Stg. 3c: | Z69: Stg. 3d: | AA69: Stg. 4: | AD69: Stg. 5:
B70: Stage or Process Evaluation Category | E70: Total | F70: Acq. to JF Trans. | G70: Raw Matl. Acq. | H70: Raw Matl. Trans. | I70: Prod./ CO2 Man. | J70: JF Trans. | K70: JF Use | L70: Operation | M70: Construc-tion | N70: Direct Land Use | O70: Indirect Land Use | P70: Total | Q70: Coal Acq. | R70: Coal Trans. | S70: Biom. Acq. | T70: Dir. Land U | U70: Indir. Land U | V70: Biom. Trans. | W70: CBTL | X70: CO2 to EOR | Y70: EOR | Z70: CO2 Seq. | AA70: F-T JF Trans. | AB70: Conv. JF | AC70: Bl JF Trans. | AD70: JF Use | AE70: Total | AF70: Opera-tion | AG70: Construc-tion | AH70: Total | AI70: Opera-tion | AJ70: Construc-tion | AK70: Total | AL70: Opera-tion | AM70: Construc-tion | AN70: Total | AO70: Opera-tion | AP70: Construc-tion | AQ70: Total | AR70: Opera-tion | AS70: Construc-tion | AT70: Total | AU70: Opera-tion | AV70: Construc-tion | AW70: Total | AX70: Opera-tion | AY70: Construc-tion | AZ70: Total | BA70: Opera-tion | BB70: Construc-tion | BC70: Total | BD70: Opera-tion | BE70: Construc-tion | BF70: Total | BG70: Opera-tion | BH70: Construc-tion | BI70: Total | BJ70: Opera-tion | BK70: Construc-tion | BL70: Total | BM70: Opera-tion | BN70: Construc-tion | BP70: Total | BQ70: Opera-tion | BR70: Construc-tion
B72: Unallocated Emissions of Blended Jet Fuel
B74: CO2e Emiss. IPCC 1996 GWP | C74: CO2e1996 | D74: g CO2e/MJ LHV | E74: =E166 ->  | F74: =F166 ->  | K74: 71.43100745 | Z74: 0 | AD74: 71.43100745 | BH74: 0 | BL74: 71.43100745 | BM74: 71.43100745 | BN74: 0 | BP74: =BP166 -> 
B75: CO2e Emiss. IPCC 2001 GWP | C75: CO2e2001 | D75: g CO2e/MJ LHV | E75: =E175 ->  | F75: =F175 ->  | K75: 71.43100745 | Z75: 0 | AD75: 71.43100745 | BH75: 0 | BL75: 71.43100745 | BM75: 71.43100745 | BN75: 0 | BP75: =BP175 -> 
B76: CO2e Emiss. IPCC 2007 GWP | C76: CO2e2007 | D76: g CO2e/MJ LHV | E76: =E184 ->  | F76: =F184 ->  | K76: 71.43100745 | Z76: 0 | AD76: 71.43100745 | BH76: 0 | BL76: 71.43100745 | BM76: 71.43100745 | BN76: 0 | BP76: =BP184 -> 
B78: Baseline System Boundary: Energy Allocation
B80: CO2e Emiss. IPCC 1996 GWP | C80: CO2e1996 | D80: g CO2e/MJ LHV | E80: =E196 ->  | F80: =F196 ->  | K80: 71.43100745 | Z80: 0 | AD80: 71.43100745 | BH80: 0 | BL80: 71.43100745 | BM80: 71.43100745 | BN80: 0 | BP80: =BP196 -> 
B81: CO2e Emiss. IPCC 2001 GWP | C81: CO2e2001 | D81: g CO2e/MJ LHV | E81: =E201 ->  | F81: =F201 ->  | K81: 71.43100745 | Z81: 0 | AD81: 71.43100745 | BH81: 0 | BL81: 71.43100745 | BM81: 71.43100745 | BN81: 0 | BP81: =BP201 -> 
B82: CO2e Emiss. IPCC 2007 GWP | C82: CO2e2007 | D82: g CO2e/MJ LHV | E82: =E206 ->  | F82: =F206 ->  | K82: 71.43100745 | Z82: 0 | AD82: 71.43100745 | BH82: 0 | BL82: 71.43100745 | BM82: 71.43100745 | BN82: 0 | BP82: =BP206 -> 
B84: Baseline System Boundary: Volume Allocation
B86: CO2e Emiss. IPCC 1996 GWP | C86: CO2e1996 | D86: g CO2e/MJ LHV | E86: =E218 ->  | F86: =F218 ->  | K86: 71.43100745 | Z86: 0 | AD86: 71.43100745 | BH86: 0 | BL86: 71.43100745 | BM86: 71.43100745 | BN86: 0 | BP86: =BP218 -> 
B87: CO2e Emiss. IPCC 2001 GWP | C87: CO2e2001 | D87: g CO2e/MJ LHV | E87: =E223 ->  | F87: =F223 ->  | K87: 71.43100745 | Z87: 0 | AD87: 71.43100745 | BH87: 0 | BL87: 71.43100745 | BM87: 71.43100745 | BN87: 0 | BP87: =BP223 -> 
B88: CO2e Emiss. IPCC 2007 GWP | C88: CO2e2007 | D88: g CO2e/MJ LHV | E88: =E228 ->  | F88: =F228 ->  | K88: 71.43100745 | Z88: 0 | AD88: 71.43100745 | BH88: 0 | BL88: 71.43100745 | BM88: 71.43100745 | BN88: 0 | BP88: =BP228 -> 
B90: Baseline System Boundary: Mass Allocation
B92: CO2e Emiss. IPCC 1996 GWP | C92: CO2e1996 | D92: g CO2e/MJ LHV | E92: =E240 ->  | F92: =F240 ->  | K92: 71.43100745 | Z92: 0 | AD92: 71.43100745 | BH92: 0 | BL92: 71.43100745 | BM92: 71.43100745 | BN92: 0 | BP92: =BP240 -> 
B93: CO2e Emiss. IPCC 2001 GWP | C93: CO2e2001 | D93: g CO2e/MJ LHV | E93: =E245 ->  | F93: =F245 ->  | K93: 71.43100745 | Z93: 0 | AD93: 71.43100745 | BH93: 0 | BL93: 71.43100745 | BM93: 71.43100745 | BN93: 0 | BP93: =BP245 -> 
B94: CO2e Emiss. IPCC 2007 GWP | C94: CO2e2007 | D94: g CO2e/MJ LHV | E94: =E250 ->  | F94: =F250 ->  | K94: 71.43100745 | Z94: 0 | AD94: 71.43100745 | BH94: 0 | BL94: 71.43100745 | BM94: 71.43100745 | BN94: 0 | BP94: =BP250 -> 
B96: Baseline System Boundary: Displmt. Alloc.
B98: CO2e Emiss. IPCC 1996 GWP | C98: CO2e1996 | D98: g CO2e/MJ LHV | E98: =E264 ->  | F98: =F264 ->  | K98: 71.43100745 | Z98: 0 | AD98: 71.43100745 | BH98: 0 | BL98: 71.43100745 | BM98: 71.43100745 | BN98: 0 | BP98: =BP264 -> 
B99: CO2e Emiss. IPCC 2001 GWP | C99: CO2e2001 | D99: g CO2e/MJ LHV | E99: =E271 ->  | F99: =F271 ->  | K99: 71.43100745 | Z99: 0 | AD99: 71.43100745 | BH99: 0 | BL99: 71.43100745 | BM99: 71.43100745 | BN99: 0 | BP99: =BP271 -> 
B100: CO2e Emiss. IPCC 2007 GWP | C100: CO2e2007 | D100: g CO2e/MJ LHV | E100: =E278 ->  | F100: =F278 ->  | K100: 71.43100745 | Z100: 0 | AD100: 71.43100745 | BH100: 0 | BL100: 71.43100745 | BM100: 71.43100745 | BN100: 0 | BP100: =BP278 -> 
B102: Conventional Jet Fuel, Petrol. Baseline Rept.
B104: CO2e Emiss. IPCC 1996 GWP | C104: CO2e1996 | D104: g CO2e/MJ LHV | E104: =E286 -> 87.084 | F104: 13.984 | G104: 6.07 | H104: 1.27 | I104: 5.7 | J104: 0.944 | K104: 73.1 | P104: =P286 -> 87.084 | Q104: 6.07 | R104: 1.27 | W104: =W286 -> 5.7 | AC104: =AB286 -> 0.944 | AD104: =AD286 -> 73.1
B105: CO2e Emiss. IPCC 2001 GWP | C105: CO2e2001 | D105: g CO2e/MJ LHV | E105: 87.264 | F105: 14.164 | G105: 6.24 | H105: 1.27 | I105: 5.71 | J105: 0.944 | K105: 73.1 | P105: 87.264 | Q105: 6.24 | R105: 1.27 | W105: =W287 -> 5.71 | AC105: =AB287 -> 0.944 | AD105: =AD287 -> 73.1
B106: CO2e Emiss. IPCC 2007 GWP | C106: CO2e2007 | D106: g CO2e/MJ LHV | E106: 87.446 | F106: 14.346 | G106: 6.4 | H106: 1.28 | I106: 5.72 | J106: 0.946 | K106: 73.1 | P106: 87.446 | Q106: 6.4 | R106: 1.28 | W106: =W288 -> 5.72 | AC106: =AB288 -> 0.946 | AD106: =AD288 -> 73.1
B108: =$B$31 -> Greenhouse Gas Emissions Relative to System Functional Unit
B109: C. Summary of Emissions of Blended Jet Fuel (Unallocated and Allocated) and Conventional Jet Fuel Using IPCC 1996, 2001 and 2007 GWP (Cont'd)
B110: ="Scenarios: CBTL="&$O$35&", CO2="&$O$36&", SG="&$O$38&", JF Tran="&$O$39 -> Scenarios: CBTL=1, CO2=1, SG=1, JF Tran=1
B111: Title | E111: Results for All Stages | P111: Results for All Stages | AE111: Stage 1a: Coal Acquisition | AH111: Stage 2a: Coal Transport to CBTL | AK111: Stage 1b: Switchgrass Acquisition | AN111: Stage 1c: Direct and Indirect Land Use | AQ111: Stage 2b: Switchgrass Transport to CBTL | AT111: Stage 3a: F-T Jet Fuel from CBTL | AW111: Stage 3b/3d: Transport of CO2 to EOR /Seq. | AZ111: Stage 3c: Extraction of Petrol. Prod. Using EOR | BC111: Stage 4a: F-T JF Transp. to Refin. & Blend. | BF111: Stage 4b: Conv. JF Used for Blending | BI111: Stage 4c: Blended JF Transport to Airport | BL111: Stage 5: Blended Jet Fuel Use | BP111: Stage 4: Blended Jet Fuel Transport to Airport
F112: Stgs. 1-4: | G112: Stage 1: | H112: Stage 2: | I112: Stage 3: | J112: Stage 4: | K112: Stage 5: | Q112: Stg. 1a: | R112: Stg. 2a: | S112: Stg. 1b: | T112: Stg. 1c: | U112: Stg. 1c: | V112: Stg. 2b: | W112: Stg. 3a: | X112: Stg. 3b: | Y112: Stg. 3c: | Z112: Stg. 3d: | AA112: Stg. 4: | AD112: Stg. 5:
B113: Stage or Process Evaluation Category | E113: Total | F113: Acq. to JF Trans. | G113: Raw Matl. Acq. | H113: Raw Matl. Trans. | I113: Prod./ CO2 Man. | J113: JF Trans. | K113: JF Use | L113: Operation | M113: Construc-tion | N113: Direct Land Use | O113: Indirect Land Use | P113: Total | Q113: Coal Acq. | R113: Coal Trans. | S113: Biom. Acq. | T113: Dir. Land U | U113: Indir. Land U | V113: Biom. Trans. | W113: CBTL | X113: CO2 to EOR | Y113: EOR | Z113: CO2 Seq. | AA113: F-T JF Trans. | AB113: Conv. JF | AC113: Bl JF Trans. | AD113: JF Use | AE113: Total | AF113: Opera-tion | AG113: Construc-tion | AH113: Total | AI113: Opera-tion | AJ113: Construc-tion | AK113: Total | AL113: Opera-tion | AM113: Construc-tion | AN113: Total | AO113: Opera-tion | AP113: Construc-tion | AQ113: Total | AR113: Opera-tion | AS113: Construc-tion | AT113: Total | AU113: Opera-tion | AV113: Construc-tion | AW113: Total | AX113: Opera-tion | AY113: Construc-tion | AZ113: Total | BA113: Opera-tion | BB113: Construc-tion | BC113: Total | BD113: Opera-tion | BE113: Construc-tion | BF113: Total | BG113: Opera-tion | BH113: Construc-tion | BI113: Total | BJ113: Opera-tion | BK113: Construc-tion | BL113: Total | BM113: Opera-tion | BN113: Construc-tion | BP113: Total | BQ113: Opera-tion | BR113: Construc-tion
B115: Mod. Baseline System Boundary: Energy Alloc.
B117: CO2e Emiss. IPCC 1996 GWP | C117: CO2e1996 | D117: g CO2e/MJ LHV | E117: =E303 ->  | F117: =F303 ->  | K117: 71.43100745 | Y117: 0 | Z117: 0 | AD117: 71.43100745 | AZ117: 0 | BA117: 0 | BB117: 0 | BH117: 0 | BL117: 71.43100745 | BM117: 71.43100745 | BN117: 0 | BP117: =BP303 -> 0 | BQ117: 0 | BR117: 0
B118: CO2e Emiss. IPCC 2001 GWP | C118: CO2e2001 | D118: g CO2e/MJ LHV | E118: =E311 ->  | F118: =F311 ->  | K118: 71.43100745 | Y118: 0 | Z118: 0 | AD118: 71.43100745 | AZ118: 0 | BA118: 0 | BB118: 0 | BH118: 0 | BL118: 71.43100745 | BM118: 71.43100745 | BN118: 0 | BP118: =BP311 -> 
B119: CO2e Emiss. IPCC 2007 GWP | C119: CO2e2007 | D119: g CO2e/MJ LHV | E119: =E319 ->  | F119: =F319 ->  | K119: 71.43100745 | Y119: 0 | Z119: 0 | AD119: 71.43100745 | AZ119: 0 | BA119: 0 | BB119: 0 | BH119: 0 | BL119: 71.43100745 | BM119: 71.43100745 | BN119: 0 | BP119: =BP319 -> 
B121: Mod. Baseline System Boundary: Volume Alloc.
B123: CO2e Emiss. IPCC 1996 GWP | C123: CO2e1996 | D123: g CO2e/MJ LHV | E123: =E334 ->  | F123: =F334 ->  | K123: 71.43100745 | Y123: 0 | Z123: 0 | AD123: 71.43100745 | AZ123: 0 | BA123: 0 | BB123: 0 | BH123: 0 | BL123: 71.43100745 | BM123: 71.43100745 | BN123: 0 | BP123: =BP334 -> 
B124: CO2e Emiss. IPCC 2001 GWP | C124: CO2e2001 | D124: g CO2e/MJ LHV | E124: =E342 ->  | F124: =F342 ->  | K124: 71.43100745 | Y124: 0 | Z124: 0 | AD124: 71.43100745 | AZ124: 0 | BA124: 0 | BB124: 0 | BH124: 0 | BL124: 71.43100745 | BM124: 71.43100745 | BN124: 0 | BP124: =BP342 -> 
B125: CO2e Emiss. IPCC 2007 GWP | C125: CO2e2007 | D125: g CO2e/MJ LHV | E125: =E350 ->  | F125: =F350 ->  | K125: 71.43100745 | Y125: 0 | Z125: 0 | AD125: 71.43100745 | AZ125: 0 | BA125: 0 | BB125: 0 | BH125: 0 | BL125: 71.43100745 | BM125: 71.43100745 | BN125: 0 | BP125: =BP350 -> 
B127: Mod. Baseline System Boundary: Mass Alloc.
B129: CO2e Emiss. IPCC 1996 GWP | C129: CO2e1996 | D129: g CO2e/MJ LHV | E129: =E365 ->  | F129: =F365 ->  | K129: 71.43100745 | Y129: 0 | Z129: 0 | AD129: 71.43100745 | AZ129: 0 | BA129: 0 | BB129: 0 | BH129: 0 | BL129: 71.43100745 | BM129: 71.43100745 | BN129: 0 | BP129: =BP365 -> 
B130: CO2e Emiss. IPCC 2001 GWP | C130: CO2e2001 | D130: g CO2e/MJ LHV | E130: =E373 ->  | F130: =F373 ->  | K130: 71.43100745 | Y130: 0 | Z130: 0 | AD130: 71.43100745 | AZ130: 0 | BA130: 0 | BB130: 0 | BH130: 0 | BL130: 71.43100745 | BM130: 71.43100745 | BN130: 0 | BP130: =BP373 -> 
B131: CO2e Emiss. IPCC 2007 GWP | C131: CO2e2007 | D131: g CO2e/MJ LHV | E131: =E381 ->  | F131: =F381 ->  | K131: 71.43100745 | Y131: 0 | Z131: 0 | AD131: 71.43100745 | AZ131: 0 | BA131: 0 | BB131: 0 | BH131: 0 | BL131: 71.43100745 | BM131: 71.43100745 | BN131: 0 | BP131: =BP381 -> 
B133: Mod. Baseline System Boundary: Displmt. Alloc.
B135: CO2e Emiss. IPCC 1996 GWP | C135: CO2e1996 | D135: g CO2e/MJ LHV | E135: =E396 ->  | F135: =F396 ->  | K135: 71.43100745 | Y135: 0 | Z135: 0 | AD135: 71.43100745 | AZ135: 0 | BA135: 0 | BB135: 0 | BH135: 0 | BL135: 71.43100745 | BM135: 71.43100745 | BN135: 0 | BP135: =BP396 -> 
B136: CO2e Emiss. IPCC 2001 GWP | C136: CO2e2001 | D136: g CO2e/MJ LHV | E136: =E404 ->  | F136: =F404 ->  | K136: 71.43100745 | Y136: 0 | Z136: 0 | AD136: 71.43100745 | AZ136: 0 | BA136: 0 | BB136: 0 | BH136: 0 | BL136: 71.43100745 | BM136: 71.43100745 | BN136: 0 | BP136: =BP404 -> 
B137: CO2e Emiss. IPCC 2007 GWP | C137: CO2e2007 | D137: g CO2e/MJ LHV | E137: =E412 ->  | F137: =F412 ->  | K137: 71.43100745 | Y137: 0 | Z137: 0 | AD137: 71.43100745 | AZ137: 0 | BA137: 0 | BB137: 0 | BH137: 0 | BL137: 71.43100745 | BM137: 71.43100745 | BN137: 0 | BP137: =BP412 -> 
B139: Greenhouse Gas Emissions Relative to System Functional Unit
B140: D. Blended Jet Fuel: No Allocation
B141: ="Scenarios: CBTL="&$O$35&", CO2="&$O$36&", SG="&$O$38&", JF Tran="&$O$39 -> Scenarios: CBTL=1, CO2=1, SG=1, JF Tran=1
B142: Title | E142: Results for All Stages | P142: Results for All Stages | AE142: Stage 1a: Coal Acquisition | AH142: Stage 2a: Coal Transport to CBTL | AK142: Stage 1b: Switchgrass Acquisition | AN142: Stage 1c: Direct and Indirect Land Use | AQ142: Stage 2b: Switchgrass Transport to CBTL | AT142: Stage 3a: F-T Jet Fuel from CBTL | AW142: Stage 3b/3d: Transport of CO2 to EOR /Seq. | AZ142: Stage 3c: Extraction of Petrol. Prod. Using EOR | BC142: Stage 4a: F-T JF Transp. to Refin. & Blend. | BF142: Stage 4b: Conv. JF Used for Blending | BI142: Stage 4c: Blended JF Transport to Airport | BL142: Stage 5: Blended Jet Fuel Use | BP142: Stage 4: Blended Jet Fuel Transport to Airport
F143: Stgs. 1-4: | G143: Stage 1: | H143: Stage 2: | I143: Stage 3: | J143: Stage 4: | K143: Stage 5: | Q143: Stg. 1a: | R143: Stg. 2a: | S143: Stg. 1b: | T143: Stg. 1c: | U143: Stg. 1c: | V143: Stg. 2b: | W143: Stg. 3a: | X143: Stg. 3b: | Y143: Stg. 3c: | Z143: Stg. 3d: | AA143: Stg. 4: | AD143: Stg. 5:
B144: Stage or Process Evaluation Category | E144: Total | F144: Acq. to JF Trans. | G144: Raw Matl. Acq. | H144: Raw Matl. Trans. | I144: Prod./ CO2 Man. | J144: JF Trans. | K144: JF Use | L144: Operation | M144: Construc-tion | N144: Direct Land Use | O144: Indirect Land Use | P144: Total | Q144: Coal Acq. | R144: Coal Trans. | S144: Biom. Acq. | T144: Dir. Land U | U144: Indir. Land U | V144: Biom. Trans. | W144: CBTL | X144: CO2 to EOR | Y144: EOR | Z144: CO2 Seq. | AA144: F-T JF Trans. | AB144: Conv. JF | AC144: Bl JF Trans. | AD144: JF Use | AE144: Total | AF144: Opera-tion | AG144: Constr-uction | AH144: Total | AI144: Opera-tion | AJ144: Constr-uction | AK144: Total | AL144: Opera-tion | AM144: Constr-uction | AN144: Total | AO144: Dir. Land U | AP144: Ind. Land U | AQ144: Total | AR144: Opera-tion | AS144: Constr-uction | AT144: Total | AU144: Opera-tion | AV144: Constr-uction | AW144: Total | AX144: Opera-tion | AY144: Constr-uction | AZ144: Total | BA144: Opera-tion | BB144: Constr-uction | BC144: Total | BD144: Opera-tion | BE144: Constr-uction | BF144: Total | BG144: Opera-tion | BH144: Constr-uction | BI144: Total | BJ144: Opera-tion | BK144: Constr-uction | BL144: Total | BM144: Opera-tion | BN144: Constr-uction | BP144: Total | BQ144: Opera-tion | BR144: Constr-uction
B146: Summary of Emissions
B148: Non-Biogenic Carb. Diox. | C148: CO2N | D148: g/MJ LHV | E148: =SUM(L148:O148) ->  | F148: =SUM(G148:J148) ->  | G148: =SUM(Q148,S148:U148) ->  | H148: =SUM(R148,V148) ->  | I148: =SUM(W148:Z148) ->  | J148: =SUM(AA148:AC148) ->  | K148: =AD148 -> 71.43100745 | L148: =AF148+AI148+AL148+AR148+AU148+AX148+BA148+BD148+BG148+BJ148+BM148 ->  | M148: =AG148+AJ148+AM148+AS148+AV148+AY148+BB148+BE148+BH148+BK148+BN148 ->  | N148: =AO148 -> 0 | O148: =AP148 -> 0 | P148: =SUM(Q148:AD148) ->  | Q148: =AE148 ->  | R148: =AH148 ->  | S148: =AK148 ->  | T148: =AO148 -> 0 | U148: =AP148 -> 0 | V148: =AQ148 ->  | W148: =AT148 ->  | X148: =IF($O$36=1,AW148,0) ->  | Y148: =AZ148 ->  | Z148: =IF($O$36=1,0,AW148) -> 0 | AA148: =BC148 ->  | AB148: =BF148 ->  | AC148: =BI148 ->  | AD148: =BL148 -> 71.43100745 | AE148: =IF(Summ.1!J405="","",IF(Summ.1!J405=0,0,Summ.1!J405*1000)) ->  | AF148: =IF(Summ.1!K405="","",IF(Summ.1!K405=0,0,Summ.1!K405*1000)) ->  | AG148: =IF(Summ.1!L405="","",IF(Summ.1!L405=0,0,Summ.1!L405*1000)) ->  | AH148: =IF(Summ.1!M405="","",IF(Summ.1!M405=0,0,Summ.1!M405*1000)) ->  | AI148: =IF(Summ.1!N405="","",IF(Summ.1!N405=0,0,Summ.1!N405*1000)) ->  | AJ148: =IF(Summ.1!O405="","",IF(Summ.1!O405=0,0,Summ.1!O405*1000)) ->  | AK148: =IF(Summ.1!P405="","",IF(Summ.1!P405=0,0,Summ.1!P405*1000)) ->  | AL148: =IF(Summ.1!Q405="","",IF(Summ.1!Q405=0,0,Summ.1!Q405*1000)) ->  | AM148: =IF(Summ.1!R405="","",IF(Summ.1!R405=0,0,Summ.1!R405*1000)) ->  | AN148: =IF(Summ.1!S405="","",IF(Summ.1!S405=0,0,Summ.1!S405*1000)) -> 0 | AO148: =IF(Summ.1!T405="",0,IF(Summ.1!T405=0,0,Summ.1!T405*1000)) -> 0 | AP148: =IF(Summ.1!U405="",0,IF(Summ.1!U405=0,0,Summ.1!U405*1000)) -> 0 | AQ148: =IF(Summ.1!V405="","",IF(Summ.1!V405=0,0,Summ.1!V405*1000)) ->  | AR148: =IF(Summ.1!W405="","",IF(Summ.1!W405=0,0,Summ.1!W405*1000)) ->  | AS148: =IF(Summ.1!X405="","",IF(Summ.1!X405=0,0,Summ.1!X405*1000)) ->  | AT148: =IF(Summ.1!Y405="","",IF(Summ.1!Y405=0,0,Summ.1!Y405*1000)) ->  | AU148: =IF(Summ.1!Z405="","",IF(Summ.1!Z405=0,0,Summ.1!Z405*1000)) ->  | AV148: =IF(Summ.1!AA405="","",IF(Summ.1!AA405=0,0,Summ.1!AA405*1000)) ->  | AW148: =IF(Summ.1!AB405="","",IF(Summ.1!AB405=0,0,Summ.1!AB405*1000)) ->  | AX148: =IF(Summ.1!AC405="","",IF(Summ.1!AC405=0,0,Summ.1!AC405*1000)) ->  | AY148: =IF(Summ.1!AD405="","",IF(Summ.1!AD405=0,0,Summ.1!AD405*1000)) ->  | AZ148: =IF(Summ.1!AE405="","",IF(Summ.1!AE405=0,0,Summ.1!AE405*1000)) ->  | BA148: =IF(Summ.1!AF405="","",IF(Summ.1!AF405=0,0,Summ.1!AF405*1000)) ->  | BB148: =IF(Summ.1!AG405="","",IF(Summ.1!AG405=0,0,Summ.1!AG405*1000)) ->  | BC148: =IF(Summ.1!AH405="","",IF(Summ.1!AH405=0,0,Summ.1!AH405*1000)) ->  | BD148: =IF(Summ.1!AI405="","",IF(Summ.1!AI405=0,0,Summ.1!AI405*1000)) ->  | BE148: =IF(Summ.1!AJ405="","",IF(Summ.1!AJ405=0,0,Summ.1!AJ405*1000)) ->  | BF148: =IF(Summ.1!AK405="","",IF(Summ.1!AK405=0,0,Summ.1!AK405*1000)) ->  | BG148: =IF(Summ.1!AL405="","",IF(Summ.1!AL405=0,0,Summ.1!AL405*1000)) ->  | BH148: =IF(Summ.1!AM405="","",IF(Summ.1!AM405=0,0,Summ.1!AM405*1000)) -> 0 | BI148: =IF(Summ.1!AN405="","",IF(Summ.1!AN405=0,0,Summ.1!AN405*1000)) ->  | BJ148: =IF(Summ.1!AO405="","",IF(Summ.1!AO405=0,0,Summ.1!AO405*1000)) ->  | BK148: =IF(Summ.1!AP405="","",IF(Summ.1!AP405=0,0,Summ.1!AP405*1000)) ->  | BL148: =IF(Summ.1!AQ405="","",IF(Summ.1!AQ405=0,0,Summ.1!AQ405*1000)) -> 71.43100745 | BM148: =IF(Summ.1!AR405="","",IF(Summ.1!AR405=0,0,Summ.1!AR405*1000)) -> 71.43100745 | BN148: =IF(Summ.1!AS405="","",IF(Summ.1!AS405=0,0,Summ.1!AS405*1000)) -> 0 | BP148: =IF(Summ.1!AV405="","",IF(Summ.1!AV405=0,0,Summ.1!AV405*1000)) ->  | BQ148: =IF(Summ.1!AW405="","",IF(Summ.1!AW405=0,0,Summ.1!AW405*1000)) ->  | BR148: =IF(Summ.1!AX405="","",IF(Summ.1!AX405=0,0,Summ.1!AX405*1000)) -> 
